Workbook

Sheet Pts P1
A1: Ecole Maurice Heuse - Bulletins: Année scolaire 2015 - 2016
A2: Période 1 | D2: ANCIAUX Mathys | E2: GAVAGE Noah | F2: HANZE Kenny | G2: LEJEUNE Vincent | H2: MARÉCHAL Thomas | I2: RENARD Ethan | J2: TAHIRI Sefer
A3: Français | B3: Savoir lire | C3: 20 | D3: 14 | E3: 12 | F3: 16 | G3: 15 | H3: 15 | I3: 15
B4: Savoir écrire | C4: 80 | D4: 47 | E4: 60 | F4: 68.8 | G4: 60 | H4: 55 | I4: 63.4
B5: Savoir parler
B6: Savoir écouter
B7: TOTAL Français | C7: 100 | D7: =SUM(D3:D6) -> 61 | E7: =SUM(E3:E6) -> 72 | F7: 84.8 | G7: 75 | H7: 70 | I7: 78.4 | J7: 0 | K7: 0 | L7: 0 | M7: 0 | N7: 0 | O7: 0 | P7: 0 | Q7: 0 | R7: 0 | S7: 0 | T7: 0 | U7: 0 | V7: 0
A8: Math | B8: Savoir calculer | C8: 100 | D8: 90 | E8: 68 | F8: 78 | G8: 85 | H8: 89 | I8: 80
B9: Savoir mesurer
B10: Savoir résoudre des problèmes
B11: Savoir structurer l'espace
B12: TOTAL Math | C12: 100 | D12: =+SUM(D8:D11) -> 90 | E12: =+SUM(E8:E11) -> 68 | F12: 78 | G12: 85 | H12: 89 | I12: 80 | J12: 0 | K12: 0 | L12: 0 | M12: 0 | N12: 0 | O12: 0 | P12: 0 | Q12: 0 | R12: 0 | S12: 0 | T12: 0 | U12: 0 | V12: 0
A13: T. Gén, | B13: TOTAL FR et MATH en % | C13: 100 | D13: =(D7+D12)/2 -> 75.5 | E13: =(E7+E12)/2 -> 70 | F13: 81.4 | G13: 80 | H13: 79.5 | I13: 79.2 | J13: 0 | K13: 0 | L13: 0 | M13: 0 | N13: 0 | O13: 0 | P13: 0 | Q13: 0 | R13: 0 | S13: 0 | T13: 0 | U13: 0 | V13: 0
A14: Autres branches | B14: Eveil | C14: 20 | D14: 14 | E14: 16 | F14: 16 | G14: 15 | H14: 17 | I14: 18
B15: Education physique | C15: 10 | D15: 8 | E15: 9 | F15: 8.5 | G15: 8 | H15: 9 | I15: 9
B16: Education esthétique | C16: 10 | D16: 8 | E16: 8 | F16: 8 | G16: 8.5 | H16: 8.5 | I16: 8
B17: Religion / Morale / E.P.A | C17: 10 | D17: 8 | E17: 8 | F17: 8 | G17: 8 | H17: 8 | I17: 8
B18: Récitations et chants | C18: Ap. | D18: S | E18: B | F18: B | G18: S | H18: B | I18: B
B19: Ecriture | C19: Ap. | D19: S | E19: S | F19: B | G19: S | H19: S | I19: B
B20: Ordre | C20: Ap. | D20: S | E20: S | F20: S | G20: S | H20: S | I20: S
B21: Soin | C21: Ap. | D21: B | E21: B | F21: B | G21: S | H21: S | I21: B
B22: Travail à Domicile * | C22: Ap. | D22: B | E22: TB | F22: B | G22: B | H22: TB | I22: TB
B23: ABSENCES (en 1/2 jours) | C23: Nbr | D23: 22 | E23: 3 | F23: 11 | G23: 9 | H23: 0 | I23: 7
B24: RETARDS | C24: Nbr | D24: 0 | E24: 0 | F24: 0 | G24: 0 | H24: 0 | I24: 0
A25: Cartes de conduite | B25: 1. Carte(s) d’honneur à jaune(s) | C25: Nbr | D25: 5 | E25: 7 | F25: 6 | G25: 4 | H25: 3
B26: 2. Carte(s) verte(s) | C26: Nbr | D26: 0 | E26: 0 | F26: 0 | G26: 1 | H26: 3
B27: 3. Carte(s) orange(s) | C27: Nbr | D27: 0 | E27: 0 | F27: 0 | G27: 1 | H27: 1
B28: 4. Carte(s) rouge(s) | C28: Nbr | D28: 0 | E28: 0 | F28: 0 | G28: 0 | H28: 1
B29: 5. Carte(s) rouge(s) « Garderie » | C29: Nbr | D29: 0 | E29: 0 | F29: 0 | G29: 0 | H29: 0
B30: 6. Carte(s) rouge(s) « Tr. scolaire » | C30: Nbr | D30: 0 | E30: 0 | F30: 0 | G30: 0 | H30: 2
B31: 7. Carte(s) blanche(s) (retenues) | C31: Nbr | D31: 0 | E31: 0 | F31: 0 | G31: 0 | H31: 1
A32: Décision du Conseil de classe : | C32: L'élève est admis(e) en classe A (à l'essai)

Sheet Pts P2
A1: ='Pts P1'!$A$1 -> Ecole Maurice Heuse - Bulletins: Année scolaire 2015 - 2016
A2: Période 2 | D2: ='Pts P1'!D2 -> ANCIAUX Mathys | E2: ='Pts P1'!E2 -> GAVAGE Noah | F2: ='Pts P1'!F2 -> HANZE Kenny | G2: ='Pts P1'!G2 -> LEJEUNE Vincent | H2: ='Pts P1'!H2 -> MARÉCHAL Thomas | I2: ='Pts P1'!I2 -> RENARD Ethan | J2: ='Pts P1'!J2 -> TAHIRI Sefer | K2: ='Pts P1'!K2 -> 0 | L2: ='Pts P1'!L2 -> 0 | M2: ='Pts P1'!M2 -> 0 | N2: ='Pts P1'!N2 -> 0 | O2: ='Pts P1'!O2 -> 0 | P2: ='Pts P1'!P2 -> 0 | Q2: ='Pts P1'!Q2 -> 0 | R2: ='Pts P1'!R2 -> 0 | S2: ='Pts P1'!S2 -> 0 | T2: ='Pts P1'!T2 -> 0 | U2: ='Pts P1'!U2 -> 0 | V2: ='Pts P1'!V2 -> 0
A3: Français | B3: Savoir lire | C3: 20 | D3: 11.9 | E3: 11.3 | F3: 11.9 | G3: 11 | H3: 12.8 | I3: 14.9 | J3: 13.8
B4: Savoir écrire | C4: 80 | D4: 66.9 | E4: 68.3 | F4: 64.1 | G4: 61.5 | H4: 65.7 | I4: 61.8 | J4: 51.8
B5: Savoir parler
B6: Savoir écouter
B7: TOTAL Français | C7: 100 | D7: =SUM(D3:D6) -> 78.8 | E7: 79.6 | F7: 76 | G7: 72.5 | H7: 78.5 | I7: 76.7 | J7: 65.6 | K7: 0 | L7: 0 | M7: 0 | N7: 0 | O7: 0 | P7: 0 | Q7: 0 | R7: 0 | S7: 0 | T7: 0 | U7: 0 | V7: 0
A8: Math | B8: Savoir calculer | C8: 100 | D8: 90.7 | E8: 83.5 | F8: 80.1 | G8: 69.2 | H8: 75.9 | I8: 75.6 | J8: 87.9
B9: Savoir mesurer
B10: Savoir résoudre des problèmes
B11: Savoir structurer l'espace
B12: TOTAL Math | C12: 100 | D12: =+SUM(D8:D11) -> 90.7 | E12: =+SUM(E8:E11) -> 83.5 | F12: 80.1 | G12: 69.2 | H12: 75.9 | I12: =+SUM(I8:I11) -> 75.6 | J12: 87.9 | K12: 0 | L12: 0 | M12: 0 | N12: 0 | O12: 0 | P12: =+SUM(P8:P11) -> 0 | Q12: 0 | R12: =+SUM(R8:R11) -> 0 | S12: =+SUM(S8:S11) -> 0 | T12: =+SUM(T8:T11) -> 0 | U12: =+SUM(U8:U11) -> 0 | V12: =+SUM(V8:V11) -> 0
A13: T. Gén, | B13: TOTAL FR et MATH en % | C13: 100 | D13: =(D7+D12)/2 -> 84.75 | E13: 81.55 | F13: 78.05 | G13: 70.85 | H13: 77.2 | I13: 76.15 | J13: 76.75 | K13: 0 | L13: 0 | M13: 0 | N13: 0 | O13: 0 | P13: 0 | Q13: 0 | R13: 0 | S13: 0 | T13: 0 | U13: 0 | V13: 0
A14: Autres branches | B14: Eveil | C14: 20 | D14: 14 | E14: 17 | F14: 15 | G14: 13 | H14: 16 | I14: 16 | J14: 16
B15: Education physique | C15: 10 | D15: 8.5 | E15: 8 | F15: 6 | G15: 6.5 | H15: 9.5 | I15: 7 | J15: 7
B16: Education esthétique | C16: 10 | D16: 8 | E16: 8.5 | F16: 8 | G16: 8.5 | H16: 8 | I16: 8.5 | J16: 8.5
B17: Religion / Morale / E.P.A | C17: 10 | D17: 8 | E17: 8 | F17: 8 | G17: 8 | H17: 7 | I17: 7 | J17: 8
B18: Récitations et chants | C18: Ap. | D18: S | E18: S | F18: S | G18: I | H18: B | I18: B | J18: TB
B19: Ecriture | C19: Ap. | D19: I | E19: S | F19: S | G19: I | H19: S | I19: TB | J19: TB
B20: Ordre | C20: Ap. | D20: S | E20: S | F20: S | G20: S | H20: I | I20: B | J20: B
B21: Soin | C21: Ap. | D21: I | E21: S | F21: S | G21: I | H21: S | I21: S | J21: B
B22: Travail à Domicile * | C22: Ap. | D22: TB | E22: S | F22: S | G22: S | H22: B | I22: B | J22: TB
B23: ABSENCES (en 1/2 jours) | C23: Nbr | D23: 11 | E23: 0 | F23: 18 | G23: 17 | H23: 3 | I23: 9 | J23: 0
B24: RETARDS | C24: Nbr | D24: 0 | E24: 0 | F24: 0 | G24: 1 | H24: 0 | I24: 0 | J24: 0
A25: Cartes de conduite | B25: 1. Carte(s) d’honneur à jaune(s) | C25: Nbr | D25: 6 | E25: 5 | F25: 6 | G25: 6 | H25: 3 | I25: 2 | J25: 4
B26: 2. Carte(s) verte(s) | C26: Nbr | D26: 0 | E26: 1 | F26: 1 | G26: 1 | H26: 2 | I26: 2 | J26: 0
B27: 3. Carte(s) orange(s) | C27: Nbr | D27: 0 | E27: 0 | F27: 0 | G27: 0 | H27: 1 | I27: 2 | J27: 0
B28: 4. Carte(s) rouge(s) | C28: Nbr | D28: 0 | E28: 0 | F28: 0 | G28: 0 | H28: 1 | I28: 1 | J28: 0
B29: 5. Carte(s) rouge(s) « Garderie » | C29: Nbr | D29: 0 | E29: 0 | F29: 0 | G29: 0 | H29: 0 | I29: 0 | J29: 0
B30: 6. Carte(s) rouge(s) « Tr. scolaire » | C30: Nbr | D30: 0 | E30: 0 | F30: 0 | G30: 0 | H30: 0 | I30: 0 | J30: 0
B31: 7. Carte(s) blanche(s) (retenues) | C31: Nbr | D31: 0 | E31: 0 | F31: 0 | G31: 0 | H31: 0 | I31: 1 | J31: 0
A32: Décision du Conseil de classe : | C32: L'élève est admis(e) en classe A (à l'essai)

Sheet Pts P3
A1: ='Pts P1'!$A$1 -> Ecole Maurice Heuse - Bulletins: Année scolaire 2015 - 2016
A2: Période 3 | D2: ='Pts P1'!D2 -> ANCIAUX Mathys | E2: ='Pts P1'!E2 -> GAVAGE Noah | F2: ='Pts P1'!F2 -> HANZE Kenny | G2: ='Pts P1'!G2 -> LEJEUNE Vincent | H2: ='Pts P1'!H2 -> MARÉCHAL Thomas | I2: ='Pts P1'!I2 -> RENARD Ethan | J2: ='Pts P1'!J2 -> TAHIRI Sefer | K2: ='Pts P1'!K2 -> 0 | L2: ='Pts P1'!L2 -> 0 | M2: ='Pts P1'!M2 -> 0 | N2: ='Pts P1'!N2 -> 0 | O2: ='Pts P1'!O2 -> 0 | P2: ='Pts P1'!P2 -> 0 | Q2: ='Pts P1'!Q2 -> 0 | R2: ='Pts P1'!R2 -> 0 | S2: ='Pts P1'!S2 -> 0 | T2: ='Pts P1'!T2 -> 0 | U2: ='Pts P1'!U2 -> 0 | V2: ='Pts P1'!V2 -> 0
A3: Français | B3: Savoir lire | C3: 20
B4: Savoir écrire | C4: 80
B5: Savoir parler
B6: Savoir écouter
B7: TOTAL Français | C7: 100 | D7: =SUM(D3:D6) -> 0 | E7: 0 | F7: 0 | G7: 0 | H7: 0 | I7: 0 | J7: 0 | K7: 0 | L7: 0 | M7: 0 | N7: 0 | O7: 0 | P7: 0 | Q7: 0 | R7: 0 | S7: 0 | T7: 0 | U7: 0 | V7: 0
A8: Math | B8: Savoir calculer | C8: 100
B9: Savoir mesurer
B10: Savoir résoudre des problèmes
B11: Savoir structurer l'espace
B12: TOTAL Math | C12: 100 | D12: =+SUM(D8:D11) -> 0 | E12: =+SUM(E8:E11) -> 0 | F12: 0 | G12: 0 | H12: 0 | I12: =+SUM(I8:I11) -> 0 | J12: 0 | K12: 0 | L12: 0 | M12: 0 | N12: 0 | O12: 0 | P12: =+SUM(P8:P11) -> 0 | Q12: 0 | R12: =+SUM(R8:R11) -> 0 | S12: =+SUM(S8:S11) -> 0 | T12: =+SUM(T8:T11) -> 0 | U12: =+SUM(U8:U11) -> 0 | V12: =+SUM(V8:V11) -> 0
A13: T. Gén, | B13: TOTAL FR et MATH en % | C13: 100 | D13: =(D7+D12)/2 -> 0 | E13: 0 | F13: 0 | G13: 0 | H13: 0 | I13: 0 | J13: 0 | K13: 0 | L13: 0 | M13: 0 | N13: 0 | O13: 0 | P13: 0 | Q13: 0 | R13: 0 | S13: 0 | T13: 0 | U13: 0 | V13: 0
A14: Autres branches | B14: Eveil | C14: 20
B15: Education physique | C15: 10
B16: Education esthétique | C16: 10
B17: Religion / Morale / E.P.A | C17: 10
B18: Récitations et chants | C18: Ap.
B19: Ecriture | C19: Ap.
B20: Ordre | C20: Ap.
B21: Soin | C21: Ap.
B22: Travail à Domicile * | C22: Ap.
B23: ABSENCES (en 1/2 jours) | C23: Nbr
B24: RETARDS | C24: Nbr
A25: Cartes de conduite | B25: 1. Carte(s) d’honneur à jaune(s) | C25: Nbr
B26: 2. Carte(s) verte(s) | C26: Nbr
B27: 3. Carte(s) orange(s) | C27: Nbr
B28: 4. Carte(s) rouge(s) | C28: Nbr
B29: 5. Carte(s) rouge(s) « Garderie » | C29: Nbr
B30: 6. Carte(s) rouge(s) « Tr. scolaire » | C30: Nbr
B31: 7. Carte(s) blanche(s) (retenues) | C31: Nbr
A32: Décision du Conseil de classe : | C32: L'élève est admis(e) en classe A (à l'essai)

Sheet Pts P4
A1: ='Pts P1'!$A$1 -> Ecole Maurice Heuse - Bulletins: Année scolaire 2015 - 2016
A2: Période 4 | D2: ='Pts P1'!D2 -> ANCIAUX Mathys | E2: ='Pts P1'!E2 -> GAVAGE Noah | F2: ='Pts P1'!F2 -> HANZE Kenny | G2: ='Pts P1'!G2 -> LEJEUNE Vincent | H2: ='Pts P1'!H2 -> MARÉCHAL Thomas | I2: ='Pts P1'!I2 -> RENARD Ethan | J2: ='Pts P1'!J2 -> TAHIRI Sefer | K2: ='Pts P1'!K2 -> 0 | L2: ='Pts P1'!L2 -> 0 | M2: ='Pts P1'!M2 -> 0 | N2: ='Pts P1'!N2 -> 0 | O2: ='Pts P1'!O2 -> 0 | P2: ='Pts P1'!P2 -> 0 | Q2: ='Pts P1'!Q2 -> 0 | R2: ='Pts P1'!R2 -> 0 | S2: ='Pts P1'!S2 -> 0 | T2: ='Pts P1'!T2 -> 0 | U2: ='Pts P1'!U2 -> 0 | V2: ='Pts P1'!V2 -> 0
A3: Français | B3: Savoir lire | C3: 20
B4: Savoir écrire | C4: 80
B5: Savoir parler
B6: Savoir écouter
B7: TOTAL Français | C7: 100 | D7: =SUM(D3:D6) -> 0 | E7: 0 | F7: 0 | G7: 0 | H7: 0 | I7: 0 | J7: 0 | K7: 0 | L7: 0 | M7: 0 | N7: 0 | O7: 0 | P7: 0 | Q7: 0 | R7: 0 | S7: 0 | T7: 0 | U7: 0 | V7: 0
A8: Math | B8: Savoir calculer | C8: 100
B9: Savoir mesurer
B10: Savoir résoudre des problèmes
B11: Savoir structurer l'espace
B12: TOTAL Math | C12: 100 | D12: =+SUM(D8:D11) -> 0 | E12: =+SUM(E8:E11) -> 0 | F12: 0 | G12: 0 | H12: 0 | I12: =+SUM(I8:I11) -> 0 | J12: 0 | K12: 0 | L12: 0 | M12: 0 | N12: 0 | O12: 0 | P12: =+SUM(P8:P11) -> 0 | Q12: 0 | R12: =+SUM(R8:R11) -> 0 | S12: =+SUM(S8:S11) -> 0 | T12: =+SUM(T8:T11) -> 0 | U12: =+SUM(U8:U11) -> 0 | V12: =+SUM(V8:V11) -> 0
A13: T. Gén, | B13: TOTAL FR et MATH en % | C13: 100 | D13: =(D7+D12)/2 -> 0 | E13: 0 | F13: 0 | G13: 0 | H13: 0 | I13: 0 | J13: 0 | K13: 0 | L13: 0 | M13: 0 | N13: 0 | O13: 0 | P13: 0 | Q13: 0 | R13: 0 | S13: 0 | T13: 0 | U13: 0 | V13: 0
A14: Autres branches | B14: Eveil | C14: 20
B15: Education physique | C15: 10
B16: Education esthétique | C16: 10
B17: Religion / Morale / E.P.A | C17: 10
B18: Récitations et chants | C18: Ap.
B19: Ecriture | C19: Ap.
B20: Ordre | C20: Ap.
B21: Soin | C21: Ap.
B22: Travail à Domicile * | C22: Ap.
B23: ABSENCES (en 1/2 jours) | C23: Nbr
B24: RETARDS | C24: Nbr
A25: Cartes de conduite | B25: 1. Carte(s) d’honneur à jaune(s) | C25: Nbr
B26: 2. Carte(s) verte(s) | C26: Nbr
B27: 3. Carte(s) orange(s) | C27: Nbr
B28: 4. Carte(s) rouge(s) | C28: Nbr
B29: 5. Carte(s) rouge(s) « Garderie » | C29: Nbr
B30: 6. Carte(s) rouge(s) « Tr. scolaire » | C30: Nbr
B31: 7. Carte(s) blanche(s) (retenues) | C31: Nbr
A32: Décision du Conseil de classe : | C32: L'élève est admis(e) en classe A (à l'essai)

Sheet Déc CC
A2: ='Pts P1'!$D$2 -> ANCIAUX Mathys
A3: ='Pts P1'!$E$2 -> GAVAGE Noah
A4: ='Pts P1'!$F$2 -> HANZE Kenny
A5: ='Pts P1'!$G$2 -> LEJEUNE Vincent
A6: ='Pts P1'!$H$2 -> MARÉCHAL Thomas
A7: ='Pts P1'!$I$2 -> RENARD Ethan
A8: ='Pts P1'!$J$2 -> TAHIRI Sefer
A9: ='Pts P1'!$K$2 -> 0
A10: ='Pts P1'!L$2 -> 0
A11: ='Pts P1'!$M$2 -> 0
A12: ='Pts P1'!$N$2 -> 0
A13: ='Pts P1'!$O$2 -> 0
A14: ='Pts P1'!$P$2 -> 0
A15: ='Pts P1'!$Q$2 -> 0
A16: ='Pts P1'!$R$2 -> 0
A17: ='Pts P1'!$S$2 -> 0
A18: ='Pts P1'!$T$2 -> 0
A19: ='Pts P1'!$U$2 -> 0
A20: ='Pts P1'!$V$2 -> 0
A23: L'élève est maintenu(e) en classe A
A24: L'élève est maintenu(e) en classe A (à l'essai)
A25: L'élève est admis(e) en classe B
A26: L'élève est admis(e) en classe B (à l'essai)
A27: L'élève est orienté(e) vers une école primaire ordinaire
A28: L'élève est orienté(e) vers une école primaire spécialisée de Type 1
A29: L'élève est orienté(e) vers une école primaire spécialisée de Type 3

Sheet Elève (1)
A1: Nom et prénom de l'élève : | B1: ='Pts P1'!$D$2 -> ANCIAUX Mathys
A3: FRANCAIS | C3: 1ère période | D3: 2ème période | E3: 3ème période | F3: 4ème période | H3: MOYENNE
A5: Savoir lire | B5: 20 | C5: ='Pts P1'!D3 -> 14 | D5: ='Pts P2'!D3 -> 11.9 | E5: ='Pts P3'!D3 -> 0 | F5: ='Pts P4'!D3 -> 0 | H5: =K5/J5 -> 12.95 | I5: 20 | J5: =COUNTIF(C5:F5,"<>0") -> 2 | K5: =SUM(C5:F5) -> 25.9
A6: Savoir écrire | B6: 80 | C6: ='Pts P1'!D4 -> 47 | D6: ='Pts P2'!D4 -> 66.9 | E6: ='Pts P3'!D4 -> 0 | F6: ='Pts P4'!D4 -> 0 | H6: 56.95 | I6: 80 | J6: =COUNTIF(C6:F6,"<>0") -> 2 | K6: =SUM(C6:F6) -> 113.9
A7: Savoir parler | D7: ='Pts P2'!D5 -> 0 | E7: ='Pts P3'!D5 -> 0 | F7: ='Pts P4'!D5 -> 0 | J7: =COUNTIF(C7:F7,"<>0") -> 1 | K7: =SUM(C7:F7) -> 0
A8: Savoir écouter | D8: ='Pts P2'!D6 -> 0 | E8: ='Pts P3'!D6 -> 0 | F8: ='Pts P4'!D6 -> 0 | J8: =COUNTIF(C8:F8,"<>0") -> 1 | K8: =SUM(C8:F8) -> 0
A9: TOTAL Français | B9: 100 | C9: ='Pts P1'!D7 -> 61 | D9: ='Pts P2'!D7 -> 78.8 | E9: ='Pts P3'!D7 -> 0 | F9: ='Pts P4'!D7 -> 0 | H9: 69.9 | I9: 100 | J9: =COUNTIF(C9:F9,"<>0") -> 2 | K9: =SUM(C9:F9) -> 139.8
A11: MATHEMATIQUES | C11: 1ère période | D11: 2ème période | E11: 3ème période | F11: 4ème période
A13: Savoir calculer | B13: 100 | C13: ='Pts P1'!D8 -> 90 | D13: ='Pts P2'!D8 -> 90.7 | E13: ='Pts P3'!D8 -> 0 | F13: ='Pts P4'!D8 -> 0 | H13: =K13/J13 -> 90.35 | I13: 100 | J13: =COUNTIF(C13:F13,"<>0") -> 2 | K13: =SUM(C13:F13) -> 180.7
A14: Savoir résoudre des problèmes | D14: ='Pts P2'!D9 -> 0 | E14: ='Pts P3'!D9 -> 0 | F14: ='Pts P4'!D9 -> 0 | J14: =COUNTIF(C14:F14,"<>0") -> 1 | K14: =SUM(C14:F14) -> 0
A15: Savoir mesurer | D15: ='Pts P2'!D10 -> 0 | E15: ='Pts P3'!D10 -> 0 | F15: ='Pts P4'!D10 -> 0 | J15: =COUNTIF(C15:F15,"<>0") -> 1 | K15: =SUM(C15:F15) -> 0
A16: Savoir structurer l'espace | D16: ='Pts P2'!D11 -> 0 | E16: ='Pts P3'!D11 -> 0 | F16: ='Pts P4'!D11 -> 0 | J16: =COUNTIF(C16:F16,"<>0") -> 1 | K16: =SUM(C16:F16) -> 0
A17: TOTAL Math | B17: 100 | C17: ='Pts P1'!D12 -> 90 | D17: ='Pts P2'!D12 -> 90.7 | E17: ='Pts P3'!D12 -> 0 | F17: ='Pts P4'!D12 -> 0 | H17: =K17/J17 -> 90.35 | I17: 100 | J17: =COUNTIF(C17:F17,"<>0") -> 2 | K17: =SUM(C17:F17) -> 180.7
A19: TOTAL GÉNÉRAL (Français et Mathématiques) en % | C19: ='Pts P1'!$D$13 -> 75.5 | D19: ='Pts P2'!$D$13 -> 84.75 | E19: ='Pts P3'!$D$13 -> 0 | F19: ='Pts P4'!$D$13 -> 0 | H19: =K19/J19 -> 80.125 | I19: sur | J19: =COUNTIF(C19:F19,"<>0") -> 2 | K19: =SUM(C19:F19) -> 160.25
A21: AUTRES BRANCHES | C21: 1ère période | D21: 2ème période | E21: 3ème période | F21: 4ème période
A23: Eveil | B23: 20 | C23: ='Pts P1'!D14 -> 14 | D23: ='Pts P2'!D14 -> 14 | E23: ='Pts P3'!D14 -> 0 | F23: ='Pts P4'!D14 -> 0 | H23: =K23/J23 -> 14 | I23: 20 | J23: =COUNTIF(C23:F23,"<>0") -> 2 | K23: =SUM(C23:F23) -> 28
A24: Education physiaue | B24: 10 | C24: ='Pts P1'!D15 -> 8 | D24: ='Pts P2'!D15 -> 8.5 | E24: ='Pts P3'!D15 -> 0 | F24: ='Pts P4'!D15 -> 0 | H24: 8.25 | I24: 10 | J24: 2 | K24: 16.5
A25: Education esthétique | B25: 10 | C25: ='Pts P1'!D16 -> 8 | D25: ='Pts P2'!D16 -> 8 | E25: ='Pts P3'!D16 -> 0 | F25: ='Pts P4'!D16 -> 0 | H25: 8 | I25: 10 | J25: 2 | K25: 16
A26: Religion / Morale / E.P.A | B26: 10 | C26: ='Pts P1'!D17 -> 8 | D26: ='Pts P2'!D17 -> 8 | E26: ='Pts P3'!D17 -> 0 | F26: ='Pts P4'!D17 -> 0 | H26: 8 | I26: 10 | J26: 2 | K26: 16
A27: Récitations et chants | B27: Ap. * | C27: ='Pts P1'!D18 -> S | D27: ='Pts P2'!D18 -> S | E27: ='Pts P3'!D18 -> 0 | F27: ='Pts P4'!D18 -> 0 | K27: 0
A28: Ecriture | B28: Ap. * | C28: ='Pts P1'!D19 -> S | D28: ='Pts P2'!D19 -> I | E28: ='Pts P3'!D19 -> 0 | F28: ='Pts P4'!D19 -> 0
A29: Ordre | B29: Ap. * | C29: ='Pts P1'!D20 -> S | D29: ='Pts P2'!D20 -> S | E29: ='Pts P3'!D20 -> 0 | F29: ='Pts P4'!D20 -> 0 | K29: 0
A30: Soin | B30: Ap. * | C30: ='Pts P1'!D21 -> B | D30: ='Pts P2'!D21 -> I | E30: ='Pts P3'!D21 -> 0 | F30: ='Pts P4'!D21 -> 0 | K30: 0
A31: Travail à Domicile | B31: Ap. * | C31: ='Pts P1'!D22 -> B | D31: ='Pts P2'!D22 -> TB | E31: ='Pts P3'!D22 -> 0 | F31: ='Pts P4'!D22 -> 0
A32: ABSENCES (en 1/2 jours) | B32: nbr | C32: ='Pts P1'!D23 -> 22 | D32: ='Pts P2'!D23 -> 11 | E32: ='Pts P3'!D23 -> 0 | F32: ='Pts P4'!D23 -> 0 | H32: =SUM(C32:F32) -> 0 | I32: Nbr
A33: RETARDS | B33: nbr | C33: ='Pts P1'!D24 -> 0 | D33: ='Pts P2'!D24 -> 0 | E33: ='Pts P3'!D24 -> 0 | F33: ='Pts P4'!D24 -> 0 | H33: =SUM(C33:F33) -> 0 | I33: Nbr
A34: * TB : Très Bien, B = Bien, S = Satisfaisant, F = Faible, I = Insuffisant.
A36: DECISION DU CONSEIL DE CLASSE :
A37: ='Déc CC'!$B$2 -> 0
A38: N.B. Cette décision tient compte du travail journalier et des tests d'orientation
A39: de fin d'année (voir explication sur le feuillet jaune ci-joint !)
A40: TITULAIRE : DIRECTEUR : PARENTS :
A41: SIGNATURES : | C41: Alain Rensonnet
A42: Nom et prénom de l'élève : | B42: ='Pts P1'!$D$2 -> ANCIAUX Mathys
A44: APPRECIATION DU COMPORTEMENT | C44: 1ère période | D44: 2ème période | E44: 3 ème période | F44: 4ème période
A46: 1. Carte(s) d’honneur : jaune(s) | C46: ='Pts P1'!D25 -> 5 | D46: ='Pts P2'!D25 -> 6 | E46: ='Pts P3'!D25 -> 0 | F46: ='Pts P4'!D25 -> 0 | H46: =SUM(C46:F46) -> 0
A47: 2. Carte(s) verte(s) | C47: ='Pts P1'!D26 -> 0 | D47: ='Pts P2'!D26 -> 0 | E47: ='Pts P3'!D26 -> 0 | F47: ='Pts P4'!D26 -> 0 | H47: =SUM(C47:F47) -> 0
A48: 3. Carte(s) orange(s) | C48: ='Pts P1'!D27 -> 0 | D48: ='Pts P2'!D27 -> 0 | E48: ='Pts P3'!D27 -> 0 | F48: ='Pts P4'!D27 -> 0 | H48: 0
A49: 4. Carte(s) rouge(s) | C49: ='Pts P1'!D28 -> 0 | D49: ='Pts P2'!D28 -> 0 | E49: ='Pts P3'!D28 -> 0 | F49: ='Pts P4'!D28 -> 0 | H49: 0
A50: 5. Carte(s) rouge(s) « Garderie » | C50: ='Pts P1'!D29 -> 0 | D50: ='Pts P2'!D29 -> 0 | E50: ='Pts P3'!D29 -> 0 | F50: ='Pts P4'!D29 -> 0 | H50: 0
A51: 6. Carte(s) rouge(s) « Tr. scolaire » | C51: ='Pts P1'!D30 -> 0 | D51: ='Pts P2'!D30 -> 0 | E51: ='Pts P3'!D30 -> 0 | F51: ='Pts P4'!D30 -> 0 | H51: 0
A52: 7. Carte(s) blanche(s) (retenues) | C52: ='Pts P1'!D31 -> 0 | D52: ='Pts P2'!D31 -> 0 | E52: ='Pts P3'!D31 -> 0 | F52: ='Pts P4'!D31 -> 0 | H52: 0
A54: COMMENTAIRES et CONSEILS :
A55: 1ère période :
A57: 2ème période :
A59: 3ème période :
A61: 4ème période :
A63: Signature des parents :

Sheet Elève (2)
A1: Nom et prénom de l'élève : | B1: ='Pts P1'!$E$2 -> GAVAGE Noah
A3: FRANCAIS | C3: 1ère période | D3: 2ème période | E3: 3ème période | F3: 4ème période | H3: MOYENNE
A5: Savoir lire | B5: 20 | C5: ='Pts P1'!E3 -> 12 | D5: ='Pts P2'!E3 -> 11.3 | E5: ='Pts P3'!E3 -> 0 | F5: ='Pts P4'!E3 -> 0 | H5: =K5/J5 -> 11.65 | I5: 20 | J5: =COUNTIF(C5:F5,"<>0") -> 2 | K5: =SUM(C5:F5) -> 23.3
A6: Savoir écrire | B6: 80 | C6: ='Pts P1'!E4 -> 60 | D6: ='Pts P2'!E4 -> 68.3 | E6: ='Pts P3'!E4 -> 0 | F6: ='Pts P4'!E4 -> 0 | H6: 64.15 | I6: 80 | J6: =COUNTIF(C6:F6,"<>0") -> 2 | K6: =SUM(C6:F6) -> 128.3
A7: Savoir parler | D7: ='Pts P2'!D5 -> 0 | E7: ='Pts P3'!D5 -> 0 | F7: ='Pts P4'!D5 -> 0 | J7: =COUNTIF(C7:F7,"<>0") -> 1 | K7: =SUM(C7:F7) -> 0
A8: Savoir écouter | D8: ='Pts P2'!D6 -> 0 | E8: ='Pts P3'!D6 -> 0 | F8: ='Pts P4'!D6 -> 0 | J8: =COUNTIF(C8:F8,"<>0") -> 1 | K8: =SUM(C8:F8) -> 0
A9: TOTAL Français | B9: 100 | C9: ='Pts P1'!E7 -> 72 | D9: ='Pts P2'!E7 -> 79.6 | E9: ='Pts P3'!E7 -> 0 | F9: ='Pts P4'!E7 -> 0 | H9: 75.8 | I9: 100 | J9: =COUNTIF(C9:F9,"<>0") -> 2 | K9: =SUM(C9:F9) -> 151.6
A11: MATHEMATIQUES | C11: 1ère période | D11: 2ème période | E11: 3ème période | F11: 4ème période
A13: Savoir calculer | B13: 100 | C13: ='Pts P1'!E8 -> 68 | D13: ='Pts P2'!E8 -> 83.5 | E13: ='Pts P3'!E8 -> 0 | F13: ='Pts P4'!E8 -> 0 | H13: =K13/J13 -> 75.75 | I13: 100 | J13: =COUNTIF(C13:F13,"<>0") -> 2 | K13: =SUM(C13:F13) -> 151.5
A14: Savoir résoudre des problèmes | D14: ='Pts P2'!D9 -> 0 | E14: ='Pts P3'!D9 -> 0 | F14: ='Pts P4'!D9 -> 0 | J14: =COUNTIF(C14:F14,"<>0") -> 1 | K14: =SUM(C14:F14) -> 0
A15: Savoir mesurer | D15: ='Pts P2'!D10 -> 0 | E15: ='Pts P3'!D10 -> 0 | F15: ='Pts P4'!D10 -> 0 | J15: =COUNTIF(C15:F15,"<>0") -> 1 | K15: =SUM(C15:F15) -> 0
A16: Savoir structurer l'espace | D16: ='Pts P2'!D11 -> 0 | E16: ='Pts P3'!D11 -> 0 | F16: ='Pts P4'!D11 -> 0 | J16: =COUNTIF(C16:F16,"<>0") -> 1 | K16: =SUM(C16:F16) -> 0
A17: TOTAL Math | B17: 100 | C17: ='Pts P1'!E12 -> 68 | D17: ='Pts P2'!E12 -> 83.5 | E17: ='Pts P3'!E12 -> 0 | F17: ='Pts P4'!E12 -> 0 | H17: =K17/J17 -> 75.75 | I17: 100 | J17: =COUNTIF(C17:F17,"<>0") -> 2 | K17: =SUM(C17:F17) -> 151.5
A19: TOTAL GÉNÉRAL (Français et Mathématiques) en % | C19: ='Pts P1'!$E$13 -> 70 | D19: ='Pts P2'!$E$13 -> 81.55 | E19: ='Pts P3'!$E$13 -> 0 | F19: ='Pts P4'!$E$13 -> 0 | H19: =K19/J19 -> 75.775 | I19: sur | J19: =COUNTIF(C19:F19,"<>0") -> 2 | K19: =SUM(C19:F19) -> 151.55
A21: AUTRES BRANCHES | C21: 1ère période | D21: 2ème période | E21: 3ème période | F21: 4ème période
A23: Eveil | B23: 20 | C23: ='Pts P1'!E14 -> 16 | D23: ='Pts P2'!E14 -> 17 | E23: ='Pts P3'!E14 -> 0 | F23: ='Pts P4'!E14 -> 0 | H23: =K23/J23 -> 16.5 | I23: 20 | J23: =COUNTIF(C23:F23,"<>0") -> 2 | K23: =SUM(C23:F23) -> 33
A24: Education physiaue | B24: 10 | C24: ='Pts P1'!E15 -> 9 | D24: ='Pts P2'!E15 -> 8 | E24: ='Pts P3'!E15 -> 0 | F24: ='Pts P4'!E15 -> 0 | H24: 8.5 | I24: 10 | J24: 2 | K24: 17
A25: Education esthétique | B25: 10 | C25: ='Pts P1'!E16 -> 8 | D25: ='Pts P2'!E16 -> 8.5 | E25: ='Pts P3'!E16 -> 0 | F25: ='Pts P4'!E16 -> 0 | H25: 8.25 | I25: 10 | J25: 2 | K25: 16.5
A26: Religion / Morale / E.P.A | B26: 10 | C26: ='Pts P1'!E17 -> 8 | D26: ='Pts P2'!E17 -> 8 | E26: ='Pts P3'!E17 -> 0 | F26: ='Pts P4'!E17 -> 0 | H26: 8 | I26: 10 | J26: 2 | K26: 16
A27: Récitations et chants | B27: Ap. * | C27: ='Pts P1'!E18 -> B | D27: ='Pts P2'!E18 -> S | E27: ='Pts P3'!E18 -> 0 | F27: ='Pts P4'!E18 -> 0 | K27: 0
A28: Ecriture | B28: Ap. * | C28: ='Pts P1'!E19 -> S | D28: ='Pts P2'!E19 -> S | E28: ='Pts P3'!E19 -> 0 | F28: ='Pts P4'!E19 -> 0
A29: Ordre | B29: Ap. * | C29: ='Pts P1'!E20 -> S | D29: ='Pts P2'!E20 -> S | E29: ='Pts P3'!E20 -> 0 | F29: ='Pts P4'!E20 -> 0 | K29: 0
A30: Soin | B30: Ap. * | C30: ='Pts P1'!E21 -> B | D30: ='Pts P2'!E21 -> S | E30: ='Pts P3'!E21 -> 0 | F30: ='Pts P4'!E21 -> 0 | K30: 0
A31: Travail à Domicile | B31: Ap. * | C31: ='Pts P1'!E22 -> TB | D31: ='Pts P2'!E22 -> S | E31: ='Pts P3'!E22 -> 0 | F31: ='Pts P4'!E22 -> 0
A32: ABSENCES (en 1/2 jours) | B32: nbr | C32: ='Pts P1'!E23 -> 3 | D32: ='Pts P2'!E23 -> 0 | E32: ='Pts P3'!E23 -> 0 | F32: ='Pts P4'!E23 -> 0 | H32: =SUM(C32:F32) -> 0 | I32: Nbr
A33: RETARDS | B33: nbr | C33: ='Pts P1'!E24 -> 0 | D33: ='Pts P2'!E24 -> 0 | E33: ='Pts P3'!E24 -> 0 | F33: ='Pts P4'!E24 -> 0 | H33: =SUM(C33:F33) -> 0 | I33: Nbr
A34: * TB : Très Bien, B = Bien, S = Satisfaisant, F = Faible, I = Insuffisant.
A36: DECISION DU CONSEIL DE CLASSE :
A37: ='Déc CC'!$B$2 -> 0
A38: N.B. Cette décision tient compte du travail journalier et des tests d'orientation
A39: de fin d'année (voir explication sur le feuillet jaune ci-joint !)
A40: TITULAIRE : DIRECTEUR : PARENTS :
A41: SIGNATURES : | C41: Alain Rensonnet
A42: Nom et prénom de l'élève : | B42: ='Pts P1'!$E$2 -> GAVAGE Noah
A44: APPRECIATION DU COMPORTEMENT | C44: 1ère période | D44: 2ème période | E44: 3 ème période | F44: 4ème période
A46: 1. Carte(s) d’honneur : jaune(s) | C46: ='Pts P1'!E25 -> 7 | D46: ='Pts P2'!E25 -> 5 | E46: ='Pts P3'!E25 -> 0 | F46: ='Pts P4'!E25 -> 0 | H46: =SUM(C46:F46) -> 0
A47: 2. Carte(s) verte(s) | C47: ='Pts P1'!E26 -> 0 | D47: ='Pts P2'!E26 -> 1 | E47: ='Pts P3'!E26 -> 0 | F47: ='Pts P4'!E26 -> 0 | H47: =SUM(C47:F47) -> 0
A48: 3. Carte(s) orange(s) | C48: ='Pts P1'!E27 -> 0 | D48: ='Pts P2'!E27 -> 0 | E48: ='Pts P3'!E27 -> 0 | F48: ='Pts P4'!E27 -> 0 | H48: 0
A49: 4. Carte(s) rouge(s) | C49: ='Pts P1'!E28 -> 0 | D49: ='Pts P2'!E28 -> 0 | E49: ='Pts P3'!E28 -> 0 | F49: ='Pts P4'!E28 -> 0 | H49: 0
A50: 5. Carte(s) rouge(s) « Garderie » | C50: ='Pts P1'!E29 -> 0 | D50: ='Pts P2'!E29 -> 0 | E50: ='Pts P3'!E29 -> 0 | F50: ='Pts P4'!E29 -> 0 | H50: 0
A51: 6. Carte(s) rouge(s) « Tr. scolaire » | C51: ='Pts P1'!E30 -> 0 | D51: ='Pts P2'!E30 -> 0 | E51: ='Pts P3'!E30 -> 0 | F51: ='Pts P4'!E30 -> 0 | H51: 0
A52: 7. Carte(s) blanche(s) (retenues) | C52: ='Pts P1'!E31 -> 0 | D52: ='Pts P2'!E31 -> 0 | E52: ='Pts P3'!E31 -> 0 | F52: ='Pts P4'!E31 -> 0 | H52: 0
A54: COMMENTAIRES et CONSEILS :
A55: 1ère période :
A57: 2ème période :
A59: 3ème période :
A61: 4ème période :
A63: Signature des parents :

Sheet Elève (3)
A1: Nom et prénom de l'élève : | B1: ='Pts P1'!$F$2 -> HANZE Kenny
A3: FRANCAIS | C3: 1ère période | D3: 2ème période | E3: 3ème période | F3: 4ème période | H3: MOYENNE
A5: Savoir lire | B5: 20 | C5: ='Pts P1'!F3 -> 16 | D5: ='Pts P2'!F3 -> 11.9 | E5: ='Pts P3'!F3 -> 0 | F5: ='Pts P4'!F3 -> 0 | H5: =K5/J5 -> 13.95 | I5: 20 | J5: =COUNTIF(C5:F5,"<>0") -> 2 | K5: =SUM(C5:F5) -> 27.9
A6: Savoir écrire | B6: 80 | C6: ='Pts P1'!F4 -> 68.8 | D6: ='Pts P2'!F4 -> 64.1 | E6: ='Pts P3'!F4 -> 0 | F6: ='Pts P4'!F4 -> 0 | H6: 66.45 | I6: 80 | J6: =COUNTIF(C6:F6,"<>0") -> 2 | K6: =SUM(C6:F6) -> 132.9
A7: Savoir parler | D7: ='Pts P2'!D5 -> 0 | E7: ='Pts P3'!D5 -> 0 | F7: ='Pts P4'!D5 -> 0 | J7: =COUNTIF(C7:F7,"<>0") -> 1 | K7: =SUM(C7:F7) -> 0
A8: Savoir écouter | D8: ='Pts P2'!D6 -> 0 | E8: ='Pts P3'!D6 -> 0 | F8: ='Pts P4'!D6 -> 0 | J8: =COUNTIF(C8:F8,"<>0") -> 1 | K8: =SUM(C8:F8) -> 0
A9: TOTAL Français | B9: 100 | C9: ='Pts P1'!F7 -> 84.8 | D9: ='Pts P2'!F7 -> 76 | E9: ='Pts P3'!F7 -> 0 | F9: ='Pts P4'!F7 -> 0 | H9: 80.4 | I9: 100 | J9: =COUNTIF(C9:F9,"<>0") -> 2 | K9: =SUM(C9:F9) -> 160.8
A11: MATHEMATIQUES | C11: 1ère période | D11: 2ème période | E11: 3ème période | F11: 4ème période
A13: Savoir calculer | B13: 100 | C13: ='Pts P1'!F8 -> 78 | D13: ='Pts P2'!F8 -> 80.1 | E13: ='Pts P3'!F8 -> 0 | F13: ='Pts P4'!F8 -> 0 | H13: =K13/J13 -> 79.05 | I13: 100 | J13: =COUNTIF(C13:F13,"<>0") -> 2 | K13: =SUM(C13:F13) -> 158.1
A14: Savoir résoudre des problèmes | D14: ='Pts P2'!D9 -> 0 | E14: ='Pts P3'!D9 -> 0 | F14: ='Pts P4'!D9 -> 0 | J14: =COUNTIF(C14:F14,"<>0") -> 1 | K14: =SUM(C14:F14) -> 0
A15: Savoir mesurer | D15: ='Pts P2'!D10 -> 0 | E15: ='Pts P3'!D10 -> 0 | F15: ='Pts P4'!D10 -> 0 | J15: =COUNTIF(C15:F15,"<>0") -> 1 | K15: =SUM(C15:F15) -> 0
A16: Savoir structurer l'espace | D16: ='Pts P2'!D11 -> 0 | E16: ='Pts P3'!D11 -> 0 | F16: ='Pts P4'!D11 -> 0 | J16: =COUNTIF(C16:F16,"<>0") -> 1 | K16: =SUM(C16:F16) -> 0
A17: TOTAL Math | B17: 100 | C17: ='Pts P1'!F12 -> 78 | D17: ='Pts P2'!F12 -> 80.1 | E17: ='Pts P3'!F12 -> 0 | F17: ='Pts P4'!F12 -> 0 | H17: =K17/J17 -> 79.05 | I17: 100 | J17: =COUNTIF(C17:F17,"<>0") -> 2 | K17: =SUM(C17:F17) -> 158.1
A19: TOTAL GÉNÉRAL (Français et Mathématiques) en % | C19: ='Pts P1'!$F$13 -> 81.4 | D19: ='Pts P2'!$F$13 -> 78.05 | E19: ='Pts P3'!$F$13 -> 0 | F19: ='Pts P4'!$F$13 -> 0 | H19: =K19/J19 -> 79.725 | I19: sur | J19: =COUNTIF(C19:F19,"<>0") -> 2 | K19: =SUM(C19:F19) -> 159.45
A21: AUTRES BRANCHES | C21: 1ère période | D21: 2ème période | E21: 3ème période | F21: 4ème période
A23: Eveil | B23: 20 | C23: ='Pts P1'!F14 -> 16 | D23: ='Pts P2'!F14 -> 15 | E23: ='Pts P3'!F14 -> 0 | F23: ='Pts P4'!F14 -> 0 | H23: =K23/J23 -> 15.5 | I23: 20 | J23: =COUNTIF(C23:F23,"<>0") -> 2 | K23: =SUM(C23:F23) -> 31
A24: Education physiaue | B24: 10 | C24: ='Pts P1'!F15 -> 8.5 | D24: ='Pts P2'!F15 -> 6 | E24: ='Pts P3'!F15 -> 0 | F24: ='Pts P4'!F15 -> 0 | H24: 7.25 | I24: 10 | J24: 2 | K24: 14.5
A25: Education esthétique | B25: 10 | C25: ='Pts P1'!F16 -> 8 | D25: ='Pts P2'!F16 -> 8 | E25: ='Pts P3'!F16 -> 0 | F25: ='Pts P4'!F16 -> 0 | H25: 8 | I25: 10 | J25: 2 | K25: 16
A26: Religion / Morale / E.P.A | B26: 10 | C26: ='Pts P1'!F17 -> 8 | D26: ='Pts P2'!F17 -> 8 | E26: ='Pts P3'!F17 -> 0 | F26: ='Pts P4'!F17 -> 0 | H26: 8 | I26: 10 | J26: 2 | K26: 16
A27: Récitations et chants | B27: Ap. * | C27: ='Pts P1'!F18 -> B | D27: ='Pts P2'!F18 -> S | E27: ='Pts P3'!F18 -> 0 | F27: ='Pts P4'!F18 -> 0 | K27: 0
A28: Ecriture | B28: Ap. * | C28: ='Pts P1'!F19 -> B | D28: ='Pts P2'!F19 -> S | E28: ='Pts P3'!F19 -> 0 | F28: ='Pts P4'!F19 -> 0
A29: Ordre | B29: Ap. * | C29: ='Pts P1'!F20 -> S | D29: ='Pts P2'!F20 -> S | E29: ='Pts P3'!F20 -> 0 | F29: ='Pts P4'!F20 -> 0 | K29: 0
A30: Soin | B30: Ap. * | C30: ='Pts P1'!F21 -> B | D30: ='Pts P2'!F21 -> S | E30: ='Pts P3'!F21 -> 0 | F30: ='Pts P4'!F21 -> 0 | K30: 0
A31: Travail à Domicile | B31: Ap. * | C31: ='Pts P1'!F22 -> B | D31: ='Pts P2'!F22 -> S | E31: ='Pts P3'!F22 -> 0 | F31: ='Pts P4'!F22 -> 0
A32: ABSENCES (en 1/2 jours) | B32: nbr | C32: ='Pts P1'!F23 -> 11 | D32: ='Pts P2'!F23 -> 18 | E32: ='Pts P3'!F23 -> 0 | F32: ='Pts P4'!F23 -> 0 | H32: =SUM(C32:F32) -> 0 | I32: Nbr
A33: RETARDS | B33: nbr | C33: ='Pts P1'!F24 -> 0 | D33: ='Pts P2'!F24 -> 0 | E33: ='Pts P3'!F24 -> 0 | F33: ='Pts P4'!F24 -> 0 | H33: =SUM(C33:F33) -> 0 | I33: Nbr
A34: * TB : Très Bien, B = Bien, S = Satisfaisant, F = Faible, I = Insuffisant.
A36: DECISION DU CONSEIL DE CLASSE :
A37: ='Déc CC'!$B$2 -> 0
A38: N.B. Cette décision tient compte du travail journalier et des tests d'orientation
A39: de fin d'année (voir explication sur le feuillet jaune ci-joint !)
A40: TITULAIRE : DIRECTEUR : PARENTS :
A41: SIGNATURES : | C41: Alain Rensonnet
A42: Nom et prénom de l'élève : | B42: ='Pts P1'!$F$2 -> HANZE Kenny
A44: APPRECIATION DU COMPORTEMENT | C44: 1ère période | D44: 2ème période | E44: 3 ème période | F44: 4ème période
A46: 1. Carte(s) d’honneur : jaune(s) | C46: ='Pts P1'!F25 -> 6 | D46: ='Pts P2'!F25 -> 6 | E46: ='Pts P3'!F25 -> 0 | F46: ='Pts P4'!F25 -> 0 | H46: =SUM(C46:F46) -> 0
A47: 2. Carte(s) verte(s) | C47: ='Pts P1'!F26 -> 0 | D47: ='Pts P2'!F26 -> 1 | E47: ='Pts P3'!F26 -> 0 | F47: ='Pts P4'!F26 -> 0 | H47: =SUM(C47:F47) -> 0
A48: 3. Carte(s) orange(s) | C48: ='Pts P1'!F27 -> 0 | D48: ='Pts P2'!F27 -> 0 | E48: ='Pts P3'!F27 -> 0 | F48: ='Pts P4'!F27 -> 0 | H48: 0
A49: 4. Carte(s) rouge(s) | C49: ='Pts P1'!F28 -> 0 | D49: ='Pts P2'!F28 -> 0 | E49: ='Pts P3'!F28 -> 0 | F49: ='Pts P4'!F28 -> 0 | H49: 0
A50: 5. Carte(s) rouge(s) « Garderie » | C50: ='Pts P1'!F29 -> 0 | D50: ='Pts P2'!F29 -> 0 | E50: ='Pts P3'!F29 -> 0 | F50: ='Pts P4'!F29 -> 0 | H50: 0
A51: 6. Carte(s) rouge(s) « Tr. scolaire » | C51: ='Pts P1'!F30 -> 0 | D51: ='Pts P2'!F30 -> 0 | E51: ='Pts P3'!F30 -> 0 | F51: ='Pts P4'!F30 -> 0 | H51: 0
A52: 7. Carte(s) blanche(s) (retenues) | C52: ='Pts P1'!F31 -> 0 | D52: ='Pts P2'!F31 -> 0 | E52: ='Pts P3'!F31 -> 0 | F52: ='Pts P4'!F31 -> 0 | H52: 0
A54: COMMENTAIRES et CONSEILS :
A55: 1ère période :
A57: 2ème période :
A59: 3ème période :
A61: 4ème période :
A63: Signature des parents :

Sheet Elève (4)
A1: Nom et prénom de l'élève : | B1: ='Pts P1'!$G$2 -> LEJEUNE Vincent
A3: FRANCAIS | C3: 1ère période | D3: 2ème période | E3: 3ème période | F3: 4ème période | H3: MOYENNE
A5: Savoir lire | B5: 20 | C5: ='Pts P1'!G3 -> 15 | D5: ='Pts P2'!G3 -> 11 | E5: ='Pts P3'!G3 -> 0 | F5: ='Pts P4'!G3 -> 0 | H5: =K5/J5 -> 13 | I5: 20 | J5: =COUNTIF(C5:F5,"<>0") -> 2 | K5: =SUM(C5:F5) -> 26
A6: Savoir écrire | B6: 80 | C6: ='Pts P1'!G4 -> 60 | D6: ='Pts P2'!G4 -> 61.5 | E6: ='Pts P3'!G4 -> 0 | F6: ='Pts P4'!G4 -> 0 | H6: 60.75 | I6: 80 | J6: =COUNTIF(C6:F6,"<>0") -> 2 | K6: =SUM(C6:F6) -> 121.5
A7: Savoir parler | D7: ='Pts P2'!D5 -> 0 | E7: ='Pts P3'!D5 -> 0 | F7: ='Pts P4'!D5 -> 0 | J7: =COUNTIF(C7:F7,"<>0") -> 1 | K7: =SUM(C7:F7) -> 0
A8: Savoir écouter | D8: ='Pts P2'!D6 -> 0 | E8: ='Pts P3'!D6 -> 0 | F8: ='Pts P4'!D6 -> 0 | J8: =COUNTIF(C8:F8,"<>0") -> 1 | K8: =SUM(C8:F8) -> 0
A9: TOTAL Français | B9: 100 | C9: ='Pts P1'!G7 -> 75 | D9: ='Pts P2'!G7 -> 72.5 | E9: ='Pts P3'!G7 -> 0 | F9: ='Pts P4'!G7 -> 0 | H9: 73.75 | I9: 100 | J9: =COUNTIF(C9:F9,"<>0") -> 2 | K9: =SUM(C9:F9) -> 147.5
A11: MATHEMATIQUES | C11: 1ère période | D11: 2ème période | E11: 3ème période | F11: 4ème période
A13: Savoir calculer | B13: 100 | C13: ='Pts P1'!G8 -> 85 | D13: ='Pts P2'!G8 -> 69.2 | E13: ='Pts P3'!G8 -> 0 | F13: ='Pts P4'!G8 -> 0 | H13: =K13/J13 -> 77.1 | I13: 100 | J13: =COUNTIF(C13:F13,"<>0") -> 2 | K13: =SUM(C13:F13) -> 154.2
A14: Savoir résoudre des problèmes | D14: ='Pts P2'!D9 -> 0 | E14: ='Pts P3'!D9 -> 0 | F14: ='Pts P4'!D9 -> 0 | J14: =COUNTIF(C14:F14,"<>0") -> 1 | K14: =SUM(C14:F14) -> 0
A15: Savoir mesurer | D15: ='Pts P2'!D10 -> 0 | E15: ='Pts P3'!D10 -> 0 | F15: ='Pts P4'!D10 -> 0 | J15: =COUNTIF(C15:F15,"<>0") -> 1 | K15: =SUM(C15:F15) -> 0
A16: Savoir structurer l'espace | D16: ='Pts P2'!D11 -> 0 | E16: ='Pts P3'!D11 -> 0 | F16: ='Pts P4'!D11 -> 0 | J16: =COUNTIF(C16:F16,"<>0") -> 1 | K16: =SUM(C16:F16) -> 0
A17: TOTAL Math | B17: 100 | C17: ='Pts P1'!G12 -> 85 | D17: ='Pts P2'!G12 -> 69.2 | E17: ='Pts P3'!G12 -> 0 | F17: ='Pts P4'!G12 -> 0 | H17: =K17/J17 -> 77.1 | I17: 100 | J17: =COUNTIF(C17:F17,"<>0") -> 2 | K17: =SUM(C17:F17) -> 154.2
A19: TOTAL GÉNÉRAL (Français et Mathématiques) en % | C19: ='Pts P1'!$G$13 -> 80 | D19: ='Pts P2'!$G$13 -> 70.85 | E19: ='Pts P3'!$G$13 -> 0 | F19: ='Pts P4'!$G$13 -> 0 | H19: =K19/J19 -> 75.425 | I19: sur | J19: =COUNTIF(C19:F19,"<>0") -> 2 | K19: =SUM(C19:F19) -> 150.85
A21: AUTRES BRANCHES | C21: 1ère période | D21: 2ème période | E21: 3ème période | F21: 4ème période
A23: Eveil | B23: 20 | C23: ='Pts P1'!G14 -> 15 | D23: ='Pts P2'!G14 -> 13 | E23: ='Pts P3'!G14 -> 0 | F23: ='Pts P4'!G14 -> 0 | H23: =K23/J23 -> 14 | I23: 20 | J23: =COUNTIF(C23:F23,"<>0") -> 2 | K23: =SUM(C23:F23) -> 28
A24: Education physiaue | B24: 10 | C24: ='Pts P1'!G15 -> 8 | D24: ='Pts P2'!G15 -> 6.5 | E24: ='Pts P3'!G15 -> 0 | F24: ='Pts P4'!G15 -> 0 | H24: 7.25 | I24: 10 | J24: 2 | K24: 14.5
A25: Education esthétique | B25: 10 | C25: ='Pts P1'!G16 -> 8.5 | D25: ='Pts P2'!G16 -> 8.5 | E25: ='Pts P3'!G16 -> 0 | F25: ='Pts P4'!G16 -> 0 | H25: 8.5 | I25: 10 | J25: 2 | K25: 17
A26: Religion / Morale / E.P.A | B26: 10 | C26: ='Pts P1'!G17 -> 8 | D26: ='Pts P2'!G17 -> 8 | E26: ='Pts P3'!G17 -> 0 | F26: ='Pts P4'!G17 -> 0 | H26: 8 | I26: 10 | J26: 2 | K26: 16
A27: Récitations et chants | B27: Ap. * | C27: ='Pts P1'!G18 -> S | D27: ='Pts P2'!G18 -> I | E27: ='Pts P3'!G18 -> 0 | F27: ='Pts P4'!G18 -> 0 | K27: 0
A28: Ecriture | B28: Ap. * | C28: ='Pts P1'!G19 -> S | D28: ='Pts P2'!G19 -> I | E28: ='Pts P3'!G19 -> 0 | F28: ='Pts P4'!G19 -> 0
A29: Ordre | B29: Ap. * | C29: ='Pts P1'!G20 -> S | D29: ='Pts P2'!G20 -> S | E29: ='Pts P3'!G20 -> 0 | F29: ='Pts P4'!G20 -> 0 | K29: 0
A30: Soin | B30: Ap. * | C30: ='Pts P1'!G21 -> S | D30: ='Pts P2'!G21 -> I | E30: ='Pts P3'!G21 -> 0 | F30: ='Pts P4'!G21 -> 0 | K30: 0
A31: Travail à Domicile | B31: Ap. * | C31: ='Pts P1'!G22 -> B | D31: ='Pts P2'!G22 -> S | E31: ='Pts P3'!G22 -> 0 | F31: ='Pts P4'!G22 -> 0
A32: ABSENCES (en 1/2 jours) | B32: nbr | C32: ='Pts P1'!G23 -> 9 | D32: ='Pts P2'!G23 -> 17 | E32: ='Pts P3'!G23 -> 0 | F32: ='Pts P4'!G23 -> 0 | H32: =SUM(C32:F32) -> 0 | I32: Nbr
A33: RETARDS | B33: nbr | C33: ='Pts P1'!G24 -> 0 | D33: ='Pts P2'!G24 -> 1 | E33: ='Pts P3'!G24 -> 0 | F33: ='Pts P4'!G24 -> 0 | H33: =SUM(C33:F33) -> 0 | I33: Nbr
A34: * TB : Très Bien, B = Bien, S = Satisfaisant, F = Faible, I = Insuffisant.
A36: DECISION DU CONSEIL DE CLASSE :
A37: ='Déc CC'!$B$2 -> 0
A38: N.B. Cette décision tient compte du travail journalier et des tests d'orientation
A39: de fin d'année (voir explication sur le feuillet jaune ci-joint !)
A40: TITULAIRE : DIRECTEUR : PARENTS :
A41: SIGNATURES : | C41: Alain Rensonnet
A42: Nom et prénom de l'élève : | B42: ='Pts P1'!$G$2 -> LEJEUNE Vincent
A44: APPRECIATION DU COMPORTEMENT | C44: 1ère période | D44: 2ème période | E44: 3 ème période | F44: 4ème période
A46: 1. Carte(s) d’honneur : jaune(s) | C46: ='Pts P1'!G25 -> 4 | D46: ='Pts P2'!G25 -> 6 | E46: ='Pts P3'!G25 -> 0 | F46: ='Pts P4'!G25 -> 0 | H46: =SUM(C46:F46) -> 0
A47: 2. Carte(s) verte(s) | C47: ='Pts P1'!G26 -> 1 | D47: ='Pts P2'!G26 -> 1 | E47: ='Pts P3'!G26 -> 0 | F47: ='Pts P4'!G26 -> 0 | H47: =SUM(C47:F47) -> 0
A48: 3. Carte(s) orange(s) | C48: ='Pts P1'!G27 -> 1 | D48: ='Pts P2'!G27 -> 0 | E48: ='Pts P3'!G27 -> 0 | F48: ='Pts P4'!G27 -> 0 | H48: 0
A49: 4. Carte(s) rouge(s) | C49: ='Pts P1'!G28 -> 0 | D49: ='Pts P2'!G28 -> 0 | E49: ='Pts P3'!G28 -> 0 | F49: ='Pts P4'!G28 -> 0 | H49: 0
A50: 5. Carte(s) rouge(s) « Garderie » | C50: ='Pts P1'!G29 -> 0 | D50: ='Pts P2'!G29 -> 0 | E50: ='Pts P3'!G29 -> 0 | F50: ='Pts P4'!G29 -> 0 | H50: 0
A51: 6. Carte(s) rouge(s) « Tr. scolaire » | C51: ='Pts P1'!G30 -> 0 | D51: ='Pts P2'!G30 -> 0 | E51: ='Pts P3'!G30 -> 0 | F51: ='Pts P4'!G30 -> 0 | H51: 0
A52: 7. Carte(s) blanche(s) (retenues) | C52: ='Pts P1'!G31 -> 0 | D52: ='Pts P2'!G31 -> 0 | E52: ='Pts P3'!G31 -> 0 | F52: ='Pts P4'!G31 -> 0 | H52: 0
A54: COMMENTAIRES et CONSEILS :
A55: 1ère période :
A57: 2ème période :
A59: 3ème période :
A61: 4ème période :
A63: Signature des parents :

Sheet Elève (5)
A1: Nom et prénom de l'élève : | B1: ='Pts P1'!$H$2 -> MARÉCHAL Thomas
A3: FRANCAIS | C3: 1ère période | D3: 2ème période | E3: 3ème période | F3: 4ème période | H3: MOYENNE
A5: Savoir lire | B5: 20 | C5: ='Pts P1'!H3 -> 15 | D5: ='Pts P2'!H3 -> 12.8 | E5: ='Pts P3'!H3 -> 0 | F5: ='Pts P4'!H3 -> 0 | H5: =K5/J5 -> 13.9 | I5: 20 | J5: =COUNTIF(C5:F5,"<>0") -> 2 | K5: =SUM(C5:F5) -> 27.8
A6: Savoir écrire | B6: 80 | C6: ='Pts P1'!H4 -> 55 | D6: ='Pts P2'!H4 -> 65.7 | E6: ='Pts P3'!H4 -> 0 | F6: ='Pts P4'!H4 -> 0 | H6: 60.35 | I6: 80 | J6: =COUNTIF(C6:F6,"<>0") -> 2 | K6: =SUM(C6:F6) -> 120.7
A7: Savoir parler | D7: ='Pts P2'!D5 -> 0 | E7: ='Pts P3'!D5 -> 0 | F7: ='Pts P4'!D5 -> 0 | J7: =COUNTIF(C7:F7,"<>0") -> 1 | K7: =SUM(C7:F7) -> 0
A8: Savoir écouter | D8: ='Pts P2'!D6 -> 0 | E8: ='Pts P3'!D6 -> 0 | F8: ='Pts P4'!D6 -> 0 | J8: =COUNTIF(C8:F8,"<>0") -> 1 | K8: =SUM(C8:F8) -> 0
A9: TOTAL Français | B9: 100 | C9: ='Pts P1'!H7 -> 70 | D9: ='Pts P2'!H7 -> 78.5 | E9: ='Pts P3'!H7 -> 0 | F9: ='Pts P4'!H7 -> 0 | H9: 74.25 | I9: 100 | J9: =COUNTIF(C9:F9,"<>0") -> 2 | K9: =SUM(C9:F9) -> 148.5
A11: MATHEMATIQUES | C11: 1ère période | D11: 2ème période | E11: 3ème période | F11: 4ème période
A13: Savoir calculer | B13: 100 | C13: ='Pts P1'!H8 -> 89 | D13: ='Pts P2'!H8 -> 75.9 | E13: ='Pts P3'!H8 -> 0 | F13: ='Pts P4'!H8 -> 0 | H13: =K13/J13 -> 82.45 | I13: 100 | J13: =COUNTIF(C13:F13,"<>0") -> 2 | K13: =SUM(C13:F13) -> 164.9
A14: Savoir résoudre des problèmes | D14: ='Pts P2'!D9 -> 0 | E14: ='Pts P3'!D9 -> 0 | F14: ='Pts P4'!D9 -> 0 | J14: =COUNTIF(C14:F14,"<>0") -> 1 | K14: =SUM(C14:F14) -> 0
A15: Savoir mesurer | D15: ='Pts P2'!D10 -> 0 | E15: ='Pts P3'!D10 -> 0 | F15: ='Pts P4'!D10 -> 0 | J15: =COUNTIF(C15:F15,"<>0") -> 1 | K15: =SUM(C15:F15) -> 0
A16: Savoir structurer l'espace | D16: ='Pts P2'!D11 -> 0 | E16: ='Pts P3'!D11 -> 0 | F16: ='Pts P4'!D11 -> 0 | J16: =COUNTIF(C16:F16,"<>0") -> 1 | K16: =SUM(C16:F16) -> 0
A17: TOTAL Math | B17: 100 | C17: ='Pts P1'!H12 -> 89 | D17: ='Pts P2'!H12 -> 75.9 | E17: ='Pts P3'!H12 -> 0 | F17: ='Pts P4'!H12 -> 0 | H17: =K17/J17 -> 82.45 | I17: 100 | J17: =COUNTIF(C17:F17,"<>0") -> 2 | K17: =SUM(C17:F17) -> 164.9
A19: TOTAL GÉNÉRAL (Français et Mathématiques) en % | C19: ='Pts P1'!$H$13 -> 79.5 | D19: ='Pts P2'!$H$13 -> 77.2 | E19: ='Pts P3'!$H$13 -> 0 | F19: ='Pts P4'!$H$13 -> 0 | H19: =K19/J19 -> 78.35 | I19: sur | J19: =COUNTIF(C19:F19,"<>0") -> 2 | K19: =SUM(C19:F19) -> 156.7
A21: AUTRES BRANCHES | C21: 1ère période | D21: 2ème période | E21: 3ème période | F21: 4ème période
A23: Eveil | B23: 20 | C23: ='Pts P1'!H14 -> 17 | D23: ='Pts P2'!H14 -> 16 | E23: ='Pts P3'!H14 -> 0 | F23: ='Pts P4'!H14 -> 0 | H23: =K23/J23 -> 16.5 | I23: 20 | J23: =COUNTIF(C23:F23,"<>0") -> 2 | K23: =SUM(C23:F23) -> 33
A24: Education physiaue | B24: 10 | C24: ='Pts P1'!H15 -> 9 | D24: ='Pts P2'!H15 -> 9.5 | E24: ='Pts P3'!H15 -> 0 | F24: ='Pts P4'!H15 -> 0 | H24: 9.25 | I24: 10 | J24: 2 | K24: 18.5
A25: Education esthétique | B25: 10 | C25: ='Pts P1'!H16 -> 8.5 | D25: ='Pts P2'!H16 -> 8 | E25: ='Pts P3'!H16 -> 0 | F25: ='Pts P4'!H16 -> 0 | H25: 8.25 | I25: 10 | J25: 2 | K25: 16.5
A26: Religion / Morale / E.P.A | B26: 10 | C26: ='Pts P1'!H17 -> 8 | D26: ='Pts P2'!H17 -> 7 | E26: ='Pts P3'!H17 -> 0 | F26: ='Pts P4'!H17 -> 0 | H26: 7.5 | I26: 10 | J26: 2 | K26: 15
A27: Récitations et chants | B27: Ap. * | C27: ='Pts P1'!H18 -> B | D27: ='Pts P2'!H18 -> B | E27: ='Pts P3'!H18 -> 0 | F27: ='Pts P4'!H18 -> 0 | K27: 0
A28: Ecriture | B28: Ap. * | C28: ='Pts P1'!H19 -> S | D28: ='Pts P2'!H19 -> S | E28: ='Pts P3'!H19 -> 0 | F28: ='Pts P4'!H19 -> 0
A29: Ordre | B29: Ap. * | C29: ='Pts P1'!H20 -> S | D29: ='Pts P2'!H20 -> I | E29: ='Pts P3'!H20 -> 0 | F29: ='Pts P4'!H20 -> 0 | K29: 0
A30: Soin | B30: Ap. * | C30: ='Pts P1'!H21 -> S | D30: ='Pts P2'!H21 -> S | E30: ='Pts P3'!H21 -> 0 | F30: ='Pts P4'!H21 -> 0 | K30: 0
A31: Travail à Domicile | B31: Ap. * | C31: ='Pts P1'!H22 -> TB | D31: ='Pts P2'!H22 -> B | E31: ='Pts P3'!H22 -> 0 | F31: ='Pts P4'!H22 -> 0
A32: ABSENCES (en 1/2 jours) | B32: nbr | C32: ='Pts P1'!H23 -> 0 | D32: ='Pts P2'!H23 -> 3 | E32: ='Pts P3'!H23 -> 0 | F32: ='Pts P4'!H23 -> 0 | H32: =SUM(C32:F32) -> 0 | I32: Nbr
A33: RETARDS | B33: nbr | C33: ='Pts P1'!H24 -> 0 | D33: ='Pts P2'!H24 -> 0 | E33: ='Pts P3'!H24 -> 0 | F33: ='Pts P4'!H24 -> 0 | H33: =SUM(C33:F33) -> 0 | I33: Nbr
A34: * TB : Très Bien, B = Bien, S = Satisfaisant, F = Faible, I = Insuffisant.
A36: DECISION DU CONSEIL DE CLASSE :
A37: ='Déc CC'!$B$2 -> 0
A38: N.B. Cette décision tient compte du travail journalier et des tests d'orientation
A39: de fin d'année (voir explication sur le feuillet jaune ci-joint !)
A40: TITULAIRE : DIRECTEUR : PARENTS :
A41: SIGNATURES : | C41: Alain Rensonnet
A42: Nom et prénom de l'élève : | B42: ='Pts P1'!$H$2 -> MARÉCHAL Thomas
A44: APPRECIATION DU COMPORTEMENT | C44: 1ère période | D44: 2ème période | E44: 3 ème période | F44: 4ème période
A46: 1. Carte(s) d’honneur : jaune(s) | C46: ='Pts P1'!H25 -> 3 | D46: ='Pts P2'!H25 -> 3 | E46: ='Pts P3'!H25 -> 0 | F46: ='Pts P4'!H25 -> 0 | H46: =SUM(C46:F46) -> 0
A47: 2. Carte(s) verte(s) | C47: ='Pts P1'!H26 -> 3 | D47: ='Pts P2'!H26 -> 2 | E47: ='Pts P3'!H26 -> 0 | F47: ='Pts P4'!H26 -> 0 | H47: =SUM(C47:F47) -> 0
A48: 3. Carte(s) orange(s) | C48: ='Pts P1'!H27 -> 1 | D48: ='Pts P2'!H27 -> 1 | E48: ='Pts P3'!H27 -> 0 | F48: ='Pts P4'!H27 -> 0 | H48: 0
A49: 4. Carte(s) rouge(s) | C49: ='Pts P1'!H28 -> 1 | D49: ='Pts P2'!H28 -> 1 | E49: ='Pts P3'!H28 -> 0 | F49: ='Pts P4'!H28 -> 0 | H49: 0
A50: 5. Carte(s) rouge(s) « Garderie » | C50: ='Pts P1'!H29 -> 0 | D50: ='Pts P2'!H29 -> 0 | E50: ='Pts P3'!H29 -> 0 | F50: ='Pts P4'!H29 -> 0 | H50: 0
A51: 6. Carte(s) rouge(s) « Tr. scolaire » | C51: ='Pts P1'!H30 -> 2 | D51: ='Pts P2'!H30 -> 0 | E51: ='Pts P3'!H30 -> 0 | F51: ='Pts P4'!H30 -> 0 | H51: 0
A52: 7. Carte(s) blanche(s) (retenues) | C52: ='Pts P1'!H31 -> 1 | D52: ='Pts P2'!H31 -> 0 | E52: ='Pts P3'!H31 -> 0 | F52: ='Pts P4'!H31 -> 0 | H52: 0
A54: COMMENTAIRES et CONSEILS :
A55: 1ère période :
A57: 2ème période :
A59: 3ème période :
A61: 4ème période :
A63: Signature des parents :

Sheet Elève (6)
A1: Nom et prénom de l'élève : | B1: ='Pts P1'!$I$2 -> RENARD Ethan
A3: FRANCAIS | C3: 1ère période | D3: 2ème période | E3: 3ème période | F3: 4ème période | H3: MOYENNE
A5: Savoir lire | B5: 20 | C5: ='Pts P1'!I3 -> 15 | D5: ='Pts P2'!I3 -> 14.9 | E5: ='Pts P3'!I3 -> 0 | F5: ='Pts P4'!I3 -> 0 | H5: =K5/J5 -> 14.95 | I5: 20 | J5: =COUNTIF(C5:F5,"<>0") -> 2 | K5: =SUM(C5:F5) -> 29.9
A6: Savoir écrire | B6: 80 | C6: ='Pts P1'!I4 -> 63.4 | D6: ='Pts P2'!I4 -> 61.8 | E6: ='Pts P3'!I4 -> 0 | F6: ='Pts P4'!I4 -> 0 | H6: 62.6 | I6: 80 | J6: =COUNTIF(C6:F6,"<>0") -> 2 | K6: =SUM(C6:F6) -> 125.2
A7: Savoir parler | D7: ='Pts P2'!D5 -> 0 | E7: ='Pts P3'!D5 -> 0 | F7: ='Pts P4'!D5 -> 0 | J7: =COUNTIF(C7:F7,"<>0") -> 1 | K7: =SUM(C7:F7) -> 0
A8: Savoir écouter | D8: ='Pts P2'!D6 -> 0 | E8: ='Pts P3'!D6 -> 0 | F8: ='Pts P4'!D6 -> 0 | J8: =COUNTIF(C8:F8,"<>0") -> 1 | K8: =SUM(C8:F8) -> 0
A9: TOTAL Français | B9: 100 | C9: ='Pts P1'!I7 -> 78.4 | D9: ='Pts P2'!I7 -> 76.7 | E9: ='Pts P3'!I7 -> 0 | F9: ='Pts P4'!I7 -> 0 | H9: 77.55 | I9: 100 | J9: =COUNTIF(C9:F9,"<>0") -> 2 | K9: =SUM(C9:F9) -> 155.1
A11: MATHEMATIQUES | C11: 1ère période | D11: 2ème période | E11: 3ème période | F11: 4ème période
A13: Savoir calculer | B13: 100 | C13: ='Pts P1'!I8 -> 80 | D13: ='Pts P2'!I8 -> 75.6 | E13: ='Pts P3'!I8 -> 0 | F13: ='Pts P4'!I8 -> 0 | H13: =K13/J13 -> 77.8 | I13: 100 | J13: =COUNTIF(C13:F13,"<>0") -> 2 | K13: =SUM(C13:F13) -> 155.6
A14: Savoir résoudre des problèmes | D14: ='Pts P2'!D9 -> 0 | E14: ='Pts P3'!D9 -> 0 | F14: ='Pts P4'!D9 -> 0 | J14: =COUNTIF(C14:F14,"<>0") -> 1 | K14: =SUM(C14:F14) -> 0
A15: Savoir mesurer | D15: ='Pts P2'!D10 -> 0 | E15: ='Pts P3'!D10 -> 0 | F15: ='Pts P4'!D10 -> 0 | J15: =COUNTIF(C15:F15,"<>0") -> 1 | K15: =SUM(C15:F15) -> 0
A16: Savoir structurer l'espace | D16: ='Pts P2'!D11 -> 0 | E16: ='Pts P3'!D11 -> 0 | F16: ='Pts P4'!D11 -> 0 | J16: =COUNTIF(C16:F16,"<>0") -> 1 | K16: =SUM(C16:F16) -> 0
A17: TOTAL Math | B17: 100 | C17: ='Pts P1'!I12 -> 80 | D17: ='Pts P2'!I12 -> 75.6 | E17: ='Pts P3'!I12 -> 0 | F17: ='Pts P4'!I12 -> 0 | H17: =K17/J17 -> 77.8 | I17: 100 | J17: =COUNTIF(C17:F17,"<>0") -> 2 | K17: =SUM(C17:F17) -> 155.6
A19: TOTAL GÉNÉRAL (Français et Mathématiques) en % | C19: ='Pts P1'!$I$13 -> 79.2 | D19: ='Pts P2'!$I$13 -> 76.15 | E19: ='Pts P3'!$I$13 -> 0 | F19: ='Pts P4'!$I$13 -> 0 | H19: =K19/J19 -> 77.675 | I19: sur | J19: =COUNTIF(C19:F19,"<>0") -> 2 | K19: =SUM(C19:F19) -> 155.35
A21: AUTRES BRANCHES | C21: 1ère période | D21: 2ème période | E21: 3ème période | F21: 4ème période
A23: Eveil | B23: 20 | C23: ='Pts P1'!I14 -> 18 | D23: ='Pts P2'!I14 -> 16 | E23: ='Pts P3'!I14 -> 0 | F23: ='Pts P4'!I14 -> 0 | H23: =K23/J23 -> 17 | I23: 20 | J23: =COUNTIF(C23:F23,"<>0") -> 2 | K23: =SUM(C23:F23) -> 34
A24: Education physiaue | B24: 10 | C24: ='Pts P1'!I15 -> 9 | D24: ='Pts P2'!I15 -> 7 | E24: ='Pts P3'!I15 -> 0 | F24: ='Pts P4'!I15 -> 0 | H24: 8 | I24: 10 | J24: 2 | K24: 16
A25: Education esthétique | B25: 10 | C25: ='Pts P1'!I16 -> 8 | D25: ='Pts P2'!I16 -> 8.5 | E25: ='Pts P3'!I16 -> 0 | F25: ='Pts P4'!I16 -> 0 | H25: 8.25 | I25: 10 | J25: 2 | K25: 16.5
A26: Religion / Morale / E.P.A | B26: 10 | C26: ='Pts P1'!I17 -> 8 | D26: ='Pts P2'!I17 -> 7 | E26: ='Pts P3'!I17 -> 0 | F26: ='Pts P4'!I17 -> 0 | H26: 7.5 | I26: 10 | J26: 2 | K26: 15
A27: Récitations et chants | B27: Ap. * | C27: ='Pts P1'!I18 -> B | D27: ='Pts P2'!I18 -> B | E27: ='Pts P3'!I18 -> 0 | F27: ='Pts P4'!I18 -> 0 | K27: 0
A28: Ecriture | B28: Ap. * | C28: ='Pts P1'!I19 -> B | D28: ='Pts P2'!I19 -> TB | E28: ='Pts P3'!I19 -> 0 | F28: ='Pts P4'!I19 -> 0
A29: Ordre | B29: Ap. * | C29: ='Pts P1'!I20 -> S | D29: ='Pts P2'!I20 -> B | E29: ='Pts P3'!I20 -> 0 | F29: ='Pts P4'!I20 -> 0 | K29: 0
A30: Soin | B30: Ap. * | C30: ='Pts P1'!I21 -> B | D30: ='Pts P2'!I21 -> S | E30: ='Pts P3'!I21 -> 0 | F30: ='Pts P4'!I21 -> 0 | K30: 0
A31: Travail à Domicile | B31: Ap. * | C31: ='Pts P1'!I22 -> TB | D31: ='Pts P2'!I22 -> B | E31: ='Pts P3'!I22 -> 0 | F31: ='Pts P4'!I22 -> 0
A32: ABSENCES (en 1/2 jours) | B32: nbr | C32: ='Pts P1'!I23 -> 7 | D32: ='Pts P2'!I23 -> 9 | E32: ='Pts P3'!I23 -> 0 | F32: ='Pts P4'!I23 -> 0 | H32: =SUM(C32:F32) -> 0 | I32: Nbr
A33: RETARDS | B33: nbr | C33: ='Pts P1'!I24 -> 0 | D33: ='Pts P2'!I24 -> 0 | E33: ='Pts P3'!I24 -> 0 | F33: ='Pts P4'!I24 -> 0 | H33: =SUM(C33:F33) -> 0 | I33: Nbr
A34: * TB : Très Bien, B = Bien, S = Satisfaisant, F = Faible, I = Insuffisant.
A36: DECISION DU CONSEIL DE CLASSE :
A37: ='Déc CC'!$B$2 -> 0
A38: N.B. Cette décision tient compte du travail journalier et des tests d'orientation
A39: de fin d'année (voir explication sur le feuillet jaune ci-joint !)
A40: TITULAIRE : DIRECTEUR : PARENTS :
A41: SIGNATURES : | C41: Alain Rensonnet
A42: Nom et prénom de l'élève : | B42: ='Pts P1'!$I$2 -> RENARD Ethan
A44: APPRECIATION DU COMPORTEMENT | C44: 1ère période | D44: 2ème période | E44: 3 ème période | F44: 4ème période
A46: 1. Carte(s) d’honneur : jaune(s) | C46: ='Pts P1'!I25 -> 0 | D46: ='Pts P2'!I25 -> 2 | E46: ='Pts P3'!I25 -> 0 | F46: ='Pts P4'!I25 -> 0 | H46: =SUM(C46:F46) -> 0
A47: 2. Carte(s) verte(s) | C47: ='Pts P1'!I26 -> 0 | D47: ='Pts P2'!I26 -> 2 | E47: ='Pts P3'!I26 -> 0 | F47: ='Pts P4'!I26 -> 0 | H47: =SUM(C47:F47) -> 0
A48: 3. Carte(s) orange(s) | C48: ='Pts P1'!I27 -> 0 | D48: ='Pts P2'!I27 -> 2 | E48: ='Pts P3'!I27 -> 0 | F48: ='Pts P4'!I27 -> 0 | H48: 0
A49: 4. Carte(s) rouge(s) | C49: ='Pts P1'!I28 -> 0 | D49: ='Pts P2'!I28 -> 1 | E49: ='Pts P3'!I28 -> 0 | F49: ='Pts P4'!I28 -> 0 | H49: 0
A50: 5. Carte(s) rouge(s) « Garderie » | C50: ='Pts P1'!I29 -> 0 | D50: ='Pts P2'!I29 -> 0 | E50: ='Pts P3'!I29 -> 0 | F50: ='Pts P4'!I29 -> 0 | H50: 0
A51: 6. Carte(s) rouge(s) « Tr. scolaire » | C51: ='Pts P1'!I30 -> 0 | D51: ='Pts P2'!I30 -> 0 | E51: ='Pts P3'!I30 -> 0 | F51: ='Pts P4'!I30 -> 0 | H51: 0
A52: 7. Carte(s) blanche(s) (retenues) | C52: ='Pts P1'!I31 -> 0 | D52: ='Pts P2'!I31 -> 1 | E52: ='Pts P3'!I31 -> 0 | F52: ='Pts P4'!I31 -> 0 | H52: 0
A54: COMMENTAIRES et CONSEILS :
A55: 1ère période :
A57: 2ème période :
A59: 3ème période :
A61: 4ème période :
A63: Signature des parents :

Sheet Elève (7)
A1: Nom et prénom de l'élève : | B1: ='Pts P1'!$J$2 -> TAHIRI Sefer
A3: FRANCAIS | C3: 1ère période | D3: 2ème période | E3: 3ème période | F3: 4ème période | H3: MOYENNE
A5: Savoir lire | B5: 20 | C5: ='Pts P1'!J3 -> 0 | D5: ='Pts P2'!J3 -> 13.8 | E5: ='Pts P3'!J3 -> 0 | F5: ='Pts P4'!J3 -> 0 | H5: =K5/J5 -> 13.8 | I5: 20 | J5: =COUNTIF(C5:F5,"<>0") -> 1 | K5: =SUM(C5:F5) -> 13.8
A6: Savoir écrire | B6: 80 | C6: ='Pts P1'!J4 -> 0 | D6: ='Pts P2'!J4 -> 51.8 | E6: ='Pts P3'!J4 -> 0 | F6: ='Pts P4'!J4 -> 0 | H6: 51.8 | I6: 80 | J6: =COUNTIF(C6:F6,"<>0") -> 1 | K6: =SUM(C6:F6) -> 51.8
A7: Savoir parler | D7: ='Pts P2'!D5 -> 0 | E7: ='Pts P3'!D5 -> 0 | F7: ='Pts P4'!D5 -> 0 | J7: =COUNTIF(C7:F7,"<>0") -> 1 | K7: =SUM(C7:F7) -> 0
A8: Savoir écouter | D8: ='Pts P2'!D6 -> 0 | E8: ='Pts P3'!D6 -> 0 | F8: ='Pts P4'!D6 -> 0 | J8: =COUNTIF(C8:F8,"<>0") -> 1 | K8: =SUM(C8:F8) -> 0
A9: TOTAL Français | B9: 100 | C9: ='Pts P1'!J7 -> 0 | D9: ='Pts P2'!J7 -> 65.6 | E9: ='Pts P3'!J7 -> 0 | F9: ='Pts P4'!J7 -> 0 | H9: 65.6 | I9: 100 | J9: =COUNTIF(C9:F9,"<>0") -> 1 | K9: =SUM(C9:F9) -> 65.6
A11: MATHEMATIQUES | C11: 1ère période | D11: 2ème période | E11: 3ème période | F11: 4ème période
A13: Savoir calculer | B13: 100 | C13: ='Pts P1'!J8 -> 0 | D13: ='Pts P2'!J8 -> 87.9 | E13: ='Pts P3'!J8 -> 0 | F13: ='Pts P4'!J8 -> 0 | H13: =K13/J13 -> 87.9 | I13: 100 | J13: =COUNTIF(C13:F13,"<>0") -> 1 | K13: =SUM(C13:F13) -> 87.9
A14: Savoir résoudre des problèmes | D14: ='Pts P2'!D9 -> 0 | E14: ='Pts P3'!D9 -> 0 | F14: ='Pts P4'!D9 -> 0 | J14: =COUNTIF(C14:F14,"<>0") -> 1 | K14: =SUM(C14:F14) -> 0
A15: Savoir mesurer | D15: ='Pts P2'!D10 -> 0 | E15: ='Pts P3'!D10 -> 0 | F15: ='Pts P4'!D10 -> 0 | J15: =COUNTIF(C15:F15,"<>0") -> 1 | K15: =SUM(C15:F15) -> 0
A16: Savoir structurer l'espace | D16: ='Pts P2'!D11 -> 0 | E16: ='Pts P3'!D11 -> 0 | F16: ='Pts P4'!D11 -> 0 | J16: =COUNTIF(C16:F16,"<>0") -> 1 | K16: =SUM(C16:F16) -> 0
A17: TOTAL Math | B17: 100 | C17: ='Pts P1'!J12 -> 0 | D17: ='Pts P2'!J12 -> 87.9 | E17: ='Pts P3'!J12 -> 0 | F17: ='Pts P4'!J12 -> 0 | H17: =K17/J17 -> 87.9 | I17: 100 | J17: =COUNTIF(C17:F17,"<>0") -> 1 | K17: =SUM(C17:F17) -> 87.9
A19: TOTAL GÉNÉRAL (Français et Mathématiques) en % | C19: ='Pts P1'!$J$13 -> 0 | D19: ='Pts P2'!$J$13 -> 76.75 | E19: ='Pts P3'!$J$13 -> 0 | F19: ='Pts P4'!$J$13 -> 0 | H19: =K19/J19 -> 76.75 | I19: sur | J19: =COUNTIF(C19:F19,"<>0") -> 1 | K19: =SUM(C19:F19) -> 76.75
A21: AUTRES BRANCHES | C21: 1ère période | D21: 2ème période | E21: 3ème période | F21: 4ème période
A23: Eveil | B23: 20 | C23: ='Pts P1'!J14 -> 0 | D23: ='Pts P2'!J14 -> 16 | E23: ='Pts P3'!J14 -> 0 | F23: ='Pts P4'!J14 -> 0 | H23: =K23/J23 -> 16 | I23: 20 | J23: =COUNTIF(C23:F23,"<>0") -> 1 | K23: =SUM(C23:F23) -> 16
A24: Education physiaue | B24: 10 | C24: ='Pts P1'!J15 -> 0 | D24: ='Pts P2'!J15 -> 7 | E24: ='Pts P3'!J15 -> 0 | F24: ='Pts P4'!J15 -> 0 | H24: 7 | I24: 10 | J24: 1 | K24: 7
A25: Education esthétique | B25: 10 | C25: ='Pts P1'!J16 -> 0 | D25: ='Pts P2'!J16 -> 8.5 | E25: ='Pts P3'!J16 -> 0 | F25: ='Pts P4'!J16 -> 0 | H25: 8.5 | I25: 10 | J25: 1 | K25: 8.5
A26: Religion / Morale / E.P.A | B26: 10 | C26: ='Pts P1'!J17 -> 0 | D26: ='Pts P2'!J17 -> 8 | E26: ='Pts P3'!J17 -> 0 | F26: ='Pts P4'!J17 -> 0 | H26: 8 | I26: 10 | J26: 1 | K26: 8
A27: Récitations et chants | B27: Ap. * | C27: ='Pts P1'!J18 -> 0 | D27: ='Pts P2'!J18 -> TB | E27: ='Pts P3'!J18 -> 0 | F27: ='Pts P4'!J18 -> 0 | K27: 0
A28: Ecriture | B28: Ap. * | C28: ='Pts P1'!J19 -> 0 | D28: ='Pts P2'!J19 -> TB | E28: ='Pts P3'!J19 -> 0 | F28: ='Pts P4'!J19 -> 0
A29: Ordre | B29: Ap. * | C29: ='Pts P1'!J20 -> 0 | D29: ='Pts P2'!J20 -> B | E29: ='Pts P3'!J20 -> 0 | F29: ='Pts P4'!J20 -> 0 | K29: 0
A30: Soin | B30: Ap. * | C30: ='Pts P1'!J21 -> 0 | D30: ='Pts P2'!J21 -> B | E30: ='Pts P3'!J21 -> 0 | F30: ='Pts P4'!J21 -> 0 | K30: 0
A31: Travail à Domicile | B31: Ap. * | C31: ='Pts P1'!J22 -> 0 | D31: ='Pts P2'!J22 -> TB | E31: ='Pts P3'!J22 -> 0 | F31: ='Pts P4'!J22 -> 0
A32: ABSENCES (en 1/2 jours) | B32: nbr | C32: ='Pts P1'!J23 -> 0 | D32: ='Pts P2'!J23 -> 0 | E32: ='Pts P3'!J23 -> 0 | F32: ='Pts P4'!J23 -> 0 | H32: =SUM(C32:F32) -> 0 | I32: Nbr
A33: RETARDS | B33: nbr | C33: ='Pts P1'!J24 -> 0 | D33: ='Pts P2'!J24 -> 0 | E33: ='Pts P3'!J24 -> 0 | F33: ='Pts P4'!J24 -> 0 | H33: =SUM(C33:F33) -> 0 | I33: Nbr
A34: * TB : Très Bien, B = Bien, S = Satisfaisant, F = Faible, I = Insuffisant.
A36: DECISION DU CONSEIL DE CLASSE :
A37: ='Déc CC'!$B$2 -> 0
A38: N.B. Cette décision tient compte du travail journalier et des tests d'orientation
A39: de fin d'année (voir explication sur le feuillet jaune ci-joint !)
A40: TITULAIRE : DIRECTEUR : PARENTS :
A41: SIGNATURES : | C41: Alain Rensonnet
A42: Nom et prénom de l'élève : | B42: ='Pts P1'!$J$2 -> TAHIRI Sefer
A44: APPRECIATION DU COMPORTEMENT | C44: 1ère période | D44: 2ème période | E44: 3 ème période | F44: 4ème période
A46: 1. Carte(s) d’honneur : jaune(s) | C46: ='Pts P1'!J25 -> 0 | D46: ='Pts P2'!J25 -> 4 | E46: ='Pts P3'!J25 -> 0 | F46: ='Pts P4'!J25 -> 0 | H46: =SUM(C46:F46) -> 0
A47: 2. Carte(s) verte(s) | C47: ='Pts P1'!J26 -> 0 | D47: ='Pts P2'!J26 -> 0 | E47: ='Pts P3'!J26 -> 0 | F47: ='Pts P4'!J26 -> 0 | H47: =SUM(C47:F47) -> 0
A48: 3. Carte(s) orange(s) | C48: ='Pts P1'!J27 -> 0 | D48: ='Pts P2'!J27 -> 0 | E48: ='Pts P3'!J27 -> 0 | F48: ='Pts P4'!J27 -> 0 | H48: 0
A49: 4. Carte(s) rouge(s) | C49: ='Pts P1'!J28 -> 0 | D49: ='Pts P2'!J28 -> 0 | E49: ='Pts P3'!J28 -> 0 | F49: ='Pts P4'!J28 -> 0 | H49: 0
A50: 5. Carte(s) rouge(s) « Garderie » | C50: ='Pts P1'!J29 -> 0 | D50: ='Pts P2'!J29 -> 0 | E50: ='Pts P3'!J29 -> 0 | F50: ='Pts P4'!J29 -> 0 | H50: 0
A51: 6. Carte(s) rouge(s) « Tr. scolaire » | C51: ='Pts P1'!J30 -> 0 | D51: ='Pts P2'!J30 -> 0 | E51: ='Pts P3'!J30 -> 0 | F51: ='Pts P4'!J30 -> 0 | H51: 0
A52: 7. Carte(s) blanche(s) (retenues) | C52: ='Pts P1'!J31 -> 0 | D52: ='Pts P2'!J31 -> 0 | E52: ='Pts P3'!J31 -> 0 | F52: ='Pts P4'!J31 -> 0 | H52: 0
A54: COMMENTAIRES et CONSEILS :
A55: 1ère période :
A57: 2ème période :
A59: 3ème période :
A61: 4ème période :
A63: Signature des parents :

Sheet Elève (8)
A1: Nom et prénom de l'élève : | B1: ='Pts P1'!$K$2 -> 0
A3: FRANCAIS | C3: 1ère période | D3: 2ème période | E3: 3ème période | F3: 4ème période | H3: MOYENNE
A5: Savoir lire | B5: 20 | C5: ='Pts P1'!K3 -> 0 | D5: ='Pts P2'!K3 -> 0 | E5: ='Pts P3'!K3 -> 0 | F5: ='Pts P4'!K3 -> 0 | H5: =K5/J5 ->  | I5: 20 | J5: =COUNTIF(C5:F5,"<>0") -> 0 | K5: =SUM(C5:F5) -> 0
A6: Savoir écrire | B6: 80 | C6: ='Pts P1'!K4 -> 0 | D6: ='Pts P2'!K4 -> 0 | E6: ='Pts P3'!K4 -> 0 | F6: ='Pts P4'!K4 -> 0 | I6: 80 | J6: =COUNTIF(C6:F6,"<>0") -> 0 | K6: =SUM(C6:F6) -> 0
A7: Savoir parler | D7: ='Pts P2'!D5 -> 0 | E7: ='Pts P3'!D5 -> 0 | F7: ='Pts P4'!D5 -> 0 | J7: =COUNTIF(C7:F7,"<>0") -> 1 | K7: =SUM(C7:F7) -> 0
A8: Savoir écouter | D8: ='Pts P2'!D6 -> 0 | E8: ='Pts P3'!D6 -> 0 | F8: ='Pts P4'!D6 -> 0 | J8: =COUNTIF(C8:F8,"<>0") -> 1 | K8: =SUM(C8:F8) -> 0
A9: TOTAL Français | B9: 100 | C9: ='Pts P1'!K7 -> 0 | D9: ='Pts P2'!K7 -> 0 | E9: ='Pts P3'!K7 -> 0 | F9: ='Pts P4'!K7 -> 0 | I9: 100 | J9: =COUNTIF(C9:F9,"<>0") -> 0 | K9: =SUM(C9:F9) -> 0
A11: MATHEMATIQUES | C11: 1ère période | D11: 2ème période | E11: 3ème période | F11: 4ème période
A13: Savoir calculer | B13: 100 | C13: ='Pts P1'!K8 -> 0 | D13: ='Pts P2'!K8 -> 0 | E13: ='Pts P3'!K8 -> 0 | F13: ='Pts P4'!K8 -> 0 | H13: =K13/J13 ->  | I13: 100 | J13: =COUNTIF(C13:F13,"<>0") -> 0 | K13: =SUM(C13:F13) -> 0
A14: Savoir résoudre des problèmes | D14: ='Pts P2'!D9 -> 0 | E14: ='Pts P3'!D9 -> 0 | F14: ='Pts P4'!D9 -> 0 | J14: =COUNTIF(C14:F14,"<>0") -> 1 | K14: =SUM(C14:F14) -> 0
A15: Savoir mesurer | D15: ='Pts P2'!D10 -> 0 | E15: ='Pts P3'!D10 -> 0 | F15: ='Pts P4'!D10 -> 0 | J15: =COUNTIF(C15:F15,"<>0") -> 1 | K15: =SUM(C15:F15) -> 0
A16: Savoir structurer l'espace | D16: ='Pts P2'!D11 -> 0 | E16: ='Pts P3'!D11 -> 0 | F16: ='Pts P4'!D11 -> 0 | J16: =COUNTIF(C16:F16,"<>0") -> 1 | K16: =SUM(C16:F16) -> 0
A17: TOTAL Math | B17: 100 | C17: ='Pts P1'!K12 -> 0 | D17: ='Pts P2'!K12 -> 0 | E17: ='Pts P3'!K12 -> 0 | F17: ='Pts P4'!K12 -> 0 | H17: =K17/J17 ->  | I17: 100 | J17: =COUNTIF(C17:F17,"<>0") -> 0 | K17: =SUM(C17:F17) -> 0
A19: TOTAL GÉNÉRAL (Français et Mathématiques) en % | C19: ='Pts P1'!$K$13 -> 0 | D19: ='Pts P2'!$K$13 -> 0 | E19: ='Pts P3'!$K$13 -> 0 | F19: ='Pts P4'!$K$13 -> 0 | H19: =K19/J19 ->  | I19: sur | J19: =COUNTIF(C19:F19,"<>0") -> 0 | K19: =SUM(C19:F19) -> 0
A21: AUTRES BRANCHES | C21: 1ère période | D21: 2ème période | E21: 3ème période | F21: 4ème période
A23: Eveil | B23: 20 | C23: ='Pts P1'!K14 -> 0 | D23: ='Pts P2'!K14 -> 0 | E23: ='Pts P3'!K14 -> 0 | F23: ='Pts P4'!K14 -> 0 | H23: =K23/J23 ->  | I23: 20 | J23: =COUNTIF(C23:F23,"<>0") -> 0 | K23: =SUM(C23:F23) -> 0
A24: Education physiaue | B24: 10 | C24: ='Pts P1'!K15 -> 0 | D24: ='Pts P2'!K15 -> 0 | E24: ='Pts P3'!K15 -> 0 | F24: ='Pts P4'!K15 -> 0 | I24: 10 | J24: 0 | K24: 0
A25: Education esthétique | B25: 10 | C25: ='Pts P1'!K16 -> 0 | D25: ='Pts P2'!K16 -> 0 | E25: ='Pts P3'!K16 -> 0 | F25: ='Pts P4'!K16 -> 0 | I25: 10 | J25: 0 | K25: 0
A26: Religion / Morale / E.P.A | B26: 10 | C26: ='Pts P1'!K17 -> 0 | D26: ='Pts P2'!K17 -> 0 | E26: ='Pts P3'!K17 -> 0 | F26: ='Pts P4'!K17 -> 0 | I26: 10 | J26: 0 | K26: 0
A27: Récitations et chants | B27: Ap. * | C27: ='Pts P1'!K18 -> 0 | D27: ='Pts P2'!K18 -> 0 | E27: ='Pts P3'!K18 -> 0 | F27: ='Pts P4'!K18 -> 0 | K27: 0
A28: Ecriture | B28: Ap. * | C28: ='Pts P1'!K19 -> 0 | D28: ='Pts P2'!K19 -> 0 | E28: ='Pts P3'!K19 -> 0 | F28: ='Pts P4'!K19 -> 0
A29: Ordre | B29: Ap. * | C29: ='Pts P1'!K20 -> 0 | D29: ='Pts P2'!K20 -> 0 | E29: ='Pts P3'!K20 -> 0 | F29: ='Pts P4'!K20 -> 0 | K29: 0
A30: Soin | B30: Ap. * | C30: ='Pts P1'!K21 -> 0 | D30: ='Pts P2'!K21 -> 0 | E30: ='Pts P3'!K21 -> 0 | F30: ='Pts P4'!K21 -> 0 | K30: 0
A31: Travail à Domicile | B31: Ap. * | C31: ='Pts P1'!K22 -> 0 | D31: ='Pts P2'!K22 -> 0 | E31: ='Pts P3'!K22 -> 0 | F31: ='Pts P4'!K22 -> 0
A32: ABSENCES (en 1/2 jours) | B32: nbr | C32: ='Pts P1'!K23 -> 0 | D32: ='Pts P2'!K23 -> 0 | E32: ='Pts P3'!K23 -> 0 | F32: ='Pts P4'!K23 -> 0 | H32: =SUM(C32:F32) -> 0 | I32: Nbr
A33: RETARDS | B33: nbr | C33: ='Pts P1'!K24 -> 0 | D33: ='Pts P2'!K24 -> 0 | E33: ='Pts P3'!K24 -> 0 | F33: ='Pts P4'!K24 -> 0 | H33: =SUM(C33:F33) -> 0 | I33: Nbr
A34: * TB : Très Bien, B = Bien, S = Satisfaisant, F = Faible, I = Insuffisant.
A36: DECISION DU CONSEIL DE CLASSE :
A37: ='Déc CC'!$B$2 -> 0
A38: N.B. Cette décision tient compte du travail journalier et des tests d'orientation
A39: de fin d'année (voir explication sur le feuillet jaune ci-joint !)
A40: TITULAIRE : DIRECTEUR : PARENTS :
A41: SIGNATURES : | C41: Alain Rensonnet
A42: Nom et prénom de l'élève : | B42: ='Pts P1'!$K$2 -> 0
A44: APPRECIATION DU COMPORTEMENT | C44: 1ère période | D44: 2ème période | E44: 3 ème période | F44: 4ème période
A46: 1. Carte(s) d’honneur : jaune(s) | C46: ='Pts P1'!K25 -> 0 | D46: ='Pts P2'!K25 -> 0 | E46: ='Pts P3'!K25 -> 0 | F46: ='Pts P4'!K25 -> 0 | H46: =SUM(C46:F46) -> 0
A47: 2. Carte(s) verte(s) | C47: ='Pts P1'!K26 -> 0 | D47: ='Pts P2'!K26 -> 0 | E47: ='Pts P3'!K26 -> 0 | F47: ='Pts P4'!K26 -> 0 | H47: =SUM(C47:F47) -> 0
A48: 3. Carte(s) orange(s) | C48: ='Pts P1'!K27 -> 0 | D48: ='Pts P2'!K27 -> 0 | E48: ='Pts P3'!K27 -> 0 | F48: ='Pts P4'!K27 -> 0 | H48: 0
A49: 4. Carte(s) rouge(s) | C49: ='Pts P1'!K28 -> 0 | D49: ='Pts P2'!K28 -> 0 | E49: ='Pts P3'!K28 -> 0 | F49: ='Pts P4'!K28 -> 0 | H49: 0
A50: 5. Carte(s) rouge(s) « Garderie » | C50: ='Pts P1'!K29 -> 0 | D50: ='Pts P2'!K29 -> 0 | E50: ='Pts P3'!K29 -> 0 | F50: ='Pts P4'!K29 -> 0 | H50: 0
A51: 6. Carte(s) rouge(s) « Tr. scolaire » | C51: ='Pts P1'!K30 -> 0 | D51: ='Pts P2'!K30 -> 0 | E51: ='Pts P3'!K30 -> 0 | F51: ='Pts P4'!K30 -> 0 | H51: 0
A52: 7. Carte(s) blanche(s) (retenues) | C52: ='Pts P1'!K31 -> 0 | D52: ='Pts P2'!K31 -> 0 | E52: ='Pts P3'!K31 -> 0 | F52: ='Pts P4'!K31 -> 0 | H52: 0
A54: COMMENTAIRES et CONSEILS :
A55: 1ère période :
A57: 2ème période :
A59: 3ème période :
A61: 4ème période :
A63: Signature des parents :

Sheet Elève (9)
A1: Nom et prénom de l'élève : | B1: ='Pts P1'!$L$2 -> 0
A3: FRANCAIS | C3: 1ère période | D3: 2ème période | E3: 3ème période | F3: 4ème période | H3: MOYENNE
A5: Savoir lire | B5: 20 | C5: ='Pts P1'!L3 -> 0 | D5: ='Pts P2'!L3 -> 0 | E5: ='Pts P3'!L3 -> 0 | F5: ='Pts P4'!L3 -> 0 | H5: =K5/J5 ->  | I5: 20 | J5: =COUNTIF(C5:F5,"<>0") -> 0 | K5: =SUM(C5:F5) -> 0
A6: Savoir écrire | B6: 80 | C6: ='Pts P1'!L4 -> 0 | D6: ='Pts P2'!L4 -> 0 | E6: ='Pts P3'!L4 -> 0 | F6: ='Pts P4'!L4 -> 0 | I6: 80 | J6: =COUNTIF(C6:F6,"<>0") -> 0 | K6: =SUM(C6:F6) -> 0
A7: Savoir parler | D7: ='Pts P2'!D5 -> 0 | E7: ='Pts P3'!D5 -> 0 | F7: ='Pts P4'!D5 -> 0 | J7: =COUNTIF(C7:F7,"<>0") -> 1 | K7: =SUM(C7:F7) -> 0
A8: Savoir écouter | D8: ='Pts P2'!D6 -> 0 | E8: ='Pts P3'!D6 -> 0 | F8: ='Pts P4'!D6 -> 0 | J8: =COUNTIF(C8:F8,"<>0") -> 1 | K8: =SUM(C8:F8) -> 0
A9: TOTAL Français | B9: 100 | C9: ='Pts P1'!L7 -> 0 | D9: ='Pts P2'!L7 -> 0 | E9: ='Pts P3'!L7 -> 0 | F9: ='Pts P4'!L7 -> 0 | I9: 100 | J9: =COUNTIF(C9:F9,"<>0") -> 0 | K9: =SUM(C9:F9) -> 0
A11: MATHEMATIQUES | C11: 1ère période | D11: 2ème période | E11: 3ème période | F11: 4ème période
A13: Savoir calculer | B13: 100 | C13: ='Pts P1'!L8 -> 0 | D13: ='Pts P2'!L8 -> 0 | E13: ='Pts P3'!L8 -> 0 | F13: ='Pts P4'!L8 -> 0 | H13: =K13/J13 ->  | I13: 100 | J13: =COUNTIF(C13:F13,"<>0") -> 0 | K13: =SUM(C13:F13) -> 0
A14: Savoir résoudre des problèmes | D14: ='Pts P2'!D9 -> 0 | E14: ='Pts P3'!D9 -> 0 | F14: ='Pts P4'!D9 -> 0 | J14: =COUNTIF(C14:F14,"<>0") -> 1 | K14: =SUM(C14:F14) -> 0
A15: Savoir mesurer | D15: ='Pts P2'!D10 -> 0 | E15: ='Pts P3'!D10 -> 0 | F15: ='Pts P4'!D10 -> 0 | J15: =COUNTIF(C15:F15,"<>0") -> 1 | K15: =SUM(C15:F15) -> 0
A16: Savoir structurer l'espace | D16: ='Pts P2'!D11 -> 0 | E16: ='Pts P3'!D11 -> 0 | F16: ='Pts P4'!D11 -> 0 | J16: =COUNTIF(C16:F16,"<>0") -> 1 | K16: =SUM(C16:F16) -> 0
A17: TOTAL Math | B17: 100 | C17: ='Pts P1'!L12 -> 0 | D17: ='Pts P2'!L12 -> 0 | E17: ='Pts P3'!L12 -> 0 | F17: ='Pts P4'!L12 -> 0 | H17: =K17/J17 ->  | I17: 100 | J17: =COUNTIF(C17:F17,"<>0") -> 0 | K17: =SUM(C17:F17) -> 0
A19: TOTAL GÉNÉRAL (Français et Mathématiques) en % | C19: ='Pts P1'!$L$13 -> 0 | D19: ='Pts P2'!$L$13 -> 0 | E19: ='Pts P3'!$L$13 -> 0 | F19: ='Pts P4'!$L$13 -> 0 | H19: =K19/J19 ->  | I19: sur | J19: =COUNTIF(C19:F19,"<>0") -> 0 | K19: =SUM(C19:F19) -> 0
A21: AUTRES BRANCHES | C21: 1ère période | D21: 2ème période | E21: 3ème période | F21: 4ème période
A23: Eveil | B23: 20 | C23: ='Pts P1'!L14 -> 0 | D23: ='Pts P2'!L14 -> 0 | E23: ='Pts P3'!L14 -> 0 | F23: ='Pts P4'!L14 -> 0 | H23: =K23/J23 ->  | I23: 20 | J23: =COUNTIF(C23:F23,"<>0") -> 0 | K23: =SUM(C23:F23) -> 0
A24: Education physiaue | B24: 10 | C24: ='Pts P1'!L15 -> 0 | D24: ='Pts P2'!L15 -> 0 | E24: ='Pts P3'!L15 -> 0 | F24: ='Pts P4'!L15 -> 0 | I24: 10 | J24: 0 | K24: 0
A25: Education esthétique | B25: 10 | C25: ='Pts P1'!L16 -> 0 | D25: ='Pts P2'!L16 -> 0 | E25: ='Pts P3'!L16 -> 0 | F25: ='Pts P4'!L16 -> 0 | I25: 10 | J25: 0 | K25: 0
A26: Religion / Morale / E.P.A | B26: 10 | C26: ='Pts P1'!L17 -> 0 | D26: ='Pts P2'!L17 -> 0 | E26: ='Pts P3'!L17 -> 0 | F26: ='Pts P4'!L17 -> 0 | I26: 10 | J26: 0 | K26: 0
A27: Récitations et chants | B27: Ap. * | C27: ='Pts P1'!L18 -> 0 | D27: ='Pts P2'!L18 -> 0 | E27: ='Pts P3'!L18 -> 0 | F27: ='Pts P4'!L18 -> 0 | K27: 0
A28: Ecriture | B28: Ap. * | C28: ='Pts P1'!L19 -> 0 | D28: ='Pts P2'!L19 -> 0 | E28: ='Pts P3'!L19 -> 0 | F28: ='Pts P4'!L19 -> 0
A29: Ordre | B29: Ap. * | C29: ='Pts P1'!L20 -> 0 | D29: ='Pts P2'!L20 -> 0 | E29: ='Pts P3'!L20 -> 0 | F29: ='Pts P4'!L20 -> 0 | K29: 0
A30: Soin | B30: Ap. * | C30: ='Pts P1'!L21 -> 0 | D30: ='Pts P2'!L21 -> 0 | E30: ='Pts P3'!L21 -> 0 | F30: ='Pts P4'!L21 -> 0 | K30: 0
A31: Travail à Domicile | B31: Ap. * | C31: ='Pts P1'!L22 -> 0 | D31: ='Pts P2'!L22 -> 0 | E31: ='Pts P3'!L22 -> 0 | F31: ='Pts P4'!L22 -> 0
A32: ABSENCES (en 1/2 jours) | B32: nbr | C32: ='Pts P1'!L23 -> 0 | D32: ='Pts P2'!L23 -> 0 | E32: ='Pts P3'!L23 -> 0 | F32: ='Pts P4'!L23 -> 0 | H32: =SUM(C32:F32) -> 0 | I32: Nbr
A33: RETARDS | B33: nbr | C33: ='Pts P1'!L24 -> 0 | D33: ='Pts P2'!L24 -> 0 | E33: ='Pts P3'!L24 -> 0 | F33: ='Pts P4'!L24 -> 0 | H33: =SUM(C33:F33) -> 0 | I33: Nbr
A34: * TB : Très Bien, B = Bien, S = Satisfaisant, F = Faible, I = Insuffisant.
A36: DECISION DU CONSEIL DE CLASSE :
A37: ='Déc CC'!$B$2 -> 0
A38: N.B. Cette décision tient compte du travail journalier et des tests d'orientation
A39: de fin d'année (voir explication sur le feuillet jaune ci-joint !)
A40: TITULAIRE : DIRECTEUR : PARENTS :
A41: SIGNATURES : | C41: Alain Rensonnet
A42: Nom et prénom de l'élève : | B42: ='Pts P1'!$L$2 -> 0
A44: APPRECIATION DU COMPORTEMENT | C44: 1ère période | D44: 2ème période | E44: 3 ème période | F44: 4ème période
A46: 1. Carte(s) d’honneur : jaune(s) | C46: ='Pts P1'!L25 -> 0 | D46: ='Pts P2'!L25 -> 0 | E46: ='Pts P3'!L25 -> 0 | F46: ='Pts P4'!L25 -> 0 | H46: =SUM(C46:F46) -> 0
A47: 2. Carte(s) verte(s) | C47: ='Pts P1'!L26 -> 0 | D47: ='Pts P2'!L26 -> 0 | E47: ='Pts P3'!L26 -> 0 | F47: ='Pts P4'!L26 -> 0 | H47: =SUM(C47:F47) -> 0
A48: 3. Carte(s) orange(s) | C48: ='Pts P1'!L27 -> 0 | D48: ='Pts P2'!L27 -> 0 | E48: ='Pts P3'!L27 -> 0 | F48: ='Pts P4'!L27 -> 0 | H48: 0
A49: 4. Carte(s) rouge(s) | C49: ='Pts P1'!L28 -> 0 | D49: ='Pts P2'!L28 -> 0 | E49: ='Pts P3'!L28 -> 0 | F49: ='Pts P4'!L28 -> 0 | H49: 0
A50: 5. Carte(s) rouge(s) « Garderie » | C50: ='Pts P1'!L29 -> 0 | D50: ='Pts P2'!L29 -> 0 | E50: ='Pts P3'!L29 -> 0 | F50: ='Pts P4'!L29 -> 0 | H50: 0
A51: 6. Carte(s) rouge(s) « Tr. scolaire » | C51: ='Pts P1'!L30 -> 0 | D51: ='Pts P2'!L30 -> 0 | E51: ='Pts P3'!L30 -> 0 | F51: ='Pts P4'!L30 -> 0 | H51: 0
A52: 7. Carte(s) blanche(s) (retenues) | C52: ='Pts P1'!L31 -> 0 | D52: ='Pts P2'!L31 -> 0 | E52: ='Pts P3'!L31 -> 0 | F52: ='Pts P4'!L31 -> 0 | H52: 0
A54: COMMENTAIRES et CONSEILS :
A55: 1ère période :
A57: 2ème période :
A59: 3ème période :
A61: 4ème période :
A63: Signature des parents :

Sheet Elève (10)
A1: Nom et prénom de l'élève : | B1: ='Pts P1'!$M$2 -> 0
A3: FRANCAIS | C3: 1ère période | D3: 2ème période | E3: 3ème période | F3: 4ème période | H3: MOYENNE
A5: Savoir lire | B5: 20 | C5: ='Pts P1'!M3 -> 0 | D5: ='Pts P2'!M3 -> 0 | E5: ='Pts P3'!M3 -> 0 | F5: ='Pts P4'!M3 -> 0 | H5: =K5/J5 ->  | I5: 20 | J5: =COUNTIF(C5:F5,"<>0") -> 0 | K5: =SUM(C5:F5) -> 0
A6: Savoir écrire | B6: 80 | C6: ='Pts P1'!M4 -> 0 | D6: ='Pts P2'!M4 -> 0 | E6: ='Pts P3'!M4 -> 0 | F6: ='Pts P4'!M4 -> 0 | I6: 80 | J6: =COUNTIF(C6:F6,"<>0") -> 0 | K6: =SUM(C6:F6) -> 0
A7: Savoir parler | D7: ='Pts P2'!D5 -> 0 | E7: ='Pts P3'!D5 -> 0 | F7: ='Pts P4'!D5 -> 0 | J7: =COUNTIF(C7:F7,"<>0") -> 1 | K7: =SUM(C7:F7) -> 0
A8: Savoir écouter | D8: ='Pts P2'!D6 -> 0 | E8: ='Pts P3'!D6 -> 0 | F8: ='Pts P4'!D6 -> 0 | J8: =COUNTIF(C8:F8,"<>0") -> 1 | K8: =SUM(C8:F8) -> 0
A9: TOTAL Français | B9: 100 | C9: ='Pts P1'!M7 -> 0 | D9: ='Pts P2'!M7 -> 0 | E9: ='Pts P3'!M7 -> 0 | F9: ='Pts P4'!M7 -> 0 | I9: 100 | J9: =COUNTIF(C9:F9,"<>0") -> 0 | K9: =SUM(C9:F9) -> 0
A11: MATHEMATIQUES | C11: 1ère période | D11: 2ème période | E11: 3ème période | F11: 4ème période
A13: Savoir calculer | B13: 100 | C13: ='Pts P1'!M8 -> 0 | D13: ='Pts P2'!M8 -> 0 | E13: ='Pts P3'!M8 -> 0 | F13: ='Pts P4'!M8 -> 0 | H13: =K13/J13 ->  | I13: 100 | J13: =COUNTIF(C13:F13,"<>0") -> 0 | K13: =SUM(C13:F13) -> 0
A14: Savoir résoudre des problèmes | D14: ='Pts P2'!D9 -> 0 | E14: ='Pts P3'!D9 -> 0 | F14: ='Pts P4'!D9 -> 0 | J14: =COUNTIF(C14:F14,"<>0") -> 1 | K14: =SUM(C14:F14) -> 0
A15: Savoir mesurer | D15: ='Pts P2'!D10 -> 0 | E15: ='Pts P3'!D10 -> 0 | F15: ='Pts P4'!D10 -> 0 | J15: =COUNTIF(C15:F15,"<>0") -> 1 | K15: =SUM(C15:F15) -> 0
A16: Savoir structurer l'espace | D16: ='Pts P2'!D11 -> 0 | E16: ='Pts P3'!D11 -> 0 | F16: ='Pts P4'!D11 -> 0 | J16: =COUNTIF(C16:F16,"<>0") -> 1 | K16: =SUM(C16:F16) -> 0
A17: TOTAL Math | B17: 100 | C17: ='Pts P1'!M12 -> 0 | D17: ='Pts P2'!M12 -> 0 | E17: ='Pts P3'!M12 -> 0 | F17: ='Pts P4'!M12 -> 0 | H17: =K17/J17 ->  | I17: 100 | J17: =COUNTIF(C17:F17,"<>0") -> 0 | K17: =SUM(C17:F17) -> 0
A19: TOTAL GÉNÉRAL (Français et Mathématiques) en % | C19: ='Pts P1'!$M$13 -> 0 | D19: ='Pts P2'!$M$13 -> 0 | E19: ='Pts P3'!$M$13 -> 0 | F19: ='Pts P4'!$M$13 -> 0 | H19: =K19/J19 ->  | I19: sur | J19: =COUNTIF(C19:F19,"<>0") -> 0 | K19: =SUM(C19:F19) -> 0
A21: AUTRES BRANCHES | C21: 1ère période | D21: 2ème période | E21: 3ème période | F21: 4ème période
A23: Eveil | B23: 20 | C23: ='Pts P1'!M14 -> 0 | D23: ='Pts P2'!M14 -> 0 | E23: ='Pts P3'!M14 -> 0 | F23: ='Pts P4'!M14 -> 0 | H23: =K23/J23 ->  | I23: 20 | J23: =COUNTIF(C23:F23,"<>0") -> 0 | K23: =SUM(C23:F23) -> 0
A24: Education physiaue | B24: 10 | C24: ='Pts P1'!M15 -> 0 | D24: ='Pts P2'!M15 -> 0 | E24: ='Pts P3'!M15 -> 0 | F24: ='Pts P4'!M15 -> 0 | I24: 10 | J24: 0 | K24: 0
A25: Education esthétique | B25: 10 | C25: ='Pts P1'!M16 -> 0 | D25: ='Pts P2'!M16 -> 0 | E25: ='Pts P3'!M16 -> 0 | F25: ='Pts P4'!M16 -> 0 | I25: 10 | J25: 0 | K25: 0
A26: Religion / Morale / E.P.A | B26: 10 | C26: ='Pts P1'!M17 -> 0 | D26: ='Pts P2'!M17 -> 0 | E26: ='Pts P3'!M17 -> 0 | F26: ='Pts P4'!M17 -> 0 | I26: 10 | J26: 0 | K26: 0
A27: Récitations et chants | B27: Ap. * | C27: ='Pts P1'!M18 -> 0 | D27: ='Pts P2'!M18 -> 0 | E27: ='Pts P3'!M18 -> 0 | F27: ='Pts P4'!M18 -> 0 | K27: 0
A28: Ecriture | B28: Ap. * | C28: ='Pts P1'!M19 -> 0 | D28: ='Pts P2'!M19 -> 0 | E28: ='Pts P3'!M19 -> 0 | F28: ='Pts P4'!M19 -> 0
A29: Ordre | B29: Ap. * | C29: ='Pts P1'!M20 -> 0 | D29: ='Pts P2'!M20 -> 0 | E29: ='Pts P3'!M20 -> 0 | F29: ='Pts P4'!M20 -> 0 | K29: 0
A30: Soin | B30: Ap. * | C30: ='Pts P1'!M21 -> 0 | D30: ='Pts P2'!M21 -> 0 | E30: ='Pts P3'!M21 -> 0 | F30: ='Pts P4'!M21 -> 0 | K30: 0
A31: Travail à Domicile | B31: Ap. * | C31: ='Pts P1'!M22 -> 0 | D31: ='Pts P2'!M22 -> 0 | E31: ='Pts P3'!M22 -> 0 | F31: ='Pts P4'!M22 -> 0
A32: ABSENCES (en 1/2 jours) | B32: nbr | C32: ='Pts P1'!M23 -> 0 | D32: ='Pts P2'!M23 -> 0 | E32: ='Pts P3'!M23 -> 0 | F32: ='Pts P4'!M23 -> 0 | H32: =SUM(C32:F32) -> 0 | I32: Nbr
A33: RETARDS | B33: nbr | C33: ='Pts P1'!M24 -> 0 | D33: ='Pts P2'!M24 -> 0 | E33: ='Pts P3'!M24 -> 0 | F33: ='Pts P4'!M24 -> 0 | H33: =SUM(C33:F33) -> 0 | I33: Nbr
A34: * TB : Très Bien, B = Bien, S = Satisfaisant, F = Faible, I = Insuffisant.
A36: DECISION DU CONSEIL DE CLASSE :
A37: ='Déc CC'!$B$2 -> 0
A38: N.B. Cette décision tient compte du travail journalier et des tests d'orientation
A39: de fin d'année (voir explication sur le feuillet jaune ci-joint !)
A40: TITULAIRE : DIRECTEUR : PARENTS :
A41: SIGNATURES : | C41: Alain Rensonnet
A42: Nom et prénom de l'élève : | B42: ='Pts P1'!$M$2 -> 0
A44: APPRECIATION DU COMPORTEMENT | C44: 1ère période | D44: 2ème période | E44: 3 ème période | F44: 4ème période
A46: 1. Carte(s) d’honneur : jaune(s) | C46: ='Pts P1'!M25 -> 0 | D46: ='Pts P2'!M25 -> 0 | E46: ='Pts P3'!M25 -> 0 | F46: ='Pts P4'!M25 -> 0 | H46: =SUM(C46:F46) -> 0
A47: 2. Carte(s) verte(s) | C47: ='Pts P1'!M26 -> 0 | D47: ='Pts P2'!M26 -> 0 | E47: ='Pts P3'!M26 -> 0 | F47: ='Pts P4'!M26 -> 0 | H47: =SUM(C47:F47) -> 0
A48: 3. Carte(s) orange(s) | C48: ='Pts P1'!M27 -> 0 | D48: ='Pts P2'!M27 -> 0 | E48: ='Pts P3'!M27 -> 0 | F48: ='Pts P4'!M27 -> 0 | H48: 0
A49: 4. Carte(s) rouge(s) | C49: ='Pts P1'!M28 -> 0 | D49: ='Pts P2'!M28 -> 0 | E49: ='Pts P3'!M28 -> 0 | F49: ='Pts P4'!M28 -> 0 | H49: 0
A50: 5. Carte(s) rouge(s) « Garderie » | C50: ='Pts P1'!M29 -> 0 | D50: ='Pts P2'!M29 -> 0 | E50: ='Pts P3'!M29 -> 0 | F50: ='Pts P4'!M29 -> 0 | H50: 0
A51: 6. Carte(s) rouge(s) « Tr. scolaire » | C51: ='Pts P1'!M30 -> 0 | D51: ='Pts P2'!M30 -> 0 | E51: ='Pts P3'!M30 -> 0 | F51: ='Pts P4'!M30 -> 0 | H51: 0
A52: 7. Carte(s) blanche(s) (retenues) | C52: ='Pts P1'!M31 -> 0 | D52: ='Pts P2'!M31 -> 0 | E52: ='Pts P3'!M31 -> 0 | F52: ='Pts P4'!M31 -> 0 | H52: 0
A54: COMMENTAIRES et CONSEILS :
A55: 1ère période :
A57: 2ème période :
A59: 3ème période :
A61: 4ème période :
A63: Signature des parents :

Sheet Elève (11)
A1: Nom et prénom de l'élève : | B1: ='Pts P1'!$N$2 -> 0
A3: FRANCAIS | C3: 1ère période | D3: 2ème période | E3: 3ème période | F3: 4ème période | H3: MOYENNE
A5: Savoir lire | B5: 20 | C5: ='Pts P1'!N3 -> 0 | D5: ='Pts P2'!N3 -> 0 | E5: ='Pts P3'!N3 -> 0 | F5: ='Pts P4'!N3 -> 0 | H5: =K5/J5 ->  | I5: 20 | J5: =COUNTIF(C5:F5,"<>0") -> 0 | K5: =SUM(C5:F5) -> 0
A6: Savoir écrire | B6: 80 | C6: ='Pts P1'!N4 -> 0 | D6: ='Pts P2'!N4 -> 0 | E6: ='Pts P3'!N4 -> 0 | F6: ='Pts P4'!N4 -> 0 | I6: 80 | J6: =COUNTIF(C6:F6,"<>0") -> 0 | K6: =SUM(C6:F6) -> 0
A7: Savoir parler | D7: ='Pts P2'!D5 -> 0 | E7: ='Pts P3'!D5 -> 0 | F7: ='Pts P4'!D5 -> 0 | J7: =COUNTIF(C7:F7,"<>0") -> 1 | K7: =SUM(C7:F7) -> 0
A8: Savoir écouter | D8: ='Pts P2'!D6 -> 0 | E8: ='Pts P3'!D6 -> 0 | F8: ='Pts P4'!D6 -> 0 | J8: =COUNTIF(C8:F8,"<>0") -> 1 | K8: =SUM(C8:F8) -> 0
A9: TOTAL Français | B9: 100 | C9: ='Pts P1'!N7 -> 0 | D9: ='Pts P2'!N7 -> 0 | E9: ='Pts P3'!N7 -> 0 | F9: ='Pts P4'!N7 -> 0 | I9: 100 | J9: =COUNTIF(C9:F9,"<>0") -> 0 | K9: =SUM(C9:F9) -> 0
A11: MATHEMATIQUES | C11: 1ère période | D11: 2ème période | E11: 3ème période | F11: 4ème période
A13: Savoir calculer | B13: 100 | C13: ='Pts P1'!N8 -> 0 | D13: ='Pts P2'!N8 -> 0 | E13: ='Pts P3'!N8 -> 0 | F13: ='Pts P4'!N8 -> 0 | H13: =K13/J13 ->  | I13: 100 | J13: =COUNTIF(C13:F13,"<>0") -> 0 | K13: =SUM(C13:F13) -> 0
A14: Savoir résoudre des problèmes | D14: ='Pts P2'!D9 -> 0 | E14: ='Pts P3'!D9 -> 0 | F14: ='Pts P4'!D9 -> 0 | J14: =COUNTIF(C14:F14,"<>0") -> 1 | K14: =SUM(C14:F14) -> 0
A15: Savoir mesurer | D15: ='Pts P2'!D10 -> 0 | E15: ='Pts P3'!D10 -> 0 | F15: ='Pts P4'!D10 -> 0 | J15: =COUNTIF(C15:F15,"<>0") -> 1 | K15: =SUM(C15:F15) -> 0
A16: Savoir structurer l'espace | D16: ='Pts P2'!D11 -> 0 | E16: ='Pts P3'!D11 -> 0 | F16: ='Pts P4'!D11 -> 0 | J16: =COUNTIF(C16:F16,"<>0") -> 1 | K16: =SUM(C16:F16) -> 0
A17: TOTAL Math | B17: 100 | C17: ='Pts P1'!N12 -> 0 | D17: ='Pts P2'!N12 -> 0 | E17: ='Pts P3'!N12 -> 0 | F17: ='Pts P4'!N12 -> 0 | H17: =K17/J17 ->  | I17: 100 | J17: =COUNTIF(C17:F17,"<>0") -> 0 | K17: =SUM(C17:F17) -> 0
A19: TOTAL GÉNÉRAL (Français et Mathématiques) en % | C19: ='Pts P1'!$N$13 -> 0 | D19: ='Pts P2'!$N$13 -> 0 | E19: ='Pts P3'!$N$13 -> 0 | F19: ='Pts P4'!$N$13 -> 0 | H19: =K19/J19 ->  | I19: sur | J19: =COUNTIF(C19:F19,"<>0") -> 0 | K19: =SUM(C19:F19) -> 0
A21: AUTRES BRANCHES | C21: 1ère période | D21: 2ème période | E21: 3ème période | F21: 4ème période
A23: Eveil | B23: 20 | C23: ='Pts P1'!N14 -> 0 | D23: ='Pts P2'!N14 -> 0 | E23: ='Pts P3'!N14 -> 0 | F23: ='Pts P4'!N14 -> 0 | H23: =K23/J23 ->  | I23: 20 | J23: =COUNTIF(C23:F23,"<>0") -> 0 | K23: =SUM(C23:F23) -> 0
A24: Education physiaue | B24: 10 | C24: ='Pts P1'!N15 -> 0 | D24: ='Pts P2'!N15 -> 0 | E24: ='Pts P3'!N15 -> 0 | F24: ='Pts P4'!N15 -> 0 | I24: 10 | J24: 0 | K24: 0
A25: Education esthétique | B25: 10 | C25: ='Pts P1'!N16 -> 0 | D25: ='Pts P2'!N16 -> 0 | E25: ='Pts P3'!N16 -> 0 | F25: ='Pts P4'!N16 -> 0 | I25: 10 | J25: 0 | K25: 0
A26: Religion / Morale / E.P.A | B26: 10 | C26: ='Pts P1'!N17 -> 0 | D26: ='Pts P2'!N17 -> 0 | E26: ='Pts P3'!N17 -> 0 | F26: ='Pts P4'!N17 -> 0 | I26: 10 | J26: 0 | K26: 0
A27: Récitations et chants | B27: Ap. * | C27: ='Pts P1'!N18 -> 0 | D27: ='Pts P2'!N18 -> 0 | E27: ='Pts P3'!N18 -> 0 | F27: ='Pts P4'!N18 -> 0 | K27: 0
A28: Ecriture | B28: Ap. * | C28: ='Pts P1'!N19 -> 0 | D28: ='Pts P2'!N19 -> 0 | E28: ='Pts P3'!N19 -> 0 | F28: ='Pts P4'!N19 -> 0
A29: Ordre | B29: Ap. * | C29: ='Pts P1'!N20 -> 0 | D29: ='Pts P2'!N20 -> 0 | E29: ='Pts P3'!N20 -> 0 | F29: ='Pts P4'!N20 -> 0 | K29: 0
A30: Soin | B30: Ap. * | C30: ='Pts P1'!N21 -> 0 | D30: ='Pts P2'!N21 -> 0 | E30: ='Pts P3'!N21 -> 0 | F30: ='Pts P4'!N21 -> 0 | K30: 0
A31: Travail à Domicile | B31: Ap. * | C31: ='Pts P1'!N22 -> 0 | D31: ='Pts P2'!N22 -> 0 | E31: ='Pts P3'!N22 -> 0 | F31: ='Pts P4'!N22 -> 0
A32: ABSENCES (en 1/2 jours) | B32: nbr | C32: ='Pts P1'!N23 -> 0 | D32: ='Pts P2'!N23 -> 0 | E32: ='Pts P3'!N23 -> 0 | F32: ='Pts P4'!N23 -> 0 | H32: =SUM(C32:F32) -> 0 | I32: Nbr
A33: RETARDS | B33: nbr | C33: ='Pts P1'!N24 -> 0 | D33: ='Pts P2'!N24 -> 0 | E33: ='Pts P3'!N24 -> 0 | F33: ='Pts P4'!N24 -> 0 | H33: =SUM(C33:F33) -> 0 | I33: Nbr
A34: * TB : Très Bien, B = Bien, S = Satisfaisant, F = Faible, I = Insuffisant.
A36: DECISION DU CONSEIL DE CLASSE :
A37: ='Déc CC'!$B$2 -> 0
A38: N.B. Cette décision tient compte du travail journalier et des tests d'orientation
A39: de fin d'année (voir explication sur le feuillet jaune ci-joint !)
A40: TITULAIRE : DIRECTEUR : PARENTS :
A41: SIGNATURES : | C41: Alain Rensonnet
A42: Nom et prénom de l'élève : | B42: ='Pts P1'!$N$2 -> 0
A44: APPRECIATION DU COMPORTEMENT | C44: 1ère période | D44: 2ème période | E44: 3 ème période | F44: 4ème période
A46: 1. Carte(s) d’honneur : jaune(s) | C46: ='Pts P1'!N25 -> 0 | D46: ='Pts P2'!N25 -> 0 | E46: ='Pts P3'!N25 -> 0 | F46: ='Pts P4'!N25 -> 0 | H46: =SUM(C46:F46) -> 0
A47: 2. Carte(s) verte(s) | C47: ='Pts P1'!N26 -> 0 | D47: ='Pts P2'!N26 -> 0 | E47: ='Pts P3'!N26 -> 0 | F47: ='Pts P4'!N26 -> 0 | H47: =SUM(C47:F47) -> 0
A48: 3. Carte(s) orange(s) | C48: ='Pts P1'!N27 -> 0 | D48: ='Pts P2'!N27 -> 0 | E48: ='Pts P3'!N27 -> 0 | F48: ='Pts P4'!N27 -> 0 | H48: 0
A49: 4. Carte(s) rouge(s) | C49: ='Pts P1'!N28 -> 0 | D49: ='Pts P2'!N28 -> 0 | E49: ='Pts P3'!N28 -> 0 | F49: ='Pts P4'!N28 -> 0 | H49: 0
A50: 5. Carte(s) rouge(s) « Garderie » | C50: ='Pts P1'!N29 -> 0 | D50: ='Pts P2'!N29 -> 0 | E50: ='Pts P3'!N29 -> 0 | F50: ='Pts P4'!N29 -> 0 | H50: 0
A51: 6. Carte(s) rouge(s) « Tr. scolaire » | C51: ='Pts P1'!N30 -> 0 | D51: ='Pts P2'!N30 -> 0 | E51: ='Pts P3'!N30 -> 0 | F51: ='Pts P4'!N30 -> 0 | H51: 0
A52: 7. Carte(s) blanche(s) (retenues) | C52: ='Pts P1'!N31 -> 0 | D52: ='Pts P2'!N31 -> 0 | E52: ='Pts P3'!N31 -> 0 | F52: ='Pts P4'!N31 -> 0 | H52: 0
A54: COMMENTAIRES et CONSEILS :
A55: 1ère période :
A57: 2ème période :
A59: 3ème période :
A61: 4ème période :
A63: Signature des parents :

Sheet Elève (12)
A1: Nom et prénom de l'élève : | B1: ='Pts P1'!$O$2 -> 0
A3: FRANCAIS | C3: 1ère période | D3: 2ème période | E3: 3ème période | F3: 4ème période | H3: MOYENNE
A5: Savoir lire | B5: 20 | C5: ='Pts P1'!O3 -> 0 | D5: ='Pts P2'!O3 -> 0 | E5: ='Pts P3'!O3 -> 0 | F5: ='Pts P4'!O3 -> 0 | H5: =K5/J5 ->  | I5: 20 | J5: =COUNTIF(C5:F5,"<>0") -> 0 | K5: =SUM(C5:F5) -> 0
A6: Savoir écrire | B6: 80 | C6: ='Pts P1'!O4 -> 0 | D6: ='Pts P2'!O4 -> 0 | E6: ='Pts P3'!O4 -> 0 | F6: ='Pts P4'!O4 -> 0 | I6: 80 | J6: =COUNTIF(C6:F6,"<>0") -> 0 | K6: =SUM(C6:F6) -> 0
A7: Savoir parler | D7: ='Pts P2'!D5 -> 0 | E7: ='Pts P3'!D5 -> 0 | F7: ='Pts P4'!D5 -> 0 | J7: =COUNTIF(C7:F7,"<>0") -> 1 | K7: =SUM(C7:F7) -> 0
A8: Savoir écouter | D8: ='Pts P2'!D6 -> 0 | E8: ='Pts P3'!D6 -> 0 | F8: ='Pts P4'!D6 -> 0 | J8: =COUNTIF(C8:F8,"<>0") -> 1 | K8: =SUM(C8:F8) -> 0
A9: TOTAL Français | B9: 100 | C9: ='Pts P1'!O7 -> 0 | D9: ='Pts P2'!O7 -> 0 | E9: ='Pts P3'!O7 -> 0 | F9: ='Pts P4'!O7 -> 0 | I9: 100 | J9: =COUNTIF(C9:F9,"<>0") -> 0 | K9: =SUM(C9:F9) -> 0
A11: MATHEMATIQUES | C11: 1ère période | D11: 2ème période | E11: 3ème période | F11: 4ème période
A13: Savoir calculer | B13: 100 | C13: ='Pts P1'!O8 -> 0 | D13: ='Pts P2'!O8 -> 0 | E13: ='Pts P3'!O8 -> 0 | F13: ='Pts P4'!O8 -> 0 | H13: =K13/J13 ->  | I13: 100 | J13: =COUNTIF(C13:F13,"<>0") -> 0 | K13: =SUM(C13:F13) -> 0
A14: Savoir résoudre des problèmes | D14: ='Pts P2'!D9 -> 0 | E14: ='Pts P3'!D9 -> 0 | F14: ='Pts P4'!D9 -> 0 | J14: =COUNTIF(C14:F14,"<>0") -> 1 | K14: =SUM(C14:F14) -> 0
A15: Savoir mesurer | D15: ='Pts P2'!D10 -> 0 | E15: ='Pts P3'!D10 -> 0 | F15: ='Pts P4'!D10 -> 0 | J15: =COUNTIF(C15:F15,"<>0") -> 1 | K15: =SUM(C15:F15) -> 0
A16: Savoir structurer l'espace | D16: ='Pts P2'!D11 -> 0 | E16: ='Pts P3'!D11 -> 0 | F16: ='Pts P4'!D11 -> 0 | J16: =COUNTIF(C16:F16,"<>0") -> 1 | K16: =SUM(C16:F16) -> 0
A17: TOTAL Math | B17: 100 | C17: ='Pts P1'!O12 -> 0 | D17: ='Pts P2'!O12 -> 0 | E17: ='Pts P3'!O12 -> 0 | F17: ='Pts P4'!O12 -> 0 | H17: =K17/J17 ->  | I17: 100 | J17: =COUNTIF(C17:F17,"<>0") -> 0 | K17: =SUM(C17:F17) -> 0
A19: TOTAL GÉNÉRAL (Français et Mathématiques) en % | C19: ='Pts P1'!$O$13 -> 0 | D19: ='Pts P2'!$O$13 -> 0 | E19: ='Pts P3'!$O$13 -> 0 | F19: ='Pts P4'!$O$13 -> 0 | H19: =K19/J19 ->  | I19: sur | J19: =COUNTIF(C19:F19,"<>0") -> 0 | K19: =SUM(C19:F19) -> 0
A21: AUTRES BRANCHES | C21: 1ère période | D21: 2ème période | E21: 3ème période | F21: 4ème période
A23: Eveil | B23: 20 | C23: ='Pts P1'!O14 -> 0 | D23: ='Pts P2'!O14 -> 0 | E23: ='Pts P3'!O14 -> 0 | F23: ='Pts P4'!O14 -> 0 | H23: =K23/J23 ->  | I23: 20 | J23: =COUNTIF(C23:F23,"<>0") -> 0 | K23: =SUM(C23:F23) -> 0
A24: Education physiaue | B24: 10 | C24: ='Pts P1'!O15 -> 0 | D24: ='Pts P2'!O15 -> 0 | E24: ='Pts P3'!O15 -> 0 | F24: ='Pts P4'!O15 -> 0 | I24: 10 | J24: 0 | K24: 0
A25: Education esthétique | B25: 10 | C25: ='Pts P1'!O16 -> 0 | D25: ='Pts P2'!O16 -> 0 | E25: ='Pts P3'!O16 -> 0 | F25: ='Pts P4'!O16 -> 0 | I25: 10 | J25: 0 | K25: 0
A26: Religion / Morale / E.P.A | B26: 10 | C26: ='Pts P1'!O17 -> 0 | D26: ='Pts P2'!O17 -> 0 | E26: ='Pts P3'!O17 -> 0 | F26: ='Pts P4'!O17 -> 0 | I26: 10 | J26: 0 | K26: 0
A27: Récitations et chants | B27: Ap. * | C27: ='Pts P1'!O18 -> 0 | D27: ='Pts P2'!O18 -> 0 | E27: ='Pts P3'!O18 -> 0 | F27: ='Pts P4'!O18 -> 0 | K27: 0
A28: Ecriture | B28: Ap. * | C28: ='Pts P1'!O19 -> 0 | D28: ='Pts P2'!O19 -> 0 | E28: ='Pts P3'!O19 -> 0 | F28: ='Pts P4'!O19 -> 0
A29: Ordre | B29: Ap. * | C29: ='Pts P1'!O20 -> 0 | D29: ='Pts P2'!O20 -> 0 | E29: ='Pts P3'!O20 -> 0 | F29: ='Pts P4'!O20 -> 0 | K29: 0
A30: Soin | B30: Ap. * | C30: ='Pts P1'!O21 -> 0 | D30: ='Pts P2'!O21 -> 0 | E30: ='Pts P3'!O21 -> 0 | F30: ='Pts P4'!O21 -> 0 | K30: 0
A31: Travail à Domicile | B31: Ap. * | C31: ='Pts P1'!O22 -> 0 | D31: ='Pts P2'!O22 -> 0 | E31: ='Pts P3'!O22 -> 0 | F31: ='Pts P4'!O22 -> 0
A32: ABSENCES (en 1/2 jours) | B32: nbr | C32: ='Pts P1'!O23 -> 0 | D32: ='Pts P2'!O23 -> 0 | E32: ='Pts P3'!O23 -> 0 | F32: ='Pts P4'!O23 -> 0 | H32: =SUM(C32:F32) -> 0 | I32: Nbr
A33: RETARDS | B33: nbr | C33: ='Pts P1'!O24 -> 0 | D33: ='Pts P2'!O24 -> 0 | E33: ='Pts P3'!O24 -> 0 | F33: ='Pts P4'!O24 -> 0 | H33: =SUM(C33:F33) -> 0 | I33: Nbr
A34: * TB : Très Bien, B = Bien, S = Satisfaisant, F = Faible, I = Insuffisant.
A36: DECISION DU CONSEIL DE CLASSE :
A37: ='Déc CC'!$B$2 -> 0
A38: N.B. Cette décision tient compte du travail journalier et des tests d'orientation
A39: de fin d'année (voir explication sur le feuillet jaune ci-joint !)
A40: TITULAIRE : DIRECTEUR : PARENTS :
A41: SIGNATURES : | C41: Alain Rensonnet
A42: Nom et prénom de l'élève : | B42: ='Pts P1'!$O$2 -> 0
A44: APPRECIATION DU COMPORTEMENT | C44: 1ère période | D44: 2ème période | E44: 3 ème période | F44: 4ème période
A46: 1. Carte(s) d’honneur : jaune(s) | C46: ='Pts P1'!O25 -> 0 | D46: ='Pts P2'!O25 -> 0 | E46: ='Pts P3'!O25 -> 0 | F46: ='Pts P4'!O25 -> 0 | H46: =SUM(C46:F46) -> 0
A47: 2. Carte(s) verte(s) | C47: ='Pts P1'!O26 -> 0 | D47: ='Pts P2'!O26 -> 0 | E47: ='Pts P3'!O26 -> 0 | F47: ='Pts P4'!O26 -> 0 | H47: =SUM(C47:F47) -> 0
A48: 3. Carte(s) orange(s) | C48: ='Pts P1'!O27 -> 0 | D48: ='Pts P2'!O27 -> 0 | E48: ='Pts P3'!O27 -> 0 | F48: ='Pts P4'!O27 -> 0 | H48: 0
A49: 4. Carte(s) rouge(s) | C49: ='Pts P1'!O28 -> 0 | D49: ='Pts P2'!O28 -> 0 | E49: ='Pts P3'!O28 -> 0 | F49: ='Pts P4'!O28 -> 0 | H49: 0
A50: 5. Carte(s) rouge(s) « Garderie » | C50: ='Pts P1'!O29 -> 0 | D50: ='Pts P2'!O29 -> 0 | E50: ='Pts P3'!O29 -> 0 | F50: ='Pts P4'!O29 -> 0 | H50: 0
A51: 6. Carte(s) rouge(s) « Tr. scolaire » | C51: ='Pts P1'!O30 -> 0 | D51: ='Pts P2'!O30 -> 0 | E51: ='Pts P3'!O30 -> 0 | F51: ='Pts P4'!O30 -> 0 | H51: 0
A52: 7. Carte(s) blanche(s) (retenues) | C52: ='Pts P1'!O31 -> 0 | D52: ='Pts P2'!O31 -> 0 | E52: ='Pts P3'!O31 -> 0 | F52: ='Pts P4'!O31 -> 0 | H52: 0
A54: COMMENTAIRES et CONSEILS :
A55: 1ère période :
A57: 2ème période :
A59: 3ème période :
A61: 4ème période :
A63: Signature des parents :

Sheet Elève (13)
A1: Nom et prénom de l'élève : | B1: ='Pts P1'!$P$2 -> 0
A3: FRANCAIS | C3: 1ère période | D3: 2ème période | E3: 3ème période | F3: 4ème période | H3: MOYENNE
A5: Savoir lire | B5: 20 | C5: ='Pts P1'!P3 -> 0 | D5: ='Pts P2'!P3 -> 0 | E5: ='Pts P3'!P3 -> 0 | F5: ='Pts P4'!P3 -> 0 | H5: =K5/J5 ->  | I5: 20 | J5: =COUNTIF(C5:F5,"<>0") -> 0 | K5: =SUM(C5:F5) -> 0
A6: Savoir écrire | B6: 80 | C6: ='Pts P1'!P4 -> 0 | D6: ='Pts P2'!P4 -> 0 | E6: ='Pts P3'!P4 -> 0 | F6: ='Pts P4'!P4 -> 0 | I6: 80 | J6: =COUNTIF(C6:F6,"<>0") -> 0 | K6: =SUM(C6:F6) -> 0
A7: Savoir parler | D7: ='Pts P2'!D5 -> 0 | E7: ='Pts P3'!D5 -> 0 | F7: ='Pts P4'!D5 -> 0 | J7: =COUNTIF(C7:F7,"<>0") -> 1 | K7: =SUM(C7:F7) -> 0
A8: Savoir écouter | D8: ='Pts P2'!D6 -> 0 | E8: ='Pts P3'!D6 -> 0 | F8: ='Pts P4'!D6 -> 0 | J8: =COUNTIF(C8:F8,"<>0") -> 1 | K8: =SUM(C8:F8) -> 0
A9: TOTAL Français | B9: 100 | C9: ='Pts P1'!P7 -> 0 | D9: ='Pts P2'!P7 -> 0 | E9: ='Pts P3'!P7 -> 0 | F9: ='Pts P4'!P7 -> 0 | I9: 100 | J9: =COUNTIF(C9:F9,"<>0") -> 0 | K9: =SUM(C9:F9) -> 0
A11: MATHEMATIQUES | C11: 1ère période | D11: 2ème période | E11: 3ème période | F11: 4ème période
A13: Savoir calculer | B13: 100 | C13: ='Pts P1'!P8 -> 0 | D13: ='Pts P2'!P8 -> 0 | E13: ='Pts P3'!P8 -> 0 | F13: ='Pts P4'!P8 -> 0 | H13: =K13/J13 ->  | I13: 100 | J13: =COUNTIF(C13:F13,"<>0") -> 0 | K13: =SUM(C13:F13) -> 0
A14: Savoir résoudre des problèmes | D14: ='Pts P2'!D9 -> 0 | E14: ='Pts P3'!D9 -> 0 | F14: ='Pts P4'!D9 -> 0 | J14: =COUNTIF(C14:F14,"<>0") -> 1 | K14: =SUM(C14:F14) -> 0
A15: Savoir mesurer | D15: ='Pts P2'!D10 -> 0 | E15: ='Pts P3'!D10 -> 0 | F15: ='Pts P4'!D10 -> 0 | J15: =COUNTIF(C15:F15,"<>0") -> 1 | K15: =SUM(C15:F15) -> 0
A16: Savoir structurer l'espace | D16: ='Pts P2'!D11 -> 0 | E16: ='Pts P3'!D11 -> 0 | F16: ='Pts P4'!D11 -> 0 | J16: =COUNTIF(C16:F16,"<>0") -> 1 | K16: =SUM(C16:F16) -> 0
A17: TOTAL Math | B17: 100 | C17: ='Pts P1'!P12 -> 0 | D17: ='Pts P2'!P12 -> 0 | E17: ='Pts P3'!P12 -> 0 | F17: ='Pts P4'!P12 -> 0 | H17: =K17/J17 ->  | I17: 100 | J17: =COUNTIF(C17:F17,"<>0") -> 0 | K17: =SUM(C17:F17) -> 0
A19: TOTAL GÉNÉRAL (Français et Mathématiques) en % | C19: ='Pts P1'!$P$13 -> 0 | D19: ='Pts P2'!$P$13 -> 0 | E19: ='Pts P3'!$P$13 -> 0 | F19: ='Pts P4'!$P$13 -> 0 | H19: =K19/J19 ->  | I19: sur | J19: =COUNTIF(C19:F19,"<>0") -> 0 | K19: =SUM(C19:F19) -> 0
A21: AUTRES BRANCHES | C21: 1ère période | D21: 2ème période | E21: 3ème période | F21: 4ème période
A23: Eveil | B23: 20 | C23: ='Pts P1'!P14 -> 0 | D23: ='Pts P2'!P14 -> 0 | E23: ='Pts P3'!P14 -> 0 | F23: ='Pts P4'!P14 -> 0 | H23: =K23/J23 ->  | I23: 20 | J23: =COUNTIF(C23:F23,"<>0") -> 0 | K23: =SUM(C23:F23) -> 0
A24: Education physiaue | B24: 10 | C24: ='Pts P1'!P15 -> 0 | D24: ='Pts P2'!P15 -> 0 | E24: ='Pts P3'!P15 -> 0 | F24: ='Pts P4'!P15 -> 0 | I24: 10 | J24: 0 | K24: 0
A25: Education esthétique | B25: 10 | C25: ='Pts P1'!P16 -> 0 | D25: ='Pts P2'!P16 -> 0 | E25: ='Pts P3'!P16 -> 0 | F25: ='Pts P4'!P16 -> 0 | I25: 10 | J25: 0 | K25: 0
A26: Religion / Morale / E.P.A | B26: 10 | C26: ='Pts P1'!P17 -> 0 | D26: ='Pts P2'!P17 -> 0 | E26: ='Pts P3'!P17 -> 0 | F26: ='Pts P4'!P17 -> 0 | I26: 10 | J26: 0 | K26: 0
A27: Récitations et chants | B27: Ap. * | C27: ='Pts P1'!P18 -> 0 | D27: ='Pts P2'!P18 -> 0 | E27: ='Pts P3'!P18 -> 0 | F27: ='Pts P4'!P18 -> 0 | K27: 0
A28: Ecriture | B28: Ap. * | C28: ='Pts P1'!P19 -> 0 | D28: ='Pts P2'!P19 -> 0 | E28: ='Pts P3'!P19 -> 0 | F28: ='Pts P4'!P19 -> 0
A29: Ordre | B29: Ap. * | C29: ='Pts P1'!P20 -> 0 | D29: ='Pts P2'!P20 -> 0 | E29: ='Pts P3'!P20 -> 0 | F29: ='Pts P4'!P20 -> 0 | K29: 0
A30: Soin | B30: Ap. * | C30: ='Pts P1'!P21 -> 0 | D30: ='Pts P2'!P21 -> 0 | E30: ='Pts P3'!P21 -> 0 | F30: ='Pts P4'!P21 -> 0 | K30: 0
A31: Travail à Domicile | B31: Ap. * | C31: ='Pts P1'!P22 -> 0 | D31: ='Pts P2'!P22 -> 0 | E31: ='Pts P3'!P22 -> 0 | F31: ='Pts P4'!P22 -> 0
A32: ABSENCES (en 1/2 jours) | B32: nbr | C32: ='Pts P1'!P23 -> 0 | D32: ='Pts P2'!P23 -> 0 | E32: ='Pts P3'!P23 -> 0 | F32: ='Pts P4'!P23 -> 0 | H32: =SUM(C32:F32) -> 0 | I32: Nbr
A33: RETARDS | B33: nbr | C33: ='Pts P1'!P24 -> 0 | D33: ='Pts P2'!P24 -> 0 | E33: ='Pts P3'!P24 -> 0 | F33: ='Pts P4'!P24 -> 0 | H33: =SUM(C33:F33) -> 0 | I33: Nbr
A34: * TB : Très Bien, B = Bien, S = Satisfaisant, F = Faible, I = Insuffisant.
A36: DECISION DU CONSEIL DE CLASSE :
A37: ='Déc CC'!$B$2 -> 0
A38: N.B. Cette décision tient compte du travail journalier et des tests d'orientation
A39: de fin d'année (voir explication sur le feuillet jaune ci-joint !)
A40: TITULAIRE : DIRECTEUR : PARENTS :
A41: SIGNATURES : | C41: Alain Rensonnet
A42: Nom et prénom de l'élève : | B42: ='Pts P1'!$P$2 -> 0
A44: APPRECIATION DU COMPORTEMENT | C44: 1ère période | D44: 2ème période | E44: 3 ème période | F44: 4ème période
A46: 1. Carte(s) d’honneur : jaune(s) | C46: ='Pts P1'!P25 -> 0 | D46: ='Pts P2'!P25 -> 0 | E46: ='Pts P3'!P25 -> 0 | F46: ='Pts P4'!P25 -> 0 | H46: =SUM(C46:F46) -> 0
A47: 2. Carte(s) verte(s) | C47: ='Pts P1'!P26 -> 0 | D47: ='Pts P2'!P26 -> 0 | E47: ='Pts P3'!P26 -> 0 | F47: ='Pts P4'!P26 -> 0 | H47: =SUM(C47:F47) -> 0
A48: 3. Carte(s) orange(s) | C48: ='Pts P1'!P27 -> 0 | D48: ='Pts P2'!P27 -> 0 | E48: ='Pts P3'!P27 -> 0 | F48: ='Pts P4'!P27 -> 0 | H48: 0
A49: 4. Carte(s) rouge(s) | C49: ='Pts P1'!P28 -> 0 | D49: ='Pts P2'!P28 -> 0 | E49: ='Pts P3'!P28 -> 0 | F49: ='Pts P4'!P28 -> 0 | H49: 0
A50: 5. Carte(s) rouge(s) « Garderie » | C50: ='Pts P1'!P29 -> 0 | D50: ='Pts P2'!P29 -> 0 | E50: ='Pts P3'!P29 -> 0 | F50: ='Pts P4'!P29 -> 0 | H50: 0
A51: 6. Carte(s) rouge(s) « Tr. scolaire » | C51: ='Pts P1'!P30 -> 0 | D51: ='Pts P2'!P30 -> 0 | E51: ='Pts P3'!P30 -> 0 | F51: ='Pts P4'!P30 -> 0 | H51: 0
A52: 7. Carte(s) blanche(s) (retenues) | C52: ='Pts P1'!P31 -> 0 | D52: ='Pts P2'!P31 -> 0 | E52: ='Pts P3'!P31 -> 0 | F52: ='Pts P4'!P31 -> 0 | H52: 0
A54: COMMENTAIRES et CONSEILS :
A55: 1ère période :
A57: 2ème période :
A59: 3ème période :
A61: 4ème période :
A63: Signature des parents :

Sheet Elève (14)
A1: Nom et prénom de l'élève : | B1: ='Pts P1'!$Q$2 -> 0
A3: FRANCAIS | C3: 1ère période | D3: 2ème période | E3: 3ème période | F3: 4ème période | H3: MOYENNE
A5: Savoir lire | B5: 20 | C5: ='Pts P1'!Q3 -> 0 | D5: ='Pts P2'!Q3 -> 0 | E5: ='Pts P3'!Q3 -> 0 | F5: ='Pts P4'!Q3 -> 0 | H5: =K5/J5 ->  | I5: 20 | J5: =COUNTIF(C5:F5,"<>0") -> 0 | K5: =SUM(C5:F5) -> 0
A6: Savoir écrire | B6: 80 | C6: ='Pts P1'!Q4 -> 0 | D6: ='Pts P2'!Q4 -> 0 | E6: ='Pts P3'!Q4 -> 0 | F6: ='Pts P4'!Q4 -> 0 | I6: 80 | J6: =COUNTIF(C6:F6,"<>0") -> 0 | K6: =SUM(C6:F6) -> 0
A7: Savoir parler | D7: ='Pts P2'!D5 -> 0 | E7: ='Pts P3'!D5 -> 0 | F7: ='Pts P4'!D5 -> 0 | J7: =COUNTIF(C7:F7,"<>0") -> 1 | K7: =SUM(C7:F7) -> 0
A8: Savoir écouter | D8: ='Pts P2'!D6 -> 0 | E8: ='Pts P3'!D6 -> 0 | F8: ='Pts P4'!D6 -> 0 | J8: =COUNTIF(C8:F8,"<>0") -> 1 | K8: =SUM(C8:F8) -> 0
A9: TOTAL Français | B9: 100 | C9: ='Pts P1'!Q7 -> 0 | D9: ='Pts P2'!Q7 -> 0 | E9: ='Pts P3'!Q7 -> 0 | F9: ='Pts P4'!Q7 -> 0 | I9: 100 | J9: =COUNTIF(C9:F9,"<>0") -> 0 | K9: =SUM(C9:F9) -> 0
A11: MATHEMATIQUES | C11: 1ère période | D11: 2ème période | E11: 3ème période | F11: 4ème période
A13: Savoir calculer | B13: 100 | C13: ='Pts P1'!Q8 -> 0 | D13: ='Pts P2'!Q8 -> 0 | E13: ='Pts P3'!Q8 -> 0 | F13: ='Pts P4'!Q8 -> 0 | H13: =K13/J13 ->  | I13: 100 | J13: =COUNTIF(C13:F13,"<>0") -> 0 | K13: =SUM(C13:F13) -> 0
A14: Savoir résoudre des problèmes | D14: ='Pts P2'!D9 -> 0 | E14: ='Pts P3'!D9 -> 0 | F14: ='Pts P4'!D9 -> 0 | J14: =COUNTIF(C14:F14,"<>0") -> 1 | K14: =SUM(C14:F14) -> 0
A15: Savoir mesurer | D15: ='Pts P2'!D10 -> 0 | E15: ='Pts P3'!D10 -> 0 | F15: ='Pts P4'!D10 -> 0 | J15: =COUNTIF(C15:F15,"<>0") -> 1 | K15: =SUM(C15:F15) -> 0
A16: Savoir structurer l'espace | D16: ='Pts P2'!D11 -> 0 | E16: ='Pts P3'!D11 -> 0 | F16: ='Pts P4'!D11 -> 0 | J16: =COUNTIF(C16:F16,"<>0") -> 1 | K16: =SUM(C16:F16) -> 0
A17: TOTAL Math | B17: 100 | C17: ='Pts P1'!Q12 -> 0 | D17: ='Pts P2'!Q12 -> 0 | E17: ='Pts P3'!Q12 -> 0 | F17: ='Pts P4'!Q12 -> 0 | H17: =K17/J17 ->  | I17: 100 | J17: =COUNTIF(C17:F17,"<>0") -> 0 | K17: =SUM(C17:F17) -> 0
A19: TOTAL GÉNÉRAL (Français et Mathématiques) en % | C19: ='Pts P1'!$Q$13 -> 0 | D19: ='Pts P2'!$Q$13 -> 0 | E19: ='Pts P3'!$Q$13 -> 0 | F19: ='Pts P4'!$Q$13 -> 0 | H19: =K19/J19 ->  | I19: sur | J19: =COUNTIF(C19:F19,"<>0") -> 0 | K19: =SUM(C19:F19) -> 0
A21: AUTRES BRANCHES | C21: 1ère période | D21: 2ème période | E21: 3ème période | F21: 4ème période
A23: Eveil | B23: 20 | C23: ='Pts P1'!Q14 -> 0 | D23: ='Pts P2'!Q14 -> 0 | E23: ='Pts P3'!Q14 -> 0 | F23: ='Pts P4'!Q14 -> 0 | H23: =K23/J23 ->  | I23: 20 | J23: =COUNTIF(C23:F23,"<>0") -> 0 | K23: =SUM(C23:F23) -> 0
A24: Education physiaue | B24: 10 | C24: ='Pts P1'!Q15 -> 0 | D24: ='Pts P2'!Q15 -> 0 | E24: ='Pts P3'!Q15 -> 0 | F24: ='Pts P4'!Q15 -> 0 | I24: 10 | J24: 0 | K24: 0
A25: Education esthétique | B25: 10 | C25: ='Pts P1'!Q16 -> 0 | D25: ='Pts P2'!Q16 -> 0 | E25: ='Pts P3'!Q16 -> 0 | F25: ='Pts P4'!Q16 -> 0 | I25: 10 | J25: 0 | K25: 0
A26: Religion / Morale / E.P.A | B26: 10 | C26: ='Pts P1'!Q17 -> 0 | D26: ='Pts P2'!Q17 -> 0 | E26: ='Pts P3'!Q17 -> 0 | F26: ='Pts P4'!Q17 -> 0 | I26: 10 | J26: 0 | K26: 0
A27: Récitations et chants | B27: Ap. * | C27: ='Pts P1'!Q18 -> 0 | D27: ='Pts P2'!Q18 -> 0 | E27: ='Pts P3'!Q18 -> 0 | F27: ='Pts P4'!Q18 -> 0 | K27: 0
A28: Ecriture | B28: Ap. * | C28: ='Pts P1'!Q19 -> 0 | D28: ='Pts P2'!Q19 -> 0 | E28: ='Pts P3'!Q19 -> 0 | F28: ='Pts P4'!Q19 -> 0
A29: Ordre | B29: Ap. * | C29: ='Pts P1'!Q20 -> 0 | D29: ='Pts P2'!Q20 -> 0 | E29: ='Pts P3'!Q20 -> 0 | F29: ='Pts P4'!Q20 -> 0 | K29: 0
A30: Soin | B30: Ap. * | C30: ='Pts P1'!Q21 -> 0 | D30: ='Pts P2'!Q21 -> 0 | E30: ='Pts P3'!Q21 -> 0 | F30: ='Pts P4'!Q21 -> 0 | K30: 0
A31: Travail à Domicile | B31: Ap. * | C31: ='Pts P1'!Q22 -> 0 | D31: ='Pts P2'!Q22 -> 0 | E31: ='Pts P3'!Q22 -> 0 | F31: ='Pts P4'!Q22 -> 0
A32: ABSENCES (en 1/2 jours) | B32: nbr | C32: ='Pts P1'!Q23 -> 0 | D32: ='Pts P2'!Q23 -> 0 | E32: ='Pts P3'!Q23 -> 0 | F32: ='Pts P4'!Q23 -> 0 | H32: =SUM(C32:F32) -> 0 | I32: Nbr
A33: RETARDS | B33: nbr | C33: ='Pts P1'!Q24 -> 0 | D33: ='Pts P2'!Q24 -> 0 | E33: ='Pts P3'!Q24 -> 0 | F33: ='Pts P4'!Q24 -> 0 | H33: =SUM(C33:F33) -> 0 | I33: Nbr
A34: * TB : Très Bien, B = Bien, S = Satisfaisant, F = Faible, I = Insuffisant.
A36: DECISION DU CONSEIL DE CLASSE :
A37: ='Déc CC'!$B$2 -> 0
A38: N.B. Cette décision tient compte du travail journalier et des tests d'orientation
A39: de fin d'année (voir explication sur le feuillet jaune ci-joint !)
A40: TITULAIRE : DIRECTEUR : PARENTS :
A41: SIGNATURES : | C41: Alain Rensonnet
A42: Nom et prénom de l'élève : | B42: ='Pts P1'!$Q$2 -> 0
A44: APPRECIATION DU COMPORTEMENT | C44: 1ère période | D44: 2ème période | E44: 3 ème période | F44: 4ème période
A46: 1. Carte(s) d’honneur : jaune(s) | C46: ='Pts P1'!Q25 -> 0 | D46: ='Pts P2'!Q25 -> 0 | E46: ='Pts P3'!Q25 -> 0 | F46: ='Pts P4'!Q25 -> 0 | H46: =SUM(C46:F46) -> 0
A47: 2. Carte(s) verte(s) | C47: ='Pts P1'!Q26 -> 0 | D47: ='Pts P2'!Q26 -> 0 | E47: ='Pts P3'!Q26 -> 0 | F47: ='Pts P4'!Q26 -> 0 | H47: =SUM(C47:F47) -> 0
A48: 3. Carte(s) orange(s) | C48: ='Pts P1'!Q27 -> 0 | D48: ='Pts P2'!Q27 -> 0 | E48: ='Pts P3'!Q27 -> 0 | F48: ='Pts P4'!Q27 -> 0 | H48: 0
A49: 4. Carte(s) rouge(s) | C49: ='Pts P1'!Q28 -> 0 | D49: ='Pts P2'!Q28 -> 0 | E49: ='Pts P3'!Q28 -> 0 | F49: ='Pts P4'!Q28 -> 0 | H49: 0
A50: 5. Carte(s) rouge(s) « Garderie » | C50: ='Pts P1'!Q29 -> 0 | D50: ='Pts P2'!Q29 -> 0 | E50: ='Pts P3'!Q29 -> 0 | F50: ='Pts P4'!Q29 -> 0 | H50: 0
A51: 6. Carte(s) rouge(s) « Tr. scolaire » | C51: ='Pts P1'!Q30 -> 0 | D51: ='Pts P2'!Q30 -> 0 | E51: ='Pts P3'!Q30 -> 0 | F51: ='Pts P4'!Q30 -> 0 | H51: 0
A52: 7. Carte(s) blanche(s) (retenues) | C52: ='Pts P1'!Q31 -> 0 | D52: ='Pts P2'!Q31 -> 0 | E52: ='Pts P3'!Q31 -> 0 | F52: ='Pts P4'!Q31 -> 0 | H52: 0
A54: COMMENTAIRES et CONSEILS :
A55: 1ère période :
A57: 2ème période :
A59: 3ème période :
A61: 4ème période :
A63: Signature des parents :

Sheet Elève (15)
A1: Nom et prénom de l'élève : | B1: ='Pts P1'!$R$2 -> 0
A3: FRANCAIS | C3: 1ère période | D3: 2ème période | E3: 3ème période | F3: 4ème période | H3: MOYENNE
A5: Savoir lire | B5: 20 | C5: ='Pts P1'!R3 -> 0 | D5: ='Pts P2'!R3 -> 0 | E5: ='Pts P3'!R3 -> 0 | F5: ='Pts P4'!R3 -> 0 | H5: =K5/J5 ->  | I5: 20 | J5: =COUNTIF(C5:F5,"<>0") -> 0 | K5: =SUM(C5:F5) -> 0
A6: Savoir écrire | B6: 80 | C6: ='Pts P1'!R4 -> 0 | D6: ='Pts P2'!R4 -> 0 | E6: ='Pts P3'!R4 -> 0 | F6: ='Pts P4'!R4 -> 0 | I6: 80 | J6: =COUNTIF(C6:F6,"<>0") -> 0 | K6: =SUM(C6:F6) -> 0
A7: Savoir parler | D7: ='Pts P2'!D5 -> 0 | E7: ='Pts P3'!D5 -> 0 | F7: ='Pts P4'!D5 -> 0 | J7: =COUNTIF(C7:F7,"<>0") -> 1 | K7: =SUM(C7:F7) -> 0
A8: Savoir écouter | D8: ='Pts P2'!D6 -> 0 | E8: ='Pts P3'!D6 -> 0 | F8: ='Pts P4'!D6 -> 0 | J8: =COUNTIF(C8:F8,"<>0") -> 1 | K8: =SUM(C8:F8) -> 0
A9: TOTAL Français | B9: 100 | C9: ='Pts P1'!R7 -> 0 | D9: ='Pts P2'!R7 -> 0 | E9: ='Pts P3'!R7 -> 0 | F9: ='Pts P4'!R7 -> 0 | I9: 100 | J9: =COUNTIF(C9:F9,"<>0") -> 0 | K9: =SUM(C9:F9) -> 0
A11: MATHEMATIQUES | C11: 1ère période | D11: 2ème période | E11: 3ème période | F11: 4ème période
A13: Savoir calculer | B13: 100 | C13: ='Pts P1'!R8 -> 0 | D13: ='Pts P2'!R8 -> 0 | E13: ='Pts P3'!R8 -> 0 | F13: ='Pts P4'!R8 -> 0 | H13: =K13/J13 ->  | I13: 100 | J13: =COUNTIF(C13:F13,"<>0") -> 0 | K13: =SUM(C13:F13) -> 0
A14: Savoir résoudre des problèmes | D14: ='Pts P2'!D9 -> 0 | E14: ='Pts P3'!D9 -> 0 | F14: ='Pts P4'!D9 -> 0 | J14: =COUNTIF(C14:F14,"<>0") -> 1 | K14: =SUM(C14:F14) -> 0
A15: Savoir mesurer | D15: ='Pts P2'!D10 -> 0 | E15: ='Pts P3'!D10 -> 0 | F15: ='Pts P4'!D10 -> 0 | J15: =COUNTIF(C15:F15,"<>0") -> 1 | K15: =SUM(C15:F15) -> 0
A16: Savoir structurer l'espace | D16: ='Pts P2'!D11 -> 0 | E16: ='Pts P3'!D11 -> 0 | F16: ='Pts P4'!D11 -> 0 | J16: =COUNTIF(C16:F16,"<>0") -> 1 | K16: =SUM(C16:F16) -> 0
A17: TOTAL Math | B17: 100 | C17: ='Pts P1'!R12 -> 0 | D17: ='Pts P2'!R12 -> 0 | E17: ='Pts P3'!R12 -> 0 | F17: ='Pts P4'!R12 -> 0 | H17: =K17/J17 ->  | I17: 100 | J17: =COUNTIF(C17:F17,"<>0") -> 0 | K17: =SUM(C17:F17) -> 0
A19: TOTAL GÉNÉRAL (Français et Mathématiques) en % | C19: ='Pts P1'!$R$13 -> 0 | D19: ='Pts P2'!$R$13 -> 0 | E19: ='Pts P3'!$R$13 -> 0 | F19: ='Pts P4'!$R$13 -> 0 | H19: =K19/J19 ->  | I19: sur | J19: =COUNTIF(C19:F19,"<>0") -> 0 | K19: =SUM(C19:F19) -> 0
A21: AUTRES BRANCHES | C21: 1ère période | D21: 2ème période | E21: 3ème période | F21: 4ème période
A23: Eveil | B23: 20 | C23: ='Pts P1'!R14 -> 0 | D23: ='Pts P2'!R14 -> 0 | E23: ='Pts P3'!R14 -> 0 | F23: ='Pts P4'!R14 -> 0 | H23: =K23/J23 ->  | I23: 20 | J23: =COUNTIF(C23:F23,"<>0") -> 0 | K23: =SUM(C23:F23) -> 0
A24: Education physiaue | B24: 10 | C24: ='Pts P1'!R15 -> 0 | D24: ='Pts P2'!R15 -> 0 | E24: ='Pts P3'!R15 -> 0 | F24: ='Pts P4'!R15 -> 0 | I24: 10 | J24: 0 | K24: 0
A25: Education esthétique | B25: 10 | C25: ='Pts P1'!R16 -> 0 | D25: ='Pts P2'!R16 -> 0 | E25: ='Pts P3'!R16 -> 0 | F25: ='Pts P4'!R16 -> 0 | I25: 10 | J25: 0 | K25: 0
A26: Religion / Morale / E.P.A | B26: 10 | C26: ='Pts P1'!R17 -> 0 | D26: ='Pts P2'!R17 -> 0 | E26: ='Pts P3'!R17 -> 0 | F26: ='Pts P4'!R17 -> 0 | I26: 10 | J26: 0 | K26: 0
A27: Récitations et chants | B27: Ap. * | C27: ='Pts P1'!R18 -> 0 | D27: ='Pts P2'!R18 -> 0 | E27: ='Pts P3'!R18 -> 0 | F27: ='Pts P4'!R18 -> 0 | K27: 0
A28: Ecriture | B28: Ap. * | C28: ='Pts P1'!R19 -> 0 | D28: ='Pts P2'!R19 -> 0 | E28: ='Pts P3'!R19 -> 0 | F28: ='Pts P4'!R19 -> 0
A29: Ordre | B29: Ap. * | C29: ='Pts P1'!R20 -> 0 | D29: ='Pts P2'!R20 -> 0 | E29: ='Pts P3'!R20 -> 0 | F29: ='Pts P4'!R20 -> 0 | K29: 0
A30: Soin | B30: Ap. * | C30: ='Pts P1'!R21 -> 0 | D30: ='Pts P2'!R21 -> 0 | E30: ='Pts P3'!R21 -> 0 | F30: ='Pts P4'!R21 -> 0 | K30: 0
A31: Travail à Domicile | B31: Ap. * | C31: ='Pts P1'!R22 -> 0 | D31: ='Pts P2'!R22 -> 0 | E31: ='Pts P3'!R22 -> 0 | F31: ='Pts P4'!R22 -> 0
A32: ABSENCES (en 1/2 jours) | B32: nbr | C32: ='Pts P1'!R23 -> 0 | D32: ='Pts P2'!R23 -> 0 | E32: ='Pts P3'!R23 -> 0 | F32: ='Pts P4'!R23 -> 0 | H32: =SUM(C32:F32) -> 0 | I32: Nbr
A33: RETARDS | B33: nbr | C33: ='Pts P1'!R24 -> 0 | D33: ='Pts P2'!R24 -> 0 | E33: ='Pts P3'!R24 -> 0 | F33: ='Pts P4'!R24 -> 0 | H33: =SUM(C33:F33) -> 0 | I33: Nbr
A34: * TB : Très Bien, B = Bien, S = Satisfaisant, F = Faible, I = Insuffisant.
A36: DECISION DU CONSEIL DE CLASSE :
A37: ='Déc CC'!$B$2 -> 0
A38: N.B. Cette décision tient compte du travail journalier et des tests d'orientation
A39: de fin d'année (voir explication sur le feuillet jaune ci-joint !)
A40: TITULAIRE : DIRECTEUR : PARENTS :
A41: SIGNATURES : | C41: Alain Rensonnet
A42: Nom et prénom de l'élève : | B42: ='Pts P1'!$R$2 -> 0
A44: APPRECIATION DU COMPORTEMENT | C44: 1ère période | D44: 2ème période | E44: 3 ème période | F44: 4ème période
A46: 1. Carte(s) d’honneur : jaune(s) | C46: ='Pts P1'!R25 -> 0 | D46: ='Pts P2'!R25 -> 0 | E46: ='Pts P3'!R25 -> 0 | F46: ='Pts P4'!R25 -> 0 | H46: =SUM(C46:F46) -> 0
A47: 2. Carte(s) verte(s) | C47: ='Pts P1'!R26 -> 0 | D47: ='Pts P2'!R26 -> 0 | E47: ='Pts P3'!R26 -> 0 | F47: ='Pts P4'!R26 -> 0 | H47: =SUM(C47:F47) -> 0
A48: 3. Carte(s) orange(s) | C48: ='Pts P1'!R27 -> 0 | D48: ='Pts P2'!R27 -> 0 | E48: ='Pts P3'!R27 -> 0 | F48: ='Pts P4'!R27 -> 0 | H48: 0
A49: 4. Carte(s) rouge(s) | C49: ='Pts P1'!R28 -> 0 | D49: ='Pts P2'!R28 -> 0 | E49: ='Pts P3'!R28 -> 0 | F49: ='Pts P4'!R28 -> 0 | H49: 0
A50: 5. Carte(s) rouge(s) « Garderie » | C50: ='Pts P1'!R29 -> 0 | D50: ='Pts P2'!R29 -> 0 | E50: ='Pts P3'!R29 -> 0 | F50: ='Pts P4'!R29 -> 0 | H50: 0
A51: 6. Carte(s) rouge(s) « Tr. scolaire » | C51: ='Pts P1'!R30 -> 0 | D51: ='Pts P2'!R30 -> 0 | E51: ='Pts P3'!R30 -> 0 | F51: ='Pts P4'!R30 -> 0 | H51: 0
A52: 7. Carte(s) blanche(s) (retenues) | C52: ='Pts P1'!R31 -> 0 | D52: ='Pts P2'!R31 -> 0 | E52: ='Pts P3'!R31 -> 0 | F52: ='Pts P4'!R31 -> 0 | H52: 0
A54: COMMENTAIRES et CONSEILS :
A55: 1ère période :
A57: 2ème période :
A59: 3ème période :
A61: 4ème période :
A63: Signature des parents :

Sheet Elève (16)
A1: Nom et prénom de l'élève : | B1: ='Pts P1'!$S$2 -> 0
A3: FRANCAIS | C3: 1ère période | D3: 2ème période | E3: 3ème période | F3: 4ème période | H3: MOYENNE
A5: Savoir lire | B5: 20 | C5: ='Pts P1'!S3 -> 0 | D5: ='Pts P2'!S3 -> 0 | E5: ='Pts P3'!S3 -> 0 | F5: ='Pts P4'!S3 -> 0 | H5: =K5/J5 ->  | I5: 20 | J5: =COUNTIF(C5:F5,"<>0") -> 0 | K5: =SUM(C5:F5) -> 0
A6: Savoir écrire | B6: 80 | C6: ='Pts P1'!S4 -> 0 | D6: ='Pts P2'!S4 -> 0 | E6: ='Pts P3'!S4 -> 0 | F6: ='Pts P4'!S4 -> 0 | I6: 80 | J6: =COUNTIF(C6:F6,"<>0") -> 0 | K6: =SUM(C6:F6) -> 0
A7: Savoir parler | D7: ='Pts P2'!D5 -> 0 | E7: ='Pts P3'!D5 -> 0 | F7: ='Pts P4'!D5 -> 0 | J7: =COUNTIF(C7:F7,"<>0") -> 1 | K7: =SUM(C7:F7) -> 0
A8: Savoir écouter | D8: ='Pts P2'!D6 -> 0 | E8: ='Pts P3'!D6 -> 0 | F8: ='Pts P4'!D6 -> 0 | J8: =COUNTIF(C8:F8,"<>0") -> 1 | K8: =SUM(C8:F8) -> 0
A9: TOTAL Français | B9: 100 | C9: ='Pts P1'!S7 -> 0 | D9: ='Pts P2'!S7 -> 0 | E9: ='Pts P3'!S7 -> 0 | F9: ='Pts P4'!S7 -> 0 | I9: 100 | J9: =COUNTIF(C9:F9,"<>0") -> 0 | K9: =SUM(C9:F9) -> 0
A11: MATHEMATIQUES | C11: 1ère période | D11: 2ème période | E11: 3ème période | F11: 4ème période
A13: Savoir calculer | B13: 100 | C13: ='Pts P1'!S8 -> 0 | D13: ='Pts P2'!S8 -> 0 | E13: ='Pts P3'!S8 -> 0 | F13: ='Pts P4'!S8 -> 0 | H13: =K13/J13 ->  | I13: 100 | J13: =COUNTIF(C13:F13,"<>0") -> 0 | K13: =SUM(C13:F13) -> 0
A14: Savoir résoudre des problèmes | D14: ='Pts P2'!D9 -> 0 | E14: ='Pts P3'!D9 -> 0 | F14: ='Pts P4'!D9 -> 0 | J14: =COUNTIF(C14:F14,"<>0") -> 1 | K14: =SUM(C14:F14) -> 0
A15: Savoir mesurer | D15: ='Pts P2'!D10 -> 0 | E15: ='Pts P3'!D10 -> 0 | F15: ='Pts P4'!D10 -> 0 | J15: =COUNTIF(C15:F15,"<>0") -> 1 | K15: =SUM(C15:F15) -> 0
A16: Savoir structurer l'espace | D16: ='Pts P2'!D11 -> 0 | E16: ='Pts P3'!D11 -> 0 | F16: ='Pts P4'!D11 -> 0 | J16: =COUNTIF(C16:F16,"<>0") -> 1 | K16: =SUM(C16:F16) -> 0
A17: TOTAL Math | B17: 100 | C17: ='Pts P1'!S12 -> 0 | D17: ='Pts P2'!S12 -> 0 | E17: ='Pts P3'!S12 -> 0 | F17: ='Pts P4'!S12 -> 0 | H17: =K17/J17 ->  | I17: 100 | J17: =COUNTIF(C17:F17,"<>0") -> 0 | K17: =SUM(C17:F17) -> 0
A19: TOTAL GÉNÉRAL (Français et Mathématiques) en % | C19: ='Pts P1'!$S$13 -> 0 | D19: ='Pts P2'!$S$13 -> 0 | E19: ='Pts P3'!$S$13 -> 0 | F19: ='Pts P4'!$S$13 -> 0 | H19: =K19/J19 ->  | I19: sur | J19: =COUNTIF(C19:F19,"<>0") -> 0 | K19: =SUM(C19:F19) -> 0
A21: AUTRES BRANCHES | C21: 1ère période | D21: 2ème période | E21: 3ème période | F21: 4ème période
A23: Eveil | B23: 20 | C23: ='Pts P1'!S14 -> 0 | D23: ='Pts P2'!S14 -> 0 | E23: ='Pts P3'!S14 -> 0 | F23: ='Pts P4'!S14 -> 0 | H23: =K23/J23 ->  | I23: 20 | J23: =COUNTIF(C23:F23,"<>0") -> 0 | K23: =SUM(C23:F23) -> 0
A24: Education physiaue | B24: 10 | C24: ='Pts P1'!S15 -> 0 | D24: ='Pts P2'!S15 -> 0 | E24: ='Pts P3'!S15 -> 0 | F24: ='Pts P4'!S15 -> 0 | I24: 10 | J24: 0 | K24: 0
A25: Education esthétique | B25: 10 | C25: ='Pts P1'!S16 -> 0 | D25: ='Pts P2'!S16 -> 0 | E25: ='Pts P3'!S16 -> 0 | F25: ='Pts P4'!S16 -> 0 | I25: 10 | J25: 0 | K25: 0
A26: Religion / Morale / E.P.A | B26: 10 | C26: ='Pts P1'!S17 -> 0 | D26: ='Pts P2'!S17 -> 0 | E26: ='Pts P3'!S17 -> 0 | F26: ='Pts P4'!S17 -> 0 | I26: 10 | J26: 0 | K26: 0
A27: Récitations et chants | B27: Ap. * | C27: ='Pts P1'!S18 -> 0 | D27: ='Pts P2'!S18 -> 0 | E27: ='Pts P3'!S18 -> 0 | F27: ='Pts P4'!S18 -> 0 | K27: 0
A28: Ecriture | B28: Ap. * | C28: ='Pts P1'!S19 -> 0 | D28: ='Pts P2'!S19 -> 0 | E28: ='Pts P3'!S19 -> 0 | F28: ='Pts P4'!S19 -> 0
A29: Ordre | B29: Ap. * | C29: ='Pts P1'!S20 -> 0 | D29: ='Pts P2'!S20 -> 0 | E29: ='Pts P3'!S20 -> 0 | F29: ='Pts P4'!S20 -> 0 | K29: 0
A30: Soin | B30: Ap. * | C30: ='Pts P1'!S21 -> 0 | D30: ='Pts P2'!S21 -> 0 | E30: ='Pts P3'!S21 -> 0 | F30: ='Pts P4'!S21 -> 0 | K30: 0
A31: Travail à Domicile | B31: Ap. * | C31: ='Pts P1'!S22 -> 0 | D31: ='Pts P2'!S22 -> 0 | E31: ='Pts P3'!S22 -> 0 | F31: ='Pts P4'!S22 -> 0
A32: ABSENCES (en 1/2 jours) | B32: nbr | C32: ='Pts P1'!S23 -> 0 | D32: ='Pts P2'!S23 -> 0 | E32: ='Pts P3'!S23 -> 0 | F32: ='Pts P4'!S23 -> 0 | H32: =SUM(C32:F32) -> 0 | I32: Nbr
A33: RETARDS | B33: nbr | C33: ='Pts P1'!S24 -> 0 | D33: ='Pts P2'!S24 -> 0 | E33: ='Pts P3'!S24 -> 0 | F33: ='Pts P4'!S24 -> 0 | H33: =SUM(C33:F33) -> 0 | I33: Nbr
A34: * TB : Très Bien, B = Bien, S = Satisfaisant, F = Faible, I = Insuffisant.
A36: DECISION DU CONSEIL DE CLASSE :
A37: ='Déc CC'!$B$2 -> 0
A38: N.B. Cette décision tient compte du travail journalier et des tests d'orientation
A39: de fin d'année (voir explication sur le feuillet jaune ci-joint !)
A40: TITULAIRE : DIRECTEUR : PARENTS :
A41: SIGNATURES : | C41: Alain Rensonnet
A42: Nom et prénom de l'élève : | B42: ='Pts P1'!$S$2 -> 0
A44: APPRECIATION DU COMPORTEMENT | C44: 1ère période | D44: 2ème période | E44: 3 ème période | F44: 4ème période
A46: 1. Carte(s) d’honneur : jaune(s) | C46: ='Pts P1'!S25 -> 0 | D46: ='Pts P2'!S25 -> 0 | E46: ='Pts P3'!S25 -> 0 | F46: ='Pts P4'!S25 -> 0 | H46: =SUM(C46:F46) -> 0
A47: 2. Carte(s) verte(s) | C47: ='Pts P1'!S26 -> 0 | D47: ='Pts P2'!S26 -> 0 | E47: ='Pts P3'!S26 -> 0 | F47: ='Pts P4'!S26 -> 0 | H47: =SUM(C47:F47) -> 0
A48: 3. Carte(s) orange(s) | C48: ='Pts P1'!S27 -> 0 | D48: ='Pts P2'!S27 -> 0 | E48: ='Pts P3'!S27 -> 0 | F48: ='Pts P4'!S27 -> 0 | H48: 0
A49: 4. Carte(s) rouge(s) | C49: ='Pts P1'!S28 -> 0 | D49: ='Pts P2'!S28 -> 0 | E49: ='Pts P3'!S28 -> 0 | F49: ='Pts P4'!S28 -> 0 | H49: 0
A50: 5. Carte(s) rouge(s) « Garderie » | C50: ='Pts P1'!S29 -> 0 | D50: ='Pts P2'!S29 -> 0 | E50: ='Pts P3'!S29 -> 0 | F50: ='Pts P4'!S29 -> 0 | H50: 0
A51: 6. Carte(s) rouge(s) « Tr. scolaire » | C51: ='Pts P1'!S30 -> 0 | D51: ='Pts P2'!S30 -> 0 | E51: ='Pts P3'!S30 -> 0 | F51: ='Pts P4'!S30 -> 0 | H51: 0
A52: 7. Carte(s) blanche(s) (retenues) | C52: ='Pts P1'!S31 -> 0 | D52: ='Pts P2'!S31 -> 0 | E52: ='Pts P3'!S31 -> 0 | F52: ='Pts P4'!S31 -> 0 | H52: 0
A54: COMMENTAIRES et CONSEILS :
A55: 1ère période :
A57: 2ème période :
A59: 3ème période :
A61: 4ème période :
A63: Signature des parents :

Sheet Elève (17)
A1: Nom et prénom de l'élève : | B1: ='Pts P1'!$T$2 -> 0
A3: FRANCAIS | C3: 1ère période | D3: 2ème période | E3: 3ème période | F3: 4ème période | H3: MOYENNE
A5: Savoir lire | B5: 20 | C5: ='Pts P1'!T3 -> 0 | D5: ='Pts P2'!T3 -> 0 | E5: ='Pts P3'!T3 -> 0 | F5: ='Pts P4'!T3 -> 0 | H5: =K5/J5 ->  | I5: 20 | J5: =COUNTIF(C5:F5,"<>0") -> 0 | K5: =SUM(C5:F5) -> 0
A6: Savoir écrire | B6: 80 | C6: ='Pts P1'!T4 -> 0 | D6: ='Pts P2'!T4 -> 0 | E6: ='Pts P3'!T4 -> 0 | F6: ='Pts P4'!T4 -> 0 | I6: 80 | J6: =COUNTIF(C6:F6,"<>0") -> 0 | K6: =SUM(C6:F6) -> 0
A7: Savoir parler | D7: ='Pts P2'!D5 -> 0 | E7: ='Pts P3'!D5 -> 0 | F7: ='Pts P4'!D5 -> 0 | J7: =COUNTIF(C7:F7,"<>0") -> 1 | K7: =SUM(C7:F7) -> 0
A8: Savoir écouter | D8: ='Pts P2'!D6 -> 0 | E8: ='Pts P3'!D6 -> 0 | F8: ='Pts P4'!D6 -> 0 | J8: =COUNTIF(C8:F8,"<>0") -> 1 | K8: =SUM(C8:F8) -> 0
A9: TOTAL Français | B9: 100 | C9: ='Pts P1'!T7 -> 0 | D9: ='Pts P2'!T7 -> 0 | E9: ='Pts P3'!T7 -> 0 | F9: ='Pts P4'!T7 -> 0 | I9: 100 | J9: =COUNTIF(C9:F9,"<>0") -> 0 | K9: =SUM(C9:F9) -> 0
A11: MATHEMATIQUES | C11: 1ère période | D11: 2ème période | E11: 3ème période | F11: 4ème période
A13: Savoir calculer | B13: 100 | C13: ='Pts P1'!T8 -> 0 | D13: ='Pts P2'!T8 -> 0 | E13: ='Pts P3'!T8 -> 0 | F13: ='Pts P4'!T8 -> 0 | H13: =K13/J13 ->  | I13: 100 | J13: =COUNTIF(C13:F13,"<>0") -> 0 | K13: =SUM(C13:F13) -> 0
A14: Savoir résoudre des problèmes | D14: ='Pts P2'!D9 -> 0 | E14: ='Pts P3'!D9 -> 0 | F14: ='Pts P4'!D9 -> 0 | J14: =COUNTIF(C14:F14,"<>0") -> 1 | K14: =SUM(C14:F14) -> 0
A15: Savoir mesurer | D15: ='Pts P2'!D10 -> 0 | E15: ='Pts P3'!D10 -> 0 | F15: ='Pts P4'!D10 -> 0 | J15: =COUNTIF(C15:F15,"<>0") -> 1 | K15: =SUM(C15:F15) -> 0
A16: Savoir structurer l'espace | D16: ='Pts P2'!D11 -> 0 | E16: ='Pts P3'!D11 -> 0 | F16: ='Pts P4'!D11 -> 0 | J16: =COUNTIF(C16:F16,"<>0") -> 1 | K16: =SUM(C16:F16) -> 0
A17: TOTAL Math | B17: 100 | C17: ='Pts P1'!T12 -> 0 | D17: ='Pts P2'!T12 -> 0 | E17: ='Pts P3'!T12 -> 0 | F17: ='Pts P4'!T12 -> 0 | H17: =K17/J17 ->  | I17: 100 | J17: =COUNTIF(C17:F17,"<>0") -> 0 | K17: =SUM(C17:F17) -> 0
A19: TOTAL GÉNÉRAL (Français et Mathématiques) en % | C19: ='Pts P1'!$T$13 -> 0 | D19: ='Pts P2'!$T$13 -> 0 | E19: ='Pts P3'!$T$13 -> 0 | F19: ='Pts P4'!$T$13 -> 0 | H19: =K19/J19 ->  | I19: sur | J19: =COUNTIF(C19:F19,"<>0") -> 0 | K19: =SUM(C19:F19) -> 0
A21: AUTRES BRANCHES | C21: 1ère période | D21: 2ème période | E21: 3ème période | F21: 4ème période
A23: Eveil | B23: 20 | C23: ='Pts P1'!T14 -> 0 | D23: ='Pts P2'!T14 -> 0 | E23: ='Pts P3'!T14 -> 0 | F23: ='Pts P4'!T14 -> 0 | H23: =K23/J23 ->  | I23: 20 | J23: =COUNTIF(C23:F23,"<>0") -> 0 | K23: =SUM(C23:F23) -> 0
A24: Education physiaue | B24: 10 | C24: ='Pts P1'!T15 -> 0 | D24: ='Pts P2'!T15 -> 0 | E24: ='Pts P3'!T15 -> 0 | F24: ='Pts P4'!T15 -> 0 | I24: 10 | J24: 0 | K24: 0
A25: Education esthétique | B25: 10 | C25: ='Pts P1'!T16 -> 0 | D25: ='Pts P2'!T16 -> 0 | E25: ='Pts P3'!T16 -> 0 | F25: ='Pts P4'!T16 -> 0 | I25: 10 | J25: 0 | K25: 0
A26: Religion / Morale / E.P.A | B26: 10 | C26: ='Pts P1'!T17 -> 0 | D26: ='Pts P2'!T17 -> 0 | E26: ='Pts P3'!T17 -> 0 | F26: ='Pts P4'!T17 -> 0 | I26: 10 | J26: 0 | K26: 0
A27: Récitations et chants | B27: Ap. * | C27: ='Pts P1'!T18 -> 0 | D27: ='Pts P2'!T18 -> 0 | E27: ='Pts P3'!T18 -> 0 | F27: ='Pts P4'!T18 -> 0 | K27: 0
A28: Ecriture | B28: Ap. * | C28: ='Pts P1'!T19 -> 0 | D28: ='Pts P2'!T19 -> 0 | E28: ='Pts P3'!T19 -> 0 | F28: ='Pts P4'!T19 -> 0
A29: Ordre | B29: Ap. * | C29: ='Pts P1'!T20 -> 0 | D29: ='Pts P2'!T20 -> 0 | E29: ='Pts P3'!T20 -> 0 | F29: ='Pts P4'!T20 -> 0 | K29: 0
A30: Soin | B30: Ap. * | C30: ='Pts P1'!T21 -> 0 | D30: ='Pts P2'!T21 -> 0 | E30: ='Pts P3'!T21 -> 0 | F30: ='Pts P4'!T21 -> 0 | K30: 0
A31: Travail à Domicile | B31: Ap. * | C31: ='Pts P1'!T22 -> 0 | D31: ='Pts P2'!T22 -> 0 | E31: ='Pts P3'!T22 -> 0 | F31: ='Pts P4'!T22 -> 0
A32: ABSENCES (en 1/2 jours) | B32: nbr | C32: ='Pts P1'!T23 -> 0 | D32: ='Pts P2'!T23 -> 0 | E32: ='Pts P3'!T23 -> 0 | F32: ='Pts P4'!T23 -> 0 | H32: =SUM(C32:F32) -> 0 | I32: Nbr
A33: RETARDS | B33: nbr | C33: ='Pts P1'!T24 -> 0 | D33: ='Pts P2'!T24 -> 0 | E33: ='Pts P3'!T24 -> 0 | F33: ='Pts P4'!T24 -> 0 | H33: =SUM(C33:F33) -> 0 | I33: Nbr
A34: * TB : Très Bien, B = Bien, S = Satisfaisant, F = Faible, I = Insuffisant.
A36: DECISION DU CONSEIL DE CLASSE :
A37: ='Déc CC'!$B$2 -> 0
A38: N.B. Cette décision tient compte du travail journalier et des tests d'orientation
A39: de fin d'année (voir explication sur le feuillet jaune ci-joint !)
A40: TITULAIRE : DIRECTEUR : PARENTS :
A41: SIGNATURES : | C41: Alain Rensonnet
A42: Nom et prénom de l'élève : | B42: ='Pts P1'!$T$2 -> 0
A44: APPRECIATION DU COMPORTEMENT | C44: 1ère période | D44: 2ème période | E44: 3 ème période | F44: 4ème période
A46: 1. Carte(s) d’honneur : jaune(s) | C46: ='Pts P1'!T25 -> 0 | D46: ='Pts P2'!T25 -> 0 | E46: ='Pts P3'!T25 -> 0 | F46: ='Pts P4'!T25 -> 0 | H46: =SUM(C46:F46) -> 0
A47: 2. Carte(s) verte(s) | C47: ='Pts P1'!T26 -> 0 | D47: ='Pts P2'!T26 -> 0 | E47: ='Pts P3'!T26 -> 0 | F47: ='Pts P4'!T26 -> 0 | H47: =SUM(C47:F47) -> 0
A48: 3. Carte(s) orange(s) | C48: ='Pts P1'!T27 -> 0 | D48: ='Pts P2'!T27 -> 0 | E48: ='Pts P3'!T27 -> 0 | F48: ='Pts P4'!T27 -> 0 | H48: 0
A49: 4. Carte(s) rouge(s) | C49: ='Pts P1'!T28 -> 0 | D49: ='Pts P2'!T28 -> 0 | E49: ='Pts P3'!T28 -> 0 | F49: ='Pts P4'!T28 -> 0 | H49: 0
A50: 5. Carte(s) rouge(s) « Garderie » | C50: ='Pts P1'!T29 -> 0 | D50: ='Pts P2'!T29 -> 0 | E50: ='Pts P3'!T29 -> 0 | F50: ='Pts P4'!T29 -> 0 | H50: 0
A51: 6. Carte(s) rouge(s) « Tr. scolaire » | C51: ='Pts P1'!T30 -> 0 | D51: ='Pts P2'!T30 -> 0 | E51: ='Pts P3'!T30 -> 0 | F51: ='Pts P4'!T30 -> 0 | H51: 0
A52: 7. Carte(s) blanche(s) (retenues) | C52: ='Pts P1'!T31 -> 0 | D52: ='Pts P2'!T31 -> 0 | E52: ='Pts P3'!T31 -> 0 | F52: ='Pts P4'!T31 -> 0 | H52: 0
A54: COMMENTAIRES et CONSEILS :
A55: 1ère période :
A57: 2ème période :
A59: 3ème période :
A61: 4ème période :
A63: Signature des parents :

Sheet Elève (18)
A1: Nom et prénom de l'élève : | B1: ='Pts P1'!$U$2 -> 0
A3: FRANCAIS | C3: 1ère période | D3: 2ème période | E3: 3ème période | F3: 4ème période | H3: MOYENNE
A5: Savoir lire | B5: 20 | C5: ='Pts P1'!U3 -> 0 | D5: ='Pts P2'!U3 -> 0 | E5: ='Pts P3'!U3 -> 0 | F5: ='Pts P4'!U3 -> 0 | H5: =K5/J5 ->  | I5: 20 | J5: =COUNTIF(C5:F5,"<>0") -> 0 | K5: =SUM(C5:F5) -> 0
A6: Savoir écrire | B6: 80 | C6: ='Pts P1'!U4 -> 0 | D6: ='Pts P2'!U4 -> 0 | E6: ='Pts P3'!U4 -> 0 | F6: ='Pts P4'!U4 -> 0 | I6: 80 | J6: =COUNTIF(C6:F6,"<>0") -> 0 | K6: =SUM(C6:F6) -> 0
A7: Savoir parler | D7: ='Pts P2'!D5 -> 0 | E7: ='Pts P3'!D5 -> 0 | F7: ='Pts P4'!D5 -> 0 | J7: =COUNTIF(C7:F7,"<>0") -> 1 | K7: =SUM(C7:F7) -> 0
A8: Savoir écouter | D8: ='Pts P2'!D6 -> 0 | E8: ='Pts P3'!D6 -> 0 | F8: ='Pts P4'!D6 -> 0 | J8: =COUNTIF(C8:F8,"<>0") -> 1 | K8: =SUM(C8:F8) -> 0
A9: TOTAL Français | B9: 100 | C9: ='Pts P1'!U7 -> 0 | D9: ='Pts P2'!U7 -> 0 | E9: ='Pts P3'!U7 -> 0 | F9: ='Pts P4'!U7 -> 0 | I9: 100 | J9: =COUNTIF(C9:F9,"<>0") -> 0 | K9: =SUM(C9:F9) -> 0
A11: MATHEMATIQUES | C11: 1ère période | D11: 2ème période | E11: 3ème période | F11: 4ème période
A13: Savoir calculer | B13: 100 | C13: ='Pts P1'!U8 -> 0 | D13: ='Pts P2'!U8 -> 0 | E13: ='Pts P3'!U8 -> 0 | F13: ='Pts P4'!U8 -> 0 | H13: =K13/J13 ->  | I13: 100 | J13: =COUNTIF(C13:F13,"<>0") -> 0 | K13: =SUM(C13:F13) -> 0
A14: Savoir résoudre des problèmes | D14: ='Pts P2'!D9 -> 0 | E14: ='Pts P3'!D9 -> 0 | F14: ='Pts P4'!D9 -> 0 | J14: =COUNTIF(C14:F14,"<>0") -> 1 | K14: =SUM(C14:F14) -> 0
A15: Savoir mesurer | D15: ='Pts P2'!D10 -> 0 | E15: ='Pts P3'!D10 -> 0 | F15: ='Pts P4'!D10 -> 0 | J15: =COUNTIF(C15:F15,"<>0") -> 1 | K15: =SUM(C15:F15) -> 0
A16: Savoir structurer l'espace | D16: ='Pts P2'!D11 -> 0 | E16: ='Pts P3'!D11 -> 0 | F16: ='Pts P4'!D11 -> 0 | J16: =COUNTIF(C16:F16,"<>0") -> 1 | K16: =SUM(C16:F16) -> 0
A17: TOTAL Math | B17: 100 | C17: ='Pts P1'!U12 -> 0 | D17: ='Pts P2'!U12 -> 0 | E17: ='Pts P3'!U12 -> 0 | F17: ='Pts P4'!U12 -> 0 | H17: =K17/J17 ->  | I17: 100 | J17: =COUNTIF(C17:F17,"<>0") -> 0 | K17: =SUM(C17:F17) -> 0
A19: TOTAL GÉNÉRAL (Français et Mathématiques) en % | C19: ='Pts P1'!$U$13 -> 0 | D19: ='Pts P2'!$U$13 -> 0 | E19: ='Pts P3'!$U$13 -> 0 | F19: ='Pts P4'!$U$13 -> 0 | H19: =K19/J19 ->  | I19: sur | J19: =COUNTIF(C19:F19,"<>0") -> 0 | K19: =SUM(C19:F19) -> 0
A21: AUTRES BRANCHES | C21: 1ère période | D21: 2ème période | E21: 3ème période | F21: 4ème période
A23: Eveil | B23: 20 | C23: ='Pts P1'!U14 -> 0 | D23: ='Pts P2'!U14 -> 0 | E23: ='Pts P3'!U14 -> 0 | F23: ='Pts P4'!U14 -> 0 | H23: =K23/J23 ->  | I23: 20 | J23: =COUNTIF(C23:F23,"<>0") -> 0 | K23: =SUM(C23:F23) -> 0
A24: Education physiaue | B24: 10 | C24: ='Pts P1'!U15 -> 0 | D24: ='Pts P2'!U15 -> 0 | E24: ='Pts P3'!U15 -> 0 | F24: ='Pts P4'!U15 -> 0 | I24: 10 | J24: 0 | K24: 0
A25: Education esthétique | B25: 10 | C25: ='Pts P1'!U16 -> 0 | D25: ='Pts P2'!U16 -> 0 | E25: ='Pts P3'!U16 -> 0 | F25: ='Pts P4'!U16 -> 0 | I25: 10 | J25: 0 | K25: 0
A26: Religion / Morale / E.P.A | B26: 10 | C26: ='Pts P1'!U17 -> 0 | D26: ='Pts P2'!U17 -> 0 | E26: ='Pts P3'!U17 -> 0 | F26: ='Pts P4'!U17 -> 0 | I26: 10 | J26: 0 | K26: 0
A27: Récitations et chants | B27: Ap. * | C27: ='Pts P1'!U18 -> 0 | D27: ='Pts P2'!U18 -> 0 | E27: ='Pts P3'!U18 -> 0 | F27: ='Pts P4'!U18 -> 0 | K27: 0
A28: Ecriture | B28: Ap. * | C28: ='Pts P1'!U19 -> 0 | D28: ='Pts P2'!U19 -> 0 | E28: ='Pts P3'!U19 -> 0 | F28: ='Pts P4'!U19 -> 0
A29: Ordre | B29: Ap. * | C29: ='Pts P1'!U20 -> 0 | D29: ='Pts P2'!U20 -> 0 | E29: ='Pts P3'!U20 -> 0 | F29: ='Pts P4'!U20 -> 0 | K29: 0
A30: Soin | B30: Ap. * | C30: ='Pts P1'!U21 -> 0 | D30: ='Pts P2'!U21 -> 0 | E30: ='Pts P3'!U21 -> 0 | F30: ='Pts P4'!U21 -> 0 | K30: 0
A31: Travail à Domicile | B31: Ap. * | C31: ='Pts P1'!U22 -> 0 | D31: ='Pts P2'!U22 -> 0 | E31: ='Pts P3'!U22 -> 0 | F31: ='Pts P4'!U22 -> 0
A32: ABSENCES (en 1/2 jours) | B32: nbr | C32: ='Pts P1'!U23 -> 0 | D32: ='Pts P2'!U23 -> 0 | E32: ='Pts P3'!U23 -> 0 | F32: ='Pts P4'!U23 -> 0 | H32: =SUM(C32:F32) -> 0 | I32: Nbr
A33: RETARDS | B33: nbr | C33: ='Pts P1'!U24 -> 0 | D33: ='Pts P2'!U24 -> 0 | E33: ='Pts P3'!U24 -> 0 | F33: ='Pts P4'!U24 -> 0 | H33: =SUM(C33:F33) -> 0 | I33: Nbr
A34: * TB : Très Bien, B = Bien, S = Satisfaisant, F = Faible, I = Insuffisant.
A36: DECISION DU CONSEIL DE CLASSE :
A37: ='Déc CC'!$B$2 -> 0
A38: N.B. Cette décision tient compte du travail journalier et des tests d'orientation
A39: de fin d'année (voir explication sur le feuillet jaune ci-joint !)
A40: TITULAIRE : DIRECTEUR : PARENTS :
A41: SIGNATURES : | C41: Alain Rensonnet
A42: Nom et prénom de l'élève : | B42: ='Pts P1'!$U$2 -> 0
A44: APPRECIATION DU COMPORTEMENT | C44: 1ère période | D44: 2ème période | E44: 3 ème période | F44: 4ème période
A46: 1. Carte(s) d’honneur : jaune(s) | C46: ='Pts P1'!U25 -> 0 | D46: ='Pts P2'!U25 -> 0 | E46: ='Pts P3'!U25 -> 0 | F46: ='Pts P4'!U25 -> 0 | H46: =SUM(C46:F46) -> 0
A47: 2. Carte(s) verte(s) | C47: ='Pts P1'!U26 -> 0 | D47: ='Pts P2'!U26 -> 0 | E47: ='Pts P3'!U26 -> 0 | F47: ='Pts P4'!U26 -> 0 | H47: =SUM(C47:F47) -> 0
A48: 3. Carte(s) orange(s) | C48: ='Pts P1'!U27 -> 0 | D48: ='Pts P2'!U27 -> 0 | E48: ='Pts P3'!U27 -> 0 | F48: ='Pts P4'!U27 -> 0 | H48: 0
A49: 4. Carte(s) rouge(s) | C49: ='Pts P1'!U28 -> 0 | D49: ='Pts P2'!U28 -> 0 | E49: ='Pts P3'!U28 -> 0 | F49: ='Pts P4'!U28 -> 0 | H49: 0
A50: 5. Carte(s) rouge(s) « Garderie » | C50: ='Pts P1'!U29 -> 0 | D50: ='Pts P2'!U29 -> 0 | E50: ='Pts P3'!U29 -> 0 | F50: ='Pts P4'!U29 -> 0 | H50: 0
A51: 6. Carte(s) rouge(s) « Tr. scolaire » | C51: ='Pts P1'!U30 -> 0 | D51: ='Pts P2'!U30 -> 0 | E51: ='Pts P3'!U30 -> 0 | F51: ='Pts P4'!U30 -> 0 | H51: 0
A52: 7. Carte(s) blanche(s) (retenues) | C52: ='Pts P1'!U31 -> 0 | D52: ='Pts P2'!U31 -> 0 | E52: ='Pts P3'!U31 -> 0 | F52: ='Pts P4'!U31 -> 0 | H52: 0
A54: COMMENTAIRES et CONSEILS :
A55: 1ère période :
A57: 2ème période :
A59: 3ème période :
A61: 4ème période :
A63: Signature des parents :

Sheet Elève (19)
A1: Nom et prénom de l'élève : | B1: ='Pts P1'!$V$2 -> 0
A3: FRANCAIS | C3: 1ère période | D3: 2ème période | E3: 3ème période | F3: 4ème période | H3: MOYENNE
A5: Savoir lire | B5: 20 | C5: ='Pts P1'!V3 -> 0 | D5: ='Pts P2'!V3 -> 0 | E5: ='Pts P3'!V3 -> 0 | F5: ='Pts P4'!V3 -> 0 | H5: =K5/J5 ->  | I5: 20 | J5: =COUNTIF(C5:F5,"<>0") -> 0 | K5: =SUM(C5:F5) -> 0
A6: Savoir écrire | B6: 80 | C6: ='Pts P1'!V4 -> 0 | D6: ='Pts P2'!V4 -> 0 | E6: ='Pts P3'!V4 -> 0 | F6: ='Pts P4'!V4 -> 0 | I6: 80 | J6: =COUNTIF(C6:F6,"<>0") -> 0 | K6: =SUM(C6:F6) -> 0
A7: Savoir parler | D7: ='Pts P2'!D5 -> 0 | E7: ='Pts P3'!D5 -> 0 | F7: ='Pts P4'!D5 -> 0 | J7: =COUNTIF(C7:F7,"<>0") -> 1 | K7: =SUM(C7:F7) -> 0
A8: Savoir écouter | D8: ='Pts P2'!D6 -> 0 | E8: ='Pts P3'!D6 -> 0 | F8: ='Pts P4'!D6 -> 0 | J8: =COUNTIF(C8:F8,"<>0") -> 1 | K8: =SUM(C8:F8) -> 0
A9: TOTAL Français | B9: 100 | C9: ='Pts P1'!V7 -> 0 | D9: ='Pts P2'!V7 -> 0 | E9: ='Pts P3'!V7 -> 0 | F9: ='Pts P4'!V7 -> 0 | I9: 100 | J9: =COUNTIF(C9:F9,"<>0") -> 0 | K9: =SUM(C9:F9) -> 0
A11: MATHEMATIQUES | C11: 1ère période | D11: 2ème période | E11: 3ème période | F11: 4ème période
A13: Savoir calculer | B13: 100 | C13: ='Pts P1'!V8 -> 0 | D13: ='Pts P2'!V8 -> 0 | E13: ='Pts P3'!V8 -> 0 | F13: ='Pts P4'!V8 -> 0 | H13: =K13/J13 ->  | I13: 100 | J13: =COUNTIF(C13:F13,"<>0") -> 0 | K13: =SUM(C13:F13) -> 0
A14: Savoir résoudre des problèmes | D14: ='Pts P2'!D9 -> 0 | E14: ='Pts P3'!D9 -> 0 | F14: ='Pts P4'!D9 -> 0 | J14: =COUNTIF(C14:F14,"<>0") -> 1 | K14: =SUM(C14:F14) -> 0
A15: Savoir mesurer | D15: ='Pts P2'!D10 -> 0 | E15: ='Pts P3'!D10 -> 0 | F15: ='Pts P4'!D10 -> 0 | J15: =COUNTIF(C15:F15,"<>0") -> 1 | K15: =SUM(C15:F15) -> 0
A16: Savoir structurer l'espace | D16: ='Pts P2'!D11 -> 0 | E16: ='Pts P3'!D11 -> 0 | F16: ='Pts P4'!D11 -> 0 | J16: =COUNTIF(C16:F16,"<>0") -> 1 | K16: =SUM(C16:F16) -> 0
A17: TOTAL Math | B17: 100 | C17: ='Pts P1'!V12 -> 0 | D17: ='Pts P2'!V12 -> 0 | E17: ='Pts P3'!V12 -> 0 | F17: ='Pts P4'!V12 -> 0 | H17: =K17/J17 ->  | I17: 100 | J17: =COUNTIF(C17:F17,"<>0") -> 0 | K17: =SUM(C17:F17) -> 0
A19: TOTAL GÉNÉRAL (Français et Mathématiques) en % | C19: ='Pts P1'!$V$13 -> 0 | D19: ='Pts P2'!$V$13 -> 0 | E19: ='Pts P3'!$V$13 -> 0 | F19: ='Pts P4'!$V$13 -> 0 | H19: =K19/J19 ->  | I19: sur | J19: =COUNTIF(C19:F19,"<>0") -> 0 | K19: =SUM(C19:F19) -> 0
A21: AUTRES BRANCHES | C21: 1ère période | D21: 2ème période | E21: 3ème période | F21: 4ème période
A23: Eveil | B23: 20 | C23: ='Pts P1'!V14 -> 0 | D23: ='Pts P2'!V14 -> 0 | E23: ='Pts P3'!V14 -> 0 | F23: ='Pts P4'!V14 -> 0 | H23: =K23/J23 ->  | I23: 20 | J23: =COUNTIF(C23:F23,"<>0") -> 0 | K23: =SUM(C23:F23) -> 0
A24: Education physiaue | B24: 10 | C24: ='Pts P1'!V15 -> 0 | D24: ='Pts P2'!V15 -> 0 | E24: ='Pts P3'!V15 -> 0 | F24: ='Pts P4'!V15 -> 0 | I24: 10 | J24: 0 | K24: 0
A25: Education esthétique | B25: 10 | C25: ='Pts P1'!V16 -> 0 | D25: ='Pts P2'!V16 -> 0 | E25: ='Pts P3'!V16 -> 0 | F25: ='Pts P4'!V16 -> 0 | I25: 10 | J25: 0 | K25: 0
A26: Religion / Morale / E.P.A | B26: 10 | C26: ='Pts P1'!V17 -> 0 | D26: ='Pts P2'!V17 -> 0 | E26: ='Pts P3'!V17 -> 0 | F26: ='Pts P4'!V17 -> 0 | I26: 10 | J26: 0 | K26: 0
A27: Récitations et chants | B27: Ap. * | C27: ='Pts P1'!V18 -> 0 | D27: ='Pts P2'!V18 -> 0 | E27: ='Pts P3'!V18 -> 0 | F27: ='Pts P4'!V18 -> 0 | K27: 0
A28: Ecriture | B28: Ap. * | C28: ='Pts P1'!V19 -> 0 | D28: ='Pts P2'!V19 -> 0 | E28: ='Pts P3'!V19 -> 0 | F28: ='Pts P4'!V19 -> 0
A29: Ordre | B29: Ap. * | C29: ='Pts P1'!V20 -> 0 | D29: ='Pts P2'!V20 -> 0 | E29: ='Pts P3'!V20 -> 0 | F29: ='Pts P4'!V20 -> 0 | K29: 0
A30: Soin | B30: Ap. * | C30: ='Pts P1'!V21 -> 0 | D30: ='Pts P2'!V21 -> 0 | E30: ='Pts P3'!V21 -> 0 | F30: ='Pts P4'!V21 -> 0 | K30: 0
A31: Travail à Domicile | B31: Ap. * | C31: ='Pts P1'!V22 -> 0 | D31: ='Pts P2'!V22 -> 0 | E31: ='Pts P3'!V22 -> 0 | F31: ='Pts P4'!V22 -> 0
A32: ABSENCES (en 1/2 jours) | B32: nbr | C32: ='Pts P1'!V23 -> 0 | D32: ='Pts P2'!V23 -> 0 | E32: ='Pts P3'!V23 -> 0 | F32: ='Pts P4'!V23 -> 0 | H32: =SUM(C32:F32) -> 0 | I32: Nbr
A33: RETARDS | B33: nbr | C33: ='Pts P1'!V24 -> 0 | D33: ='Pts P2'!V24 -> 0 | E33: ='Pts P3'!V24 -> 0 | F33: ='Pts P4'!V24 -> 0 | H33: =SUM(C33:F33) -> 0 | I33: Nbr
A34: * TB : Très Bien, B = Bien, S = Satisfaisant, F = Faible, I = Insuffisant.
A36: DECISION DU CONSEIL DE CLASSE :
A37: ='Déc CC'!$B$2 -> 0
A38: N.B. Cette décision tient compte du travail journalier et des tests d'orientation
A39: de fin d'année (voir explication sur le feuillet jaune ci-joint !)
A40: TITULAIRE : DIRECTEUR : PARENTS :
A41: SIGNATURES : | C41: Alain Rensonnet
A42: Nom et prénom de l'élève : | B42: ='Pts P1'!$V$2 -> 0
A44: APPRECIATION DU COMPORTEMENT | C44: 1ère période | D44: 2ème période | E44: 3 ème période | F44: 4ème période
A46: 1. Carte(s) d’honneur : jaune(s) | C46: ='Pts P1'!V25 -> 0 | D46: ='Pts P2'!V25 -> 0 | E46: ='Pts P3'!V25 -> 0 | F46: ='Pts P4'!V25 -> 0 | H46: =SUM(C46:F46) -> 0
A47: 2. Carte(s) verte(s) | C47: ='Pts P1'!V26 -> 0 | D47: ='Pts P2'!V26 -> 0 | E47: ='Pts P3'!V26 -> 0 | F47: ='Pts P4'!V26 -> 0 | H47: =SUM(C47:F47) -> 0
A48: 3. Carte(s) orange(s) | C48: ='Pts P1'!V27 -> 0 | D48: ='Pts P2'!V27 -> 0 | E48: ='Pts P3'!V27 -> 0 | F48: ='Pts P4'!V27 -> 0 | H48: 0
A49: 4. Carte(s) rouge(s) | C49: ='Pts P1'!V28 -> 0 | D49: ='Pts P2'!V28 -> 0 | E49: ='Pts P3'!V28 -> 0 | F49: ='Pts P4'!V28 -> 0 | H49: 0
A50: 5. Carte(s) rouge(s) « Garderie » | C50: ='Pts P1'!V29 -> 0 | D50: ='Pts P2'!V29 -> 0 | E50: ='Pts P3'!V29 -> 0 | F50: ='Pts P4'!V29 -> 0 | H50: 0
A51: 6. Carte(s) rouge(s) « Tr. scolaire » | C51: ='Pts P1'!V30 -> 0 | D51: ='Pts P2'!V30 -> 0 | E51: ='Pts P3'!V30 -> 0 | F51: ='Pts P4'!V30 -> 0 | H51: 0
A52: 7. Carte(s) blanche(s) (retenues) | C52: ='Pts P1'!V31 -> 0 | D52: ='Pts P2'!V31 -> 0 | E52: ='Pts P3'!V31 -> 0 | F52: ='Pts P4'!V31 -> 0 | H52: 0
A54: COMMENTAIRES et CONSEILS :
A55: 1ère période :
A57: 2ème période :
A59: 3ème période :
A61: 4ème période :
A63: Signature des parents :
